Workbook

Sheet Error Report
C4: Instruction: Please fill the form and click on the "Export Error Report" to get the Error Report in the same location as the Tariff Model. Then email the Error Report to info@eerc.en.gov.ng.
C5: EERC TARIFF MODEL ERROR REPORT
C6: Name | D6: Test
C7: Phone Number | D7: 1910101
C8: Organization
C9: Date
C10: Worksheet Name
C11: Range/Cell
C12: Error Description
C13: Potential Impact on Model

Sheet Cover Page
B18: ENUGU STATE ELECTRICITY REGULATORY COMMISSION
B19: DISTRIBUTION TARIFF MODEL
F21: Version No: | G21: 1
F22: Version's Date | G22: 2024-10-01
F23: Version Name | G23: EERCDT_01_10_2024
F24: Today's Date | G24: =NOW() -> 2024-10-02T09:19:20.870
F25: Developed by | G25: S2R Consulting

Sheet Control
D17: Guide Pages | I17: Input | N17: Calculations
D19: Cover Page | I19: Input Data | N19: Gen and Trans
D21: Control | I21: Regulatory Asset Base | N21: Asset Depreciation
D23: User Guide | I23: Regulated OPEX | N23: Tariff Calculation
N25: Tariff

Sheet User Guide
B1: Go to Control Page
C4: Table of Content
C5: Worksheet Name | F5: Description
C6: Cover Page | F6: Cover Page of the Model, gives general instructions
C7: Control | F7: This page contains links to other worksheets.
C8: User Guide | F8: Guide the user of the model on how the model works
C9: Input Data | F9: This is where the vast majority of the model inputs , not related to costs are inserted and changed
C10: Regulatory Asset Base | F10: This is where the equipment and installation costs of the projects are inputted
C11: Regulated Opex | F11: This is where maintenance and operating costs are inputted
C12: Gen and Trans | F12: Calculates Generation and Transmission Costs
C13: Asset Depreciation | F13: This is where the assets are depreciated and the Return of Capital and Return on Capital is calculated
C14: Tariff Calculation | F14: This sheet shows how the tariff are derived
C15: Tariff | F15: This sheet shows the final tariff
C18: Instructions
C19: 0 | F19: Only put data in the Input Worksheets, whose tabs are coloured dark green.
C21: 1 | F21: Please do not input data into Calculations Worksheets
C23: 2
C25: 3
C28: Color Convention
C29: Light Orange cells are for regulated inputs inputted by the EERC
C30: Aqua cells indicate cells to be inputted by user
C31: White Cells are used for calculated results

Sheet -Input-->
B1: Go to Control Page
B4: Sheet No | C4: Sheet Name | D4: Sheet Function
B5: 5 | C5: Input Data | D5: This is where the vast majority of the model inputs , not related to costs are inserted and changed
B6: 6 | C6: Regulatory Asset Base | D6: This is where the equipment and installation costs of the projects are inputted
B7: 7 | C7: Regulated OPEX | D7: This is where maintenance and operating costs are inputted

Sheet Input Data
B1: Go to Control Page
B5: No | C5: Item | D5: Type | E5: Unit | F5: Constant | G5: =F10 -> 2024 | H5: =G5+1 -> 2025 | I5: =H5+1 -> 2026 | J5: 2027 | K5: 2028 | L5: 2029 | M5: 2030 | N5: 2031 | O5: 2032 | P5: 2033 | Q5: 2034 | R5: 2035 | S5: 2036 | T5: 2037 | U5: 2038 | V5: 2039 | W5: 2040 | X5: 2041 | Y5: 2042 | Z5: 2043 | AA5: 2044 | AB5: 2045 | AC5: 2046 | AD5: 2047 | AE5: 2048
B8: 1 | C8: Model Date
C10: Model starts | E10: year | F10: 2024
B13: 2 | C13: Time Factors
C15: Hours in Year | E15: Hours/Year | F15: 8766
C16: Weeks in Year | E16: Weeks/Year | F16: 52.17
C17: Hours in Day | E17: Hours/Day | F17: 24.00
C18: Business Cycle | E18: Days/Month | F18: 30.50
B21: 3 | C21: WACC Parameters
C23: Tax Rate | E23: % | F23: 32.00%
C24: % Debt | E24: % | F24: 70.0%
C25: % Equity | E25: % | F25: 30.0%
C26: Cost of Debt | G26: 26.0% | H26: 26.0% | I26: 26.0% | J26: 26.0% | K26: 26.0% | L26: 26.0% | M26: 26.0% | N26: 26.0% | O26: 26.0% | P26: 26.0% | Q26: 26.0% | R26: 26.0% | S26: 26.0% | T26: 26.0% | U26: 26.0% | V26: 26.0% | W26: 26.0% | X26: 26.0% | Y26: 26.0% | Z26: 26.0% | AA26: 26.0% | AB26: 26.0% | AC26: 26.0% | AD26: 26.0% | AE26: 26.0%
C27: Risk Free Rate | E27: % | G27: 23.0% | H27: 23.0% | I27: 23.0% | J27: 23.0% | K27: 23.0% | L27: 23.0% | M27: 23.0% | N27: 23.0% | O27: 23.0% | P27: 23.0% | Q27: 23.0% | R27: 23.0% | S27: 23.0% | T27: 23.0% | U27: 23.0% | V27: 23.0% | W27: 23.0% | X27: 23.0% | Y27: 23.0% | Z27: 23.0% | AA27: 23.0% | AB27: 23.0% | AC27: 23.0% | AD27: 23.0% | AE27: 23.0%
C28: Expected Return on Maket | E28: % | G28: 32.0% | H28: 32.0% | I28: 32.0% | J28: 32.0% | K28: 32.0% | L28: 32.0% | M28: 32.0% | N28: 32.0% | O28: 32.0% | P28: 32.0% | Q28: 32.0% | R28: 32.0% | S28: 32.0% | T28: 32.0% | U28: 32.0% | V28: 32.0% | W28: 32.0% | X28: 32.0% | Y28: 32.0% | Z28: 32.0% | AA28: 32.0% | AB28: 32.0% | AC28: 32.0% | AD28: 32.0% | AE28: 32.0%
C29: Beta | E29: pu | G29: 1.20 | H29: 1.20 | I29: 1.20 | J29: 1.20 | K29: 1.20 | L29: 1.20 | M29: 1.20 | N29: 1.20 | O29: 1.20 | P29: 1.20 | Q29: 1.20 | R29: 1.20 | S29: 1.20 | T29: 1.20 | U29: 1.20 | V29: 1.20 | W29: 1.20 | X29: 1.20 | Y29: 1.20 | Z29: 1.20 | AA29: 1.20 | AB29: 1.20 | AC29: 1.20 | AD29: 1.20 | AE29: 1.20
E31: %
C32: Market risk premium | E32: % | G32: =G28-G27 -> 9.00% | H32: 9.00% | I32: 9.00% | J32: 9.00% | K32: 9.00% | L32: =L28-L27 -> 9.00% | M32: 9.00% | N32: 9.00% | O32: 9.00% | P32: 9.00% | Q32: 9.00% | R32: 9.00% | S32: 9.00% | T32: 9.00% | U32: 9.00% | V32: 9.00% | W32: 9.00% | X32: 9.00% | Y32: 9.00% | Z32: 9.00% | AA32: 9.00% | AB32: 9.00% | AC32: 9.00% | AD32: 9.00% | AE32: 9.00%
C33: Cost of Equity | G33: =G27+G32*G29 -> 33.80% | H33: 33.80% | I33: 33.80% | J33: 33.80% | K33: 33.80% | L33: =L27+L32*L29 -> 33.80% | M33: 33.80% | N33: 33.80% | O33: 33.80% | P33: 33.80% | Q33: 33.80% | R33: 33.80% | S33: 33.80% | T33: 33.80% | U33: 33.80% | V33: 33.80% | W33: 33.80% | X33: 33.80% | Y33: 33.80% | Z33: 33.80% | AA33: 33.80% | AB33: 33.80% | AC33: 33.80% | AD33: 33.80% | AE33: 33.80%
C35: Nominal Pre Tax WACC | E35: % | G35: =$F$24*G26+$F$25*G33 -> 28.34% | H35: 28.34% | I35: 28.34% | J35: 28.34% | K35: 28.34% | L35: =$F$24*L26+$F$25*L33 -> 28.34% | M35: 28.34% | N35: 28.34% | O35: 28.34% | P35: 28.34% | Q35: 28.34% | R35: 28.34% | S35: 28.34% | T35: 28.34% | U35: 28.34% | V35: 28.34% | W35: 28.34% | X35: 28.34% | Y35: 28.34% | Z35: 28.34% | AA35: 28.34% | AB35: 28.34% | AC35: 28.34% | AD35: 28.34% | AE35: 28.34%
C36: Nominal Post Tax WACC | E36: % | G36: =$F$24*G26*(1-$F$23)+$F$25*G33 -> 22.52% | H36: 22.52% | I36: 22.52% | J36: 22.52% | K36: 22.52% | L36: =$F$24*L26*(1-$F$23)+$F$25*L33 -> 22.52% | M36: 22.52% | N36: 22.52% | O36: 22.52% | P36: 22.52% | Q36: 22.52% | R36: 22.52% | S36: 22.52% | T36: 22.52% | U36: 22.52% | V36: 22.52% | W36: 22.52% | X36: 22.52% | Y36: 22.52% | Z36: 22.52% | AA36: 22.52% | AB36: 22.52% | AC36: 22.52% | AD36: 22.52% | AE36: 22.52%
B39: 4 | C39: Generation and Transmission Parameters
C41: Peak Power | E41: MW | G41: 200.00 | H41: 200.00 | I41: 200.00 | J41: 200.00 | K41: 200.00 | L41: 200.00 | M41: 200.00 | N41: 200.00 | O41: 200.00 | P41: 200.00 | Q41: 200.00 | R41: 200.00 | S41: 200.00 | T41: 200.00 | U41: 200.00 | V41: 200.00 | W41: 200.00 | X41: 200.00 | Y41: 200.00 | Z41: 200.00 | AA41: 200.00 | AB41: 200.00 | AC41: 200.00 | AD41: 200.00 | AE41: 200.00
C42: Load Factor | E42: % | G42: 70% | H42: 70% | I42: 70% | J42: 70% | K42: 70% | L42: 70% | M42: 70% | N42: 70% | O42: 70% | P42: 70% | Q42: 70% | R42: 70% | S42: 70% | T42: 70% | U42: 70% | V42: 70% | W42: 70% | X42: 70% | Y42: 70% | Z42: 70% | AA42: 70% | AB42: 70% | AC42: 70% | AD42: 70% | AE42: 70%
C43: Generation Tariff | E43: N/KWh | G43: 103.00 | H43: 103.00 | I43: 103.00 | J43: 103.00 | K43: 103.00 | L43: 103.00 | M43: 103.00 | N43: 103.00 | O43: 103.00 | P43: 103.00 | Q43: 103.00 | R43: 103.00 | S43: 103.00 | T43: 103.00 | U43: 103.00 | V43: 103.00 | W43: 103.00 | X43: 103.00 | Y43: 103.00 | Z43: 103.00 | AA43: 103.00 | AB43: 103.00 | AC43: 103.00 | AD43: 103.00 | AE43: 103.00
C44: Transmission Tariff | E44: N/KWh | G44: 8.45 | H44: 8.45 | I44: 8.45 | J44: 8.45 | K44: 8.45 | L44: 8.45 | M44: 8.45 | N44: 8.45 | O44: 8.45 | P44: 8.45 | Q44: 8.45 | R44: 8.45 | S44: 8.45 | T44: 8.45 | U44: 8.45 | V44: 8.45 | W44: 8.45 | X44: 8.45 | Y44: 8.45 | Z44: 8.45 | AA44: 8.45 | AB44: 8.45 | AC44: 8.45 | AD44: 8.45 | AE44: 8.45
B47: 5 | C47: Loss Levels
C49: Disco Loss Factor | E49: % | G49: 25.0% | H49: 25.0% | I49: 25.0% | J49: 25.0% | K49: 25.0% | L49: 25.0% | M49: 25.0% | N49: 25.0% | O49: 25.0% | P49: 25.0% | Q49: 25.0% | R49: 25.0% | S49: 25.0% | T49: 25.0% | U49: 25.0% | V49: 25.0% | W49: 25.0% | X49: 25.0% | Y49: 25.0% | Z49: 25.0% | AA49: 25.0% | AB49: 25.0% | AC49: 25.0% | AD49: 25.0% | AE49: 25.0%
B52: 5 | C52: Customer Energy Intake
C54: LV Customers | E54: % | G54: 90.0% | H54: 90.0% | I54: 90.0% | J54: 90.0% | K54: 90.0% | L54: 90.0% | M54: 90.0% | N54: 90.0% | O54: 90.0% | P54: 90.0% | Q54: 90.0% | R54: 90.0% | S54: 90.0% | T54: 90.0% | U54: 90.0% | V54: 90.0% | W54: 90.0% | X54: 90.0% | Y54: 90.0% | Z54: 90.0% | AA54: 90.0% | AB54: 90.0% | AC54: 90.0% | AD54: 90.0% | AE54: 90.0%
C55: HV Customers | E55: % | G55: =1-G54 -> 10.00% | H55: =1-H54 -> 10.00% | I55: 10.00% | J55: 10.00% | K55: 10.00% | L55: 10.00% | M55: 10.00% | N55: 10.00% | O55: 10.00% | P55: 10.00% | Q55: 10.00% | R55: 10.00% | S55: 10.00% | T55: 10.00% | U55: 10.00% | V55: 10.00% | W55: 10.00% | X55: 10.00% | Y55: 10.00% | Z55: 10.00% | AA55: 10.00% | AB55: 10.00% | AC55: 10.00% | AD55: 10.00% | AE55: 10.00%
B58: 6 | C58: EERC RATES
C60: Rate | E60: % | G60: 1.4% | H60: 1.4% | I60: 1.4% | J60: 1.4% | K60: 1.4% | L60: 1.4% | M60: 1.4% | N60: 1.4% | O60: 1.4% | P60: 1.4% | Q60: 1.4% | R60: 1.4% | S60: 1.4% | T60: 1.4% | U60: 1.4% | V60: 1.4% | W60: 1.4% | X60: 1.4% | Y60: 1.4% | Z60: 1.4% | AA60: 1.4% | AB60: 1.4% | AC60: 1.4% | AD60: 1.4% | AE60: 1.4%
B63: 7 | C63: Depreciation Settings
D65: Useful Life (years) - New | E65: SL Rate Capital Base Depreciation Rate)
B66: 1 | C66: Land | D66: 50 | E66: =IF(D66=0,0,1/D66) -> 2.00%
B67: 2 | C67: Building and Fixtures | D67: 50 | E67: 2.00%
B68: 3 | C68: Substations | D68: 20 | E68: 5.00%
B69: 4 | C69: Lines | D69: 20 | E69: 5.00%
B70: 5 | C70: Transformers | D70: 20 | E70: 5.00%
B71: 6 | C71: Meters | D71: 10 | E71: 10.00%
B72: 7 | C72: Information and Communication | D72: 5 | E72: 20.00%
B73: 8 | C73: Other Equipment | D73: 5 | E73: 20.00%
B74: 9 | C74: Vehicles | D74: 5 | E74: 20.00%
B75: 10 | C75: Furniture & Fittings | D75: 5 | E75: 20.00%

Sheet Regulatory Asset Base
B1: Go to Control Page
J5: ='Input Data'!G5 -> 2024 | K5: ='Input Data'!H5 -> 2025 | L5: ='Input Data'!I5 -> 2026 | M5: ='Input Data'!J5 -> 2027 | N5: ='Input Data'!K5 -> 2028 | O5: ='Input Data'!L5 -> 2029 | P5: ='Input Data'!M5 -> 2030 | Q5: ='Input Data'!N5 -> 2031 | R5: ='Input Data'!O5 -> 2032 | S5: ='Input Data'!P5 -> 2033 | T5: ='Input Data'!Q5 -> 2034 | U5: ='Input Data'!R5 -> 2035 | V5: ='Input Data'!S5 -> 2036 | W5: ='Input Data'!T5 -> 2037 | X5: ='Input Data'!U5 -> 2038 | Y5: ='Input Data'!V5 -> 2039 | Z5: ='Input Data'!W5 -> 2040 | AA5: ='Input Data'!X5 -> 2041 | AB5: ='Input Data'!Y5 -> 2042 | AC5: ='Input Data'!Z5 -> 2043 | AD5: ='Input Data'!AA5 -> 2044 | AE5: ='Input Data'!AB5 -> 2045 | AF5: ='Input Data'!AC5 -> 2046 | AG5: ='Input Data'!AD5 -> 2047 | AH5: ='Input Data'!AE5 -> 2048
B9: Starting CAPEX | J9: New CAPEX
B11: 1 | C11: Land
C13: Assets | D13: Description of Asset | E13: Unit | F13: Qty | G13: Value (Naira) | H13: Average (Naira) | J13: Value (Naira) | K13: Value (Naira) | L13: Value (Naira) | M13: Value (Naira) | N13: Value (Naira) | O13: Value (Naira) | P13: Value (Naira) | Q13: Value (Naira) | R13: Value (Naira) | S13: Value (Naira) | T13: Value (Naira) | U13: Value (Naira) | V13: Value (Naira) | W13: Value (Naira) | X13: Value (Naira) | Y13: Value (Naira) | Z13: Value (Naira) | AA13: Value (Naira) | AB13: Value (Naira) | AC13: Value (Naira) | AD13: Value (Naira) | AE13: Value (Naira) | AF13: Value (Naira) | AG13: Value (Naira) | AH13: Value (Naira)
B14: 1.1 | C14: Parking Lots | D14: Land | E14: Nos. | F14: 5 | G14: 30,000,000.00 | H14: =IFERROR(G14/F14," ") -> 6,000,000.00 | K14: 28,900,000.00 | L14: 0 | M14: 1,666,666.67 | N14: 0 | O14: 0 | P14: 0 | Q14: 0 | R14: 2,727,272.73 | S14: 0 | T14: 0 | U14: 0 | V14: 2,000,000.00 | W14: 1,764,705.88 | X14: 0 | Y14: 1,578,947.37 | Z14: 2,000,000.00 | AA14: 1,666,666.67 | AB14: 0 | AC14: 1,764,705.88 | AD14: 1,764,705.88 | AE14: 1,500,000.00 | AF14: 1,764,705.88 | AG14: 1,578,947.37 | AH14: 1,666,666.67
B15: 1.2 | C15: Transformer Store | D15: Land | E15: Nos. | F15: 2 | G15: 5,000,000.00 | H15: =IFERROR(G15/F15," ") -> 2,500,000.00 | K15: 0 | L15: 416,666.67 | M15: 333,333.33 | N15: 0 | O15: 333,333.33 | P15: 384,615.38 | Q15: 0 | R15: 0 | S15: 0 | T15: 263,157.89 | U15: 0 | V15: 500,000.00 | W15: 294,117.65 | X15: 384,615.38 | Y15: 0 | Z15: 454,545.45 | AA15: 250,000.00 | AB15: 250,000.00 | AC15: 0 | AD15: 0 | AE15: 0 | AF15: 384,615.38 | AG15: 0 | AH15: 294,117.65
B16: 1.3
B17: 1.4
B18: 1.5
B19: 1.6
B20: 1.7
B21: 1.8
B22: 1.9
C23: ="Total " & C11 & " Costs" -> Total Land Costs | E23: =SUM(E14:E22) -> 0 | F23: =SUM(F14:F22) -> 7 | G23: =SUM(G14:G22) -> 35,000,000.00 | H23: 5,000,000.00 | J23: =SUM(J14:J22) -> 0 | K23: =SUM(K14:K22) -> 28,900,000.00 | L23: =SUM(L14:L22) -> 416,666.67 | M23: =SUM(M14:M22) -> 2,000,000.00 | N23: =SUM(N14:N22) -> 0 | O23: =SUM(O14:O22) -> 333,333.33 | P23: =SUM(P14:P22) -> 384,615.38 | Q23: =SUM(Q14:Q22) -> 0 | R23: =SUM(R14:R22) -> 2,727,272.73 | S23: =SUM(S14:S22) -> 0 | T23: =SUM(T14:T22) -> 263,157.89 | U23: =SUM(U14:U22) -> 0 | V23: =SUM(V14:V22) -> 2,500,000.00 | W23: =SUM(W14:W22) -> 2,058,823.53 | X23: =SUM(X14:X22) -> 384,615.38 | Y23: =SUM(Y14:Y22) -> 1,578,947.37 | Z23: =SUM(Z14:Z22) -> 2,454,545.45 | AA23: =SUM(AA14:AA22) -> 1,916,666.67 | AB23: =SUM(AB14:AB22) -> 250,000.00 | AC23: =SUM(AC14:AC22) -> 1,764,705.88 | AD23: =SUM(AD14:AD22) -> 1,764,705.88 | AE23: =SUM(AE14:AE22) -> 1,500,000.00 | AF23: =SUM(AF14:AF22) -> 2,149,321.27 | AG23: =SUM(AG14:AG22) -> 1,578,947.37 | AH23: =SUM(AH14:AH22) -> 1,960,784.31
B25: 2 | C25: Building and Fixtures
C27: Assets | D27: Description of Asset | E27: Unit | F27: Qty | G27: Value (Naira) | H27: Average (Naira) | J27: Value (Naira) | K27: Value (Naira) | L27: Value (Naira) | M27: Value (Naira) | N27: Value (Naira) | O27: Value (Naira) | P27: Value (Naira) | Q27: Value (Naira) | R27: Value (Naira) | S27: Value (Naira) | T27: Value (Naira) | U27: Value (Naira) | V27: Value (Naira) | W27: Value (Naira) | X27: Value (Naira) | Y27: Value (Naira) | Z27: Value (Naira) | AA27: Value (Naira) | AB27: Value (Naira) | AC27: Value (Naira) | AD27: Value (Naira) | AE27: Value (Naira) | AF27: Value (Naira) | AG27: Value (Naira) | AH27: Value (Naira)
B28: 2.1 | C28: Business Units | D28: Building and Fixtures | E28: Nos. | F28: 5 | G28: 100,000,000.00 | H28: =IFERROR(G28/F28," ") -> 20,000,000.00 | K28: 0 | L28: 0 | M28: 10,000,000.00 | N28: 5,263,157.89 | O28: 0 | P28: 5,555,555.56 | Q28: 0 | R28: 10,000,000.00 | S28: 0 | T28: 10,000,000.00 | U28: 7,142,857.14 | V28: 6,666,666.67 | W28: 7,692,307.69 | X28: 7,692,307.69 | Y28: 0 | Z28: 6,250,000.00 | AA28: 9,090,909.09 | AB28: 5,000,000.00 | AC28: 10,000,000.00 | AD28: 5,263,157.89 | AE28: 6,250,000.00 | AF28: 0 | AG28: 8,333,333.33 | AH28: 0
B29: 2.2 | C29: Service Centers | D29: Building and Fixtures | E29: Nos. | F29: 100 | G29: 5,000,000,000.00 | H29: =IFERROR(G29/F29," ") -> 50,000,000.00 | K29: 454,545,454.55 | L29: 263,157,894.74 | M29: 0 | N29: 312,500,000.00 | O29: 0 | P29: 263,157,894.74 | Q29: 416,666,666.67 | R29: 333,333,333.33 | S29: 277,777,777.78 | T29: 263,157,894.74 | U29: 312,500,000.00 | V29: 0 | W29: 384,615,384.62 | X29: 0 | Y29: 454,545,454.55 | Z29: 0 | AA29: 263,157,894.74 | AB29: 0 | AC29: 0 | AD29: 250,000,000.00 | AE29: 277,777,777.78 | AF29: 454,545,454.55 | AG29: 0 | AH29: 333,333,333.33
B30: 2.3 | H30: =IFERROR(G30/F30," ") -> 
B31: 2.4
B32: 2.5
B33: 2.6
B34: 2.7
B35: 2.8
B36: 2.9
C37: ="Total " & C25 & " Costs" -> Total Building and Fixtures Costs | E37: =SUM(E28:E36) -> 0 | F37: =SUM(F28:F36) -> 105 | G37: =SUM(G28:G36) -> 5,100,000,000.00 | H37: 48,571,428.57 | J37: =SUM(J28:J36) -> 0 | K37: =SUM(K28:K36) -> 454,545,454.55 | L37: =SUM(L28:L36) -> 263,157,894.74 | M37: =SUM(M28:M36) -> 10,000,000.00 | N37: =SUM(N28:N36) -> 317,763,157.89 | O37: =SUM(O28:O36) -> 0 | P37: =SUM(P28:P36) -> 268,713,450.29 | Q37: =SUM(Q28:Q36) -> 416,666,666.67 | R37: =SUM(R28:R36) -> 343,333,333.33 | S37: =SUM(S28:S36) -> 277,777,777.78 | T37: =SUM(T28:T36) -> 273,157,894.74 | U37: =SUM(U28:U36) -> 319,642,857.14 | V37: =SUM(V28:V36) -> 6,666,666.67 | W37: =SUM(W28:W36) -> 392,307,692.31 | X37: =SUM(X28:X36) -> 7,692,307.69 | Y37: =SUM(Y28:Y36) -> 454,545,454.55 | Z37: =SUM(Z28:Z36) -> 6,250,000.00 | AA37: =SUM(AA28:AA36) -> 272,248,803.83 | AB37: =SUM(AB28:AB36) -> 5,000,000.00 | AC37: =SUM(AC28:AC36) -> 10,000,000.00 | AD37: =SUM(AD28:AD36) -> 255,263,157.89 | AE37: =SUM(AE28:AE36) -> 284,027,777.78 | AF37: =SUM(AF28:AF36) -> 454,545,454.55 | AG37: =SUM(AG28:AG36) -> 8,333,333.33 | AH37: =SUM(AH28:AH36) -> 333,333,333.33
B39: 3 | C39: Substations
C41: Assets | D41: Description of Asset | E41: Unit | F41: Qty | G41: Value (Naira) | H41: Average (Naira) | J41: Value (Naira) | K41: Value (Naira) | L41: Value (Naira) | M41: Value (Naira) | N41: Value (Naira) | O41: Value (Naira) | P41: Value (Naira) | Q41: Value (Naira) | R41: Value (Naira) | S41: Value (Naira) | T41: Value (Naira) | U41: Value (Naira) | V41: Value (Naira) | W41: Value (Naira) | X41: Value (Naira) | Y41: Value (Naira) | Z41: Value (Naira) | AA41: Value (Naira) | AB41: Value (Naira) | AC41: Value (Naira) | AD41: Value (Naira) | AE41: Value (Naira) | AF41: Value (Naira) | AG41: Value (Naira) | AH41: Value (Naira)
B42: 3.1 | C42: 2 by 15 MVA Substation | D42: Substations | E42: Nos. | F42: 12 | G42: 7,200,000,000.00 | H42: =IFERROR(G42/F42," ") -> 600,000,000.00 | K42: 1,666,666.67 | L42: 0 | N42: 0 | P42: 1,666,666.67 | R42: 1,666,666.67 | T42: 0 | V42: 1,875,000.00 | W42: 2,500,000.00 | X42: 0 | Y42: 1,666,666.67 | Z42: 0 | AA42: 0 | AB42: 3,000,000.00 | AC42: 2,142,857.14 | AD42: 0 | AE42: 2,142,857.14 | AF42: 2,500,000.00 | AG42: 1,764,705.88 | AH42: 1,578,947.37
B43: 3.2 | C43: 2 by 7.5 MVA Substation | D43: Substations | E43: Nos. | F43: 25 | G43: 9,000,000,000.00 | H43: =IFERROR(G43/F43," ") -> 360,000,000.00 | K43: 0 | L43: 250,000.00 | N43: 263,157.89 | P43: 0 | R43: 0 | T43: 333,333.33 | V43: 0 | W43: 0 | X43: 0 | Y43: 454,545.45 | Z43: 0 | AA43: 263,157.89 | AB43: 0 | AC43: 0 | AD43: 333,333.33 | AE43: 0 | AF43: 0 | AG43: 0 | AH43: 0
B44: 3.3
B45: 3.4
B46: 3.5
B47: 3.6
B48: 3.7
B49: 3.8
B50: 3.9
C51: ="Total " & C39 & " Costs" -> Total Substations Costs | E51: =SUM(E42:E50) -> 0 | F51: =SUM(F42:F50) -> 37 | G51: =SUM(G42:G50) -> 16,200,000,000.00 | H51: 437,837,837.84 | J51: =SUM(J42:J50) -> 0 | K51: =SUM(K42:K50) -> 1,666,666.67 | L51: 250,000.00 | M51: 0 | N51: 263,157.89 | O51: 0 | P51: 1,666,666.67 | Q51: 0 | R51: 1,666,666.67 | S51: 0 | T51: 333,333.33 | U51: 0 | V51: 1,875,000.00 | W51: 2,500,000.00 | X51: 0 | Y51: 2,121,212.12 | Z51: 0 | AA51: 263,157.89 | AB51: 3,000,000.00 | AC51: 2,142,857.14 | AD51: 333,333.33 | AE51: 2,142,857.14 | AF51: 2,500,000.00 | AG51: 1,764,705.88 | AH51: 1,578,947.37
B53: 4 | C53: Lines
C55: Assets | D55: Description of Asset | E55: Unit | F55: Qty | G55: Value (Naira) | H55: Average (Naira) | J55: Value (Naira) | K55: Value (Naira) | L55: Value (Naira) | M55: Value (Naira) | N55: Value (Naira) | O55: Value (Naira) | P55: Value (Naira) | Q55: Value (Naira) | R55: Value (Naira) | S55: Value (Naira) | T55: Value (Naira) | U55: Value (Naira) | V55: Value (Naira) | W55: Value (Naira) | X55: Value (Naira) | Y55: Value (Naira) | Z55: Value (Naira) | AA55: Value (Naira) | AB55: Value (Naira) | AC55: Value (Naira) | AD55: Value (Naira) | AE55: Value (Naira) | AF55: Value (Naira) | AG55: Value (Naira) | AH55: Value (Naira)
B56: 4.1 | C56: 33kV Lines | D56: Lines | E56: km | F56: 35,000 | G56: 7,400,000,000.00 | H56: =IFERROR(G56/F56," ") -> 211,428.57 | K56: 493,333,333.33 | L56: 616,666,666.67 | M56: 0 | N56: 0 | O56: 462,500,000.00 | P56: 0 | Q56: 0 | R56: 0 | S56: 435,294,117.65 | T56: 672,727,272.73 | U56: 0 | V56: 0 | W56: 672,727,272.73 | X56: 389,473,684.21 | Y56: 569,230,769.23 | Z56: 389,473,684.21 | AA56: 0 | AB56: 0 | AC56: 0 | AD56: 493,333,333.33 | AE56: 0 | AF56: 672,727,272.73 | AG56: 0 | AH56: 411,111,111.11
B57: 4.2 | C57: 11kV Lines | D57: Lines | E57: km | F57: 5000 | G57: 500,000,000.00 | H57: =IFERROR(G57/F57," ") -> 100,000.00 | K57: 0 | L57: 0 | M57: 26,315,789.47 | N57: 0 | O57: 0 | P57: 45,454,545.45 | Q57: 41,666,666.67 | R57: 0 | S57: 0 | T57: 31,250,000.00 | U57: 0 | V57: 0 | W57: 0 | X57: 50,000,000.00 | Y57: 0 | Z57: 45,454,545.45 | AA57: 45,454,545.45 | AB57: 0 | AC57: 0 | AD57: 27,777,777.78 | AE57: 26,315,789.47 | AF57: 0 | AG57: 0 | AH57: 0
B58: 4.3
B59: 4.4
B60: 4.5
B61: 4.6
B62: 4.7
B63: 4.8
B64: 4.9
C65: ="Total " & C53 & " Costs" -> Total Lines Costs | E65: =SUM(E56:E64) -> 0 | F65: =SUM(F56:F64) -> 40,000 | G65: =SUM(G56:G64) -> 7,900,000,000.00 | H65: 197,500.00 | J65: =SUM(J56:J64) -> 0 | K65: =SUM(K56:K64) -> 493,333,333.33 | L65: 616,666,666.67 | M65: 26,315,789.47 | N65: 0 | O65: 462,500,000.00 | P65: 45,454,545.45 | Q65: 41,666,666.67 | R65: 0 | S65: 435,294,117.65 | T65: 703,977,272.73 | U65: 0 | V65: 0 | W65: 672,727,272.73 | X65: 439,473,684.21 | Y65: 569,230,769.23 | Z65: 434,928,229.67 | AA65: 45,454,545.45 | AB65: 0 | AC65: 0 | AD65: 521,111,111.11 | AE65: 26,315,789.47 | AF65: 672,727,272.73 | AG65: 0 | AH65: 411,111,111.11
B67: 5 | C67: Transformers
C69: Assets | D69: Description of Asset | E69: Unit | F69: Qty | G69: Value (Naira) | H69: Average (Naira) | J69: Value (Naira) | K69: Value (Naira) | L69: Value (Naira) | M69: Value (Naira) | N69: Value (Naira) | O69: Value (Naira) | P69: Value (Naira) | Q69: Value (Naira) | R69: Value (Naira) | S69: Value (Naira) | T69: Value (Naira) | U69: Value (Naira) | V69: Value (Naira) | W69: Value (Naira) | X69: Value (Naira) | Y69: Value (Naira) | Z69: Value (Naira) | AA69: Value (Naira) | AB69: Value (Naira) | AC69: Value (Naira) | AD69: Value (Naira) | AE69: Value (Naira) | AF69: Value (Naira) | AG69: Value (Naira) | AH69: Value (Naira)
B70: 5.1 | C70: 33/0.415KV 300kVA Transformers | D70: Transformers | E70: Nos. | F70: 500 | G70: 12,000,000,000.00 | H70: =IFERROR(G70/F70," ") -> 24,000,000.00 | J70: 0 | K70: 923,076,923.08 | L70: 705,882,352.94 | M70: 923,076,923.08 | N70: 857,142,857.14 | O70: 0 | P70: 0 | Q70: 0 | R70: 1,200,000,000.00 | S70: 1,090,909,090.91 | T70: 0 | U70: 600,000,000.00 | V70: 0 | W70: 0 | X70: 666,666,666.67 | Y70: 0 | Z70: 0 | AA70: 0 | AB70: 0 | AC70: 631,578,947.37 | AD70: 800,000,000.00 | AE70: 0 | AF70: 0 | AG70: 0 | AH70: 631,578,947.37
B71: 5.2 | C71: 33/0.415KV 500kVA Transformers | D71: Transformers | E71: Nos. | F71: 400 | G71: 7,000,000,000.00 | H71: =IFERROR(G71/F71," ") -> 17,500,000.00 | K71: 0 | L71: 583,333,333.33 | M71: 583,333,333.33 | N71: 437,500,000.00 | O71: 437,500,000.00 | P71: 0 | Q71: 0 | R71: 500,000,000.00 | S71: 700,000,000.00 | T71: 0 | U71: 437,500,000.00 | V71: 0 | W71: 368,421,052.63 | X71: 0 | Y71: 0 | Z71: 583,333,333.33 | AA71: 500,000,000.00 | AB71: 0 | AC71: 466,666,666.67 | AD71: 500,000,000.00 | AE71: 538,461,538.46 | AF71: 0 | AG71: 0 | AH71: 437,500,000.00
B72: 5.3 | C72: 11/0.415KV 500kVA Transformers | D72: Transformers | E72: Nos. | F72: 400 | G72: 11,500,000,000.00 | H72: 28,750,000.00
B73: 5.4 | C73: 11/0.415KV 300kVA Transformers | D73: Transformers | E73: Nos. | F73: 400 | G73: 3,070,700,000.00 | H73: 7,676,750.00
B74: 5.5
B75: 5.6
B76: 5.7
B77: 5.8
B78: 5.9
C79: ="Total " & C67 & " Costs" -> Total Transformers Costs | E79: =SUM(E70:E78) -> 0 | F79: =SUM(F70:F78) -> 1,700 | G79: =SUM(G70:G78) -> 33,570,700,000.00 | H79: =IFERROR(G79/F79," ") -> 19,747,470.59 | J79: =SUM(J70:J78) -> 0 | K79: =SUM(K70:K78) -> 923,076,923.08 | L79: 1,289,215,686.27 | M79: 1,506,410,256.41 | N79: 1,294,642,857.14 | O79: 437,500,000.00 | P79: 0 | Q79: 0 | R79: 1,700,000,000.00 | S79: 1,790,909,090.91 | T79: 0 | U79: 1,037,500,000.00 | V79: 0 | W79: 368,421,052.63 | X79: 666,666,666.67 | Y79: 0 | Z79: 583,333,333.33 | AA79: 500,000,000.00 | AB79: 0 | AC79: 1,098,245,614.04 | AD79: 1,300,000,000.00 | AE79: 538,461,538.46 | AF79: 0 | AG79: 0 | AH79: 1,069,078,947.37
B81: 6 | C81: Meters
C83: Assets | D83: Description of Asset | E83: Unit | F83: Qty | G83: Value (Naira) | H83: Average (Naira) | J83: Value (Naira) | K83: Value (Naira) | L83: Value (Naira) | M83: Value (Naira) | N83: Value (Naira) | O83: Value (Naira) | P83: Value (Naira) | Q83: Value (Naira) | R83: Value (Naira) | S83: Value (Naira) | T83: Value (Naira) | U83: Value (Naira) | V83: Value (Naira) | W83: Value (Naira) | X83: Value (Naira) | Y83: Value (Naira) | Z83: Value (Naira) | AA83: Value (Naira) | AB83: Value (Naira) | AC83: Value (Naira) | AD83: Value (Naira) | AE83: Value (Naira) | AF83: Value (Naira) | AG83: Value (Naira) | AH83: Value (Naira)
B84: 6.1 | C84: 1 Phase Meter | D84: Meters | E84: Nos | F84: 56,897 | G84: 7,000,000,000.00 | H84: =IFERROR(G84/F84," ") -> 123,029.33 | K84: 0 | L84: 0 | M84: 0 | N84: 368,421,052.63 | O84: 0 | P84: 0 | Q84: 466,666,666.67 | R84: 636,363,636.36 | S84: 0 | T84: 368,421,052.63 | U84: 368,421,052.63 | V84: 0 | W84: 411,764,705.88 | X84: 0 | Y84: 411,764,705.88 | Z84: 0 | AA84: 437,500,000.00 | AB84: 411,764,705.88 | AC84: 350,000,000.00 | AD84: 350,000,000.00 | AE84: 0 | AF84: 0 | AG84: 500,000,000.00 | AH84: 0
B85: 6.2 | C85: 3 Phase Meter | D85: Meters | E85: Nos | F85: 13,537 | G85: 3,000,000,000.00 | H85: =IFERROR(G85/F85," ") -> 221,614.83 | K85: 200,000,000.00 | L85: 0 | M85: 0 | N85: 0 | O85: 150,000,000.00 | P85: 0 | Q85: 272,727,272.73 | R85: 0 | S85: 176,470,588.24 | T85: 166,666,666.67 | U85: 0 | V85: 0 | W85: 0 | X85: 0 | Y85: 166,666,666.67 | Z85: 0 | AA85: 0 | AB85: 200,000,000.00 | AC85: 0 | AD85: 272,727,272.73 | AE85: 250,000,000.00 | AF85: 230,769,230.77 | AG85: 0 | AH85: 0
B86: 6.3
B87: 6.4
B88: 6.5
B89: 6.6
B90: 6.7
B91: 6.8
B92: 6.9
C93: ="Total " & C81 & " Costs" -> Total Meters Costs | E93: =SUM(E84:E92) -> 0 | F93: =SUM(F84:F92) -> 70,434 | G93: =SUM(G84:G92) -> 10,000,000,000.00 | H93: =IFERROR(G93/F93," ") -> 141,976.89 | J93: =SUM(J84:J92) -> 0 | K93: =SUM(K84:K92) -> 200,000,000.00 | L93: =SUM(L84:L92) -> 0 | M93: =SUM(M84:M92) -> 0 | N93: =SUM(N84:N92) -> 368,421,052.63 | O93: =SUM(O84:O92) -> 150,000,000.00 | P93: =SUM(P84:P92) -> 0 | Q93: =SUM(Q84:Q92) -> 739,393,939.39 | R93: =SUM(R84:R92) -> 636,363,636.36 | S93: =SUM(S84:S92) -> 176,470,588.24 | T93: =SUM(T84:T92) -> 535,087,719.30 | U93: =SUM(U84:U92) -> 368,421,052.63 | V93: =SUM(V84:V92) -> 0 | W93: =SUM(W84:W92) -> 411,764,705.88 | X93: =SUM(X84:X92) -> 0 | Y93: =SUM(Y84:Y92) -> 578,431,372.55 | Z93: =SUM(Z84:Z92) -> 0 | AA93: =SUM(AA84:AA92) -> 437,500,000.00 | AB93: =SUM(AB84:AB92) -> 611,764,705.88 | AC93: =SUM(AC84:AC92) -> 350,000,000.00 | AD93: =SUM(AD84:AD92) -> 622,727,272.73 | AE93: =SUM(AE84:AE92) -> 250,000,000.00 | AF93: =SUM(AF84:AF92) -> 230,769,230.77 | AG93: =SUM(AG84:AG92) -> 500,000,000.00 | AH93: =SUM(AH84:AH92) -> 0
B95: 7 | C95: Information and Communication
C97: Assets | D97: Description of Asset | E97: Unit | F97: Qty | G97: Value (Naira) | H97: Average (Naira) | J97: Value (Naira) | K97: Value (Naira) | L97: Value (Naira) | M97: Value (Naira) | N97: Value (Naira) | O97: Value (Naira) | P97: Value (Naira) | Q97: Value (Naira) | R97: Value (Naira) | S97: Value (Naira) | T97: Value (Naira) | U97: Value (Naira) | V97: Value (Naira) | W97: Value (Naira) | X97: Value (Naira) | Y97: Value (Naira) | Z97: Value (Naira) | AA97: Value (Naira) | AB97: Value (Naira) | AC97: Value (Naira) | AD97: Value (Naira) | AE97: Value (Naira) | AF97: Value (Naira) | AG97: Value (Naira) | AH97: Value (Naira)
B98: 7.1 | C98: Computer | D98: Information and Communication | E98: Nos | F98: 100 | G98: 100,000,000.00 | H98: =IFERROR(G98/F98," ") -> 1,000,000.00 | K98: 0 | L98: 7,142,857.14 | M98: 0 | N98: 0 | O98: 10,000,000.00 | P98: 8,333,333.33 | Q98: 0 | R98: 7,692,307.69 | S98: 10,000,000.00 | T98: 7,142,857.14 | U98: 7,142,857.14 | V98: 7,692,307.69 | W98: 0 | X98: 10,000,000.00 | Y98: 5,263,157.89 | Z98: 6,666,666.67 | AA98: 7,692,307.69 | AB98: 7,692,307.69 | AC98: 0 | AD98: 0 | AE98: 0 | AF98: 6,666,666.67 | AG98: 5,555,555.56 | AH98: 0
B99: 7.2 | C99: Server | D99: Information and Communication | E99: Nos | F99: 4 | G99: 80,000,000.00 | H99: =IFERROR(G99/F99," ") -> 20,000,000.00 | K99: 0 | L99: 0 | M99: 0 | N99: 0 | O99: 0 | P99: 0 | Q99: 0 | R99: 6,153,846.15 | S99: 8,000,000.00 | T99: 0 | U99: 5,333,333.33 | V99: 0 | W99: 6,153,846.15 | X99: 0 | Y99: 0 | Z99: 5,000,000.00 | AA99: 8,000,000.00 | AB99: 0 | AC99: 0 | AD99: 5,000,000.00 | AE99: 0 | AF99: 6,153,846.15 | AG99: 8,000,000.00 | AH99: 4,210,526.32
B100: 7.3
B101: 7.4
B102: 7.5
B103: 7.6
B104: 7.7
B105: 7.8
B106: 7.9
C107: ="Total " & C95 & " Costs" -> Total Information and Communication Costs | E107: =SUM(E98:E106) -> 0 | F107: =SUM(F98:F106) -> 104 | G107: =SUM(G98:G106) -> 180,000,000.00 | H107: =IFERROR(G107/F107," ") -> 1,730,769.23 | J107: =SUM(J98:J106) -> 0 | K107: =SUM(K98:K106) -> 0 | L107: =SUM(L98:L106) -> 7,142,857.14 | M107: =SUM(M98:M106) -> 0 | N107: =SUM(N98:N106) -> 0 | O107: =SUM(O98:O106) -> 10,000,000.00 | P107: =SUM(P98:P106) -> 8,333,333.33 | Q107: =SUM(Q98:Q106) -> 0 | R107: =SUM(R98:R106) -> 13,846,153.85 | S107: =SUM(S98:S106) -> 18,000,000.00 | T107: =SUM(T98:T106) -> 7,142,857.14 | U107: =SUM(U98:U106) -> 12,476,190.48 | V107: =SUM(V98:V106) -> 7,692,307.69 | W107: =SUM(W98:W106) -> 6,153,846.15 | X107: =SUM(X98:X106) -> 10,000,000.00 | Y107: =SUM(Y98:Y106) -> 5,263,157.89 | Z107: =SUM(Z98:Z106) -> 11,666,666.67 | AA107: =SUM(AA98:AA106) -> 15,692,307.69 | AB107: =SUM(AB98:AB106) -> 7,692,307.69 | AC107: =SUM(AC98:AC106) -> 0 | AD107: =SUM(AD98:AD106) -> 5,000,000.00 | AE107: =SUM(AE98:AE106) -> 0 | AF107: =SUM(AF98:AF106) -> 12,820,512.82 | AG107: =SUM(AG98:AG106) -> 13,555,555.56 | AH107: =SUM(AH98:AH106) -> 4,210,526.32
B109: 8 | C109: Other Equipment
C111: Assets | D111: Description of Asset | E111: Unit | F111: Qty | G111: Value (Naira) | H111: Average (Naira) | J111: Value (Naira) | K111: Value (Naira) | L111: Value (Naira) | M111: Value (Naira) | N111: Value (Naira) | O111: Value (Naira) | P111: Value (Naira) | Q111: Value (Naira) | R111: Value (Naira) | S111: Value (Naira) | T111: Value (Naira) | U111: Value (Naira) | V111: Value (Naira) | W111: Value (Naira) | X111: Value (Naira) | Y111: Value (Naira) | Z111: Value (Naira) | AA111: Value (Naira) | AB111: Value (Naira) | AC111: Value (Naira) | AD111: Value (Naira) | AE111: Value (Naira) | AF111: Value (Naira) | AG111: Value (Naira) | AH111: Value (Naira)
B112: 8.1 | H112: =IFERROR(G112/F112," ") -> 
B113: 8.2 | H113: =IFERROR(G113/F113," ") -> 
B114: 8.3
B115: 8.4
B116: 8.5
B117: 8.6
B118: 8.7
B119: 8.8
B120: 8.9
C121: ="Total " & C109 & " Costs" -> Total Other Equipment Costs | E121: =SUM(E112:E120) -> 0 | F121: =SUM(F112:F120) -> 0 | G121: =SUM(G112:G120) -> 0 | H121: =SUM(H112:H120) -> 0 | J121: =SUM(J112:J120) -> 0 | K121: =SUM(K112:K120) -> 0 | L121: =SUM(L112:L120) -> 0 | M121: =SUM(M112:M120) -> 0 | N121: =SUM(N112:N120) -> 0 | O121: =SUM(O112:O120) -> 0 | P121: =SUM(P112:P120) -> 0 | Q121: =SUM(Q112:Q120) -> 0 | R121: =SUM(R112:R120) -> 0 | S121: =SUM(S112:S120) -> 0 | T121: =SUM(T112:T120) -> 0 | U121: =SUM(U112:U120) -> 0 | V121: =SUM(V112:V120) -> 0 | W121: =SUM(W112:W120) -> 0 | X121: =SUM(X112:X120) -> 0 | Y121: =SUM(Y112:Y120) -> 0 | Z121: =SUM(Z112:Z120) -> 0 | AA121: =SUM(AA112:AA120) -> 0 | AB121: =SUM(AB112:AB120) -> 0 | AC121: =SUM(AC112:AC120) -> 0 | AD121: =SUM(AD112:AD120) -> 0 | AE121: =SUM(AE112:AE120) -> 0 | AF121: =SUM(AF112:AF120) -> 0 | AG121: =SUM(AG112:AG120) -> 0 | AH121: =SUM(AH112:AH120) -> 0
B123: 9 | C123: Vehicles
C125: Assets | D125: Description of Asset | E125: Unit | F125: Qty | G125: Value (Naira) | H125: Average (Naira) | J125: Value (Naira) | K125: Value (Naira) | L125: Value (Naira) | M125: Value (Naira) | N125: Value (Naira) | O125: Value (Naira) | P125: Value (Naira) | Q125: Value (Naira) | R125: Value (Naira) | S125: Value (Naira) | T125: Value (Naira) | U125: Value (Naira) | V125: Value (Naira) | W125: Value (Naira) | X125: Value (Naira) | Y125: Value (Naira) | Z125: Value (Naira) | AA125: Value (Naira) | AB125: Value (Naira) | AC125: Value (Naira) | AD125: Value (Naira) | AE125: Value (Naira) | AF125: Value (Naira) | AG125: Value (Naira) | AH125: Value (Naira)
B126: 9.1 | C126: Salon Cars | D126: Vehicles | E126: Nos | F126: 34 | G126: 700,000,000.00 | H126: =IFERROR(G126/F126," ") -> 20,588,235.29 | K126: 36,842,105.26 | L126: 0 | M126: 0 | N126: 63,636,363.64 | O126: 0 | P126: 70,000,000.00 | Q126: 50,000,000.00 | R126: 53,846,153.85 | S126: 41,176,470.59 | T126: 0 | U126: 50,000,000.00 | V126: 50,000,000.00 | W126: 0 | X126: 0 | Y126: 0 | Z126: 63,636,363.64 | AA126: 0 | AB126: 46,666,666.67 | AC126: 63,636,363.64 | AD126: 46,666,666.67 | AE126: 0 | AF126: 46,666,666.67 | AG126: 70,000,000.00 | AH126: 0
B127: 9.2 | C127: Pick Ups | D127: Vehicles | E127: Nos | F127: 45 | G127: 2,230,000,000.00 | H127: =IFERROR(G127/F127," ") -> 49,555,555.56 | K127: 0 | L127: 111,500,000.00 | M127: 0 | N127: 159,285,714.29 | O127: 159,285,714.29 | P127: 139,375,000.00 | Q127: 0 | R127: 148,666,666.67 | S127: 0 | T127: 0 | U127: 123,888,888.89 | V127: 123,888,888.89 | W127: 0 | X127: 0 | Y127: 0 | Z127: 202,727,272.73 | AA127: 0 | AB127: 148,666,666.67 | AC127: 123,888,888.89 | AD127: 0 | AE127: 0 | AF127: 223,000,000.00 | AG127: 0 | AH127: 223,000,000.00
B128: 9.3
B129: 9.4
B130: 9.5
B131: 9.6
B132: 9.7
B133: 9.8
B134: 9.9
C135: ="Total " & C123 & " Costs" -> Total Vehicles Costs | E135: =SUM(E126:E134) -> 0 | F135: =SUM(F126:F134) -> 79 | G135: =SUM(G126:G134) -> 2,930,000,000.00 | H135: =IFERROR(G135/F135," ") -> 37,088,607.59 | J135: =SUM(J126:J134) -> 0 | K135: =SUM(K126:K134) -> 36,842,105.26 | L135: 111,500,000.00 | M135: 0 | N135: 222,922,077.92 | O135: 159,285,714.29 | P135: 209,375,000.00 | Q135: 50,000,000.00 | R135: 202,512,820.51 | S135: 41,176,470.59 | T135: 0 | U135: 173,888,888.89 | V135: 173,888,888.89 | W135: 0 | X135: 0 | Y135: 0 | Z135: 266,363,636.36 | AA135: 0 | AB135: 195,333,333.33 | AC135: 187,525,252.53 | AD135: 46,666,666.67 | AE135: 0 | AF135: 269,666,666.67 | AG135: 70,000,000.00 | AH135: 223,000,000.00
B137: 10 | C137: Furniture & Fittings
C139: Assets | D139: Description of Asset | E139: Unit | F139: Qty | G139: Value (Naira) | H139: Average (Naira) | J139: Value (Naira) | K139: Value (Naira) | L139: Value (Naira) | M139: Value (Naira) | N139: Value (Naira) | O139: Value (Naira) | P139: Value (Naira) | Q139: Value (Naira) | R139: Value (Naira) | S139: Value (Naira) | T139: Value (Naira) | U139: Value (Naira) | V139: Value (Naira) | W139: Value (Naira) | X139: Value (Naira) | Y139: Value (Naira) | Z139: Value (Naira) | AA139: Value (Naira) | AB139: Value (Naira) | AC139: Value (Naira) | AD139: Value (Naira) | AE139: Value (Naira) | AF139: Value (Naira) | AG139: Value (Naira) | AH139: Value (Naira)
B140: 10.1 | C140: Tables | D140: Furniture & Fittings | E140: Nos | F140: 23 | G140: 100,000,000.00 | H140: =IFERROR(G140/F140," ") -> 4,347,826.09 | K140: 5,555,555.56 | L140: 6,666,666.67 | M140: 0 | N140: 0 | O140: 0 | P140: 5,555,555.56 | Q140: 0 | R140: 5,882,352.94 | S140: 0 | T140: 7,142,857.14 | U140: 5,000,000.00 | V140: 0 | W140: 0 | X140: 6,250,000.00 | Y140: 0 | Z140: 0 | AA140: 6,250,000.00 | AB140: 7,692,307.69 | AC140: 6,250,000.00 | AD140: 7,692,307.69 | AE140: 7,692,307.69 | AF140: 6,250,000.00 | AG140: 8,333,333.33 | AH140: 6,250,000.00
B141: 10.2 | C141: Chairs | D141: Furniture & Fittings | E141: Nos | F141: 45 | G141: 340,000,000.00 | H141: =IFERROR(G141/F141," ") -> 7,555,555.56 | K141: 0 | L141: 0 | M141: 0 | N141: 0 | O141: 28,333,333.33 | P141: 34,000,000.00 | Q141: 24,285,714.29 | R141: 0 | S141: 0 | T141: 0 | U141: 34,000,000.00 | V141: 28,333,333.33 | W141: 0 | X141: 0 | Y141: 0 | Z141: 28,333,333.33 | AA141: 0 | AB141: 0 | AC141: 34,000,000.00 | AD141: 28,333,333.33 | AE141: 21,250,000.00 | AF141: 0 | AG141: 20,000,000.00 | AH141: 0
B142: 10.3
B143: 10.4
B144: 10.5
B145: 10.6
B146: 10.7
B147: 10.8
B148: 10.9
C149: ="Total " & C137 & " Costs" -> Total Furniture & Fittings Costs | E149: =SUM(E140:E148) -> 0 | F149: =SUM(F140:F148) -> 68 | G149: =SUM(G140:G148) -> 440,000,000.00 | H149: =IFERROR(G149/F149," ") -> 6,470,588.24 | J149: =SUM(J140:J148) -> 0 | K149: =SUM(K140:K148) -> 5,555,555.56 | L149: 6,666,666.67 | M149: 0 | N149: 0 | O149: 28,333,333.33 | P149: 39,555,555.56 | Q149: 24,285,714.29 | R149: 5,882,352.94 | S149: 0 | T149: 7,142,857.14 | U149: 39,000,000.00 | V149: 28,333,333.33 | W149: 0 | X149: 6,250,000.00 | Y149: 0 | Z149: 28,333,333.33 | AA149: 6,250,000.00 | AB149: 7,692,307.69 | AC149: 40,250,000.00 | AD149: 36,025,641.03 | AE149: 28,942,307.69 | AF149: 6,250,000.00 | AG149: 28,333,333.33 | AH149: 6,250,000.00
B153: 3 | C153: Asset Categorization
B155: 3.1 | C155: Assets Base Summary | E155: Unit | F155: Qty | G155: Value (Naira) | J155: Value (Naira) | K155: Value (Naira) | L155: Value (Naira) | M155: Value (Naira) | N155: Value (Naira) | O155: Value (Naira) | P155: Value (Naira) | Q155: Value (Naira) | R155: Value (Naira) | S155: Value (Naira) | T155: Value (Naira) | U155: Value (Naira) | V155: Value (Naira) | W155: Value (Naira) | X155: Value (Naira) | Y155: Value (Naira) | Z155: Value (Naira) | AA155: Value (Naira) | AB155: Value (Naira) | AC155: Value (Naira) | AD155: Value (Naira) | AE155: Value (Naira) | AF155: Value (Naira) | AG155: Value (Naira) | AH155: Value (Naira)
B156: 3.1.1 | C156: Land | E156: Nos | F156: =SUMIF($D$14:$D$149,C156,$F$14:$F$149) -> 7 | G156: =SUMIF($D$14:$D$149,$C156,G$14:G$149) -> 35,000,000.00 | J156: =SUMIF($D$14:$D$149,$C156,J$14:J$149) -> 0 | K156: 28,900,000.00 | L156: 416,666.67 | M156: 2,000,000.00 | N156: 0 | O156: 333,333.33 | P156: 384,615.38 | Q156: 0 | R156: 2,727,272.73 | S156: 0 | T156: 263,157.89 | U156: 0 | V156: 2,500,000.00 | W156: 2,058,823.53 | X156: 384,615.38 | Y156: 1,578,947.37 | Z156: 2,454,545.45 | AA156: 1,916,666.67 | AB156: 250,000.00 | AC156: 1,764,705.88 | AD156: 1,764,705.88 | AE156: 1,500,000.00 | AF156: 2,149,321.27 | AG156: 1,578,947.37 | AH156: 1,960,784.31
B157: 3.1.2 | C157: Building and Fixtures | E157: Nos | F157: =SUMIF($D$14:$D$149,C157,$F$14:$F$149) -> 105 | G157: =SUMIF($D$14:$D$149,$C157,G$14:G$149) -> 5,100,000,000.00 | J157: 0 | K157: 454,545,454.55 | L157: 263,157,894.74 | M157: 10,000,000.00 | N157: 317,763,157.89 | O157: 0 | P157: 268,713,450.29 | Q157: 416,666,666.67 | R157: 343,333,333.33 | S157: 277,777,777.78 | T157: 273,157,894.74 | U157: 319,642,857.14 | V157: 6,666,666.67 | W157: 392,307,692.31 | X157: 7,692,307.69 | Y157: 454,545,454.55 | Z157: 6,250,000.00 | AA157: 272,248,803.83 | AB157: 5,000,000.00 | AC157: 10,000,000.00 | AD157: 255,263,157.89 | AE157: 284,027,777.78 | AF157: 454,545,454.55 | AG157: 8,333,333.33 | AH157: 333,333,333.33
B158: 3.1.3 | C158: Substations | E158: Nos | F158: 37 | G158: 16,200,000,000.00 | J158: 0 | K158: 1,666,666.67 | L158: 250,000.00 | M158: 0 | N158: 263,157.89 | O158: 0 | P158: 1,666,666.67 | Q158: 0 | R158: 1,666,666.67 | S158: 0 | T158: 333,333.33 | U158: 0 | V158: 1,875,000.00 | W158: 2,500,000.00 | X158: 0 | Y158: 2,121,212.12 | Z158: 0 | AA158: 263,157.89 | AB158: 3,000,000.00 | AC158: 2,142,857.14 | AD158: 333,333.33 | AE158: 2,142,857.14 | AF158: 2,500,000.00 | AG158: 1,764,705.88 | AH158: 1,578,947.37
B159: 3.1.4 | C159: Lines | E159: Km | F159: 40,000 | G159: 7,900,000,000.00 | J159: 0 | K159: 493,333,333.33 | L159: 616,666,666.67 | M159: 26,315,789.47 | N159: 0 | O159: 462,500,000.00 | P159: 45,454,545.45 | Q159: 41,666,666.67 | R159: 0 | S159: 435,294,117.65 | T159: 703,977,272.73 | U159: 0 | V159: 0 | W159: 672,727,272.73 | X159: 439,473,684.21 | Y159: 569,230,769.23 | Z159: 434,928,229.67 | AA159: 45,454,545.45 | AB159: 0 | AC159: 0 | AD159: 521,111,111.11 | AE159: 26,315,789.47 | AF159: 672,727,272.73 | AG159: 0 | AH159: 411,111,111.11
B160: 3.1.5 | C160: Transformers | E160: Nos | F160: 1,700 | G160: 33,570,700,000.00 | J160: 0 | K160: 923,076,923.08 | L160: 1,289,215,686.27 | M160: 1,506,410,256.41 | N160: 1,294,642,857.14 | O160: 437,500,000.00 | P160: 0 | Q160: 0 | R160: 1,700,000,000.00 | S160: 1,790,909,090.91 | T160: 0 | U160: 1,037,500,000.00 | V160: 0 | W160: 368,421,052.63 | X160: 666,666,666.67 | Y160: 0 | Z160: 583,333,333.33 | AA160: 500,000,000.00 | AB160: 0 | AC160: 1,098,245,614.04 | AD160: 1,300,000,000.00 | AE160: 538,461,538.46 | AF160: 0 | AG160: 0 | AH160: 1,069,078,947.37
B161: 3.1.6 | C161: Meters | E161: Nos | F161: 70,434 | G161: 10,000,000,000.00 | J161: 0 | K161: 200,000,000.00 | L161: 0 | M161: 0 | N161: 368,421,052.63 | O161: 150,000,000.00 | P161: 0 | Q161: 739,393,939.39 | R161: 636,363,636.36 | S161: 176,470,588.24 | T161: 535,087,719.30 | U161: 368,421,052.63 | V161: 0 | W161: 411,764,705.88 | X161: 0 | Y161: 578,431,372.55 | Z161: 0 | AA161: 437,500,000.00 | AB161: 611,764,705.88 | AC161: 350,000,000.00 | AD161: 622,727,272.73 | AE161: 250,000,000.00 | AF161: 230,769,230.77 | AG161: 500,000,000.00 | AH161: 0
B162: 3.1.7 | C162: Information and Communication | E162: Nos | F162: 104 | G162: 180,000,000.00 | J162: 0 | K162: 0 | L162: 7,142,857.14 | M162: 0 | N162: 0 | O162: 10,000,000.00 | P162: 8,333,333.33 | Q162: 0 | R162: 13,846,153.85 | S162: 18,000,000.00 | T162: 7,142,857.14 | U162: 12,476,190.48 | V162: 7,692,307.69 | W162: 6,153,846.15 | X162: 10,000,000.00 | Y162: 5,263,157.89 | Z162: 11,666,666.67 | AA162: 15,692,307.69 | AB162: 7,692,307.69 | AC162: 0 | AD162: 5,000,000.00 | AE162: 0 | AF162: 12,820,512.82 | AG162: 13,555,555.56 | AH162: 4,210,526.32
B163: 3.1.8 | C163: Other Equipment | E163: Nos | F163: 0 | G163: 0 | J163: 0 | K163: 0 | L163: 0 | M163: 0 | N163: 0 | O163: 0 | P163: 0 | Q163: 0 | R163: 0 | S163: 0 | T163: 0 | U163: 0 | V163: 0 | W163: 0 | X163: 0 | Y163: 0 | Z163: 0 | AA163: 0 | AB163: 0 | AC163: 0 | AD163: 0 | AE163: 0 | AF163: 0 | AG163: 0 | AH163: 0
B164: 3.1.9 | C164: Vehicles | E164: Nos | F164: 79 | G164: 2,930,000,000.00 | J164: 0 | K164: 36,842,105.26 | L164: 111,500,000.00 | M164: 0 | N164: 222,922,077.92 | O164: 159,285,714.29 | P164: 209,375,000.00 | Q164: 50,000,000.00 | R164: 202,512,820.51 | S164: 41,176,470.59 | T164: 0 | U164: 173,888,888.89 | V164: 173,888,888.89 | W164: 0 | X164: 0 | Y164: 0 | Z164: 266,363,636.36 | AA164: 0 | AB164: 195,333,333.33 | AC164: 187,525,252.53 | AD164: 46,666,666.67 | AE164: 0 | AF164: 269,666,666.67 | AG164: 70,000,000.00 | AH164: 223,000,000.00
B165: 3.1.10 | C165: Furniture & Fittings | E165: Nos | F165: 68 | G165: 440,000,000.00 | J165: 0 | K165: 5,555,555.56 | L165: 6,666,666.67 | M165: 0 | N165: 0 | O165: 28,333,333.33 | P165: 39,555,555.56 | Q165: 24,285,714.29 | R165: 5,882,352.94 | S165: 0 | T165: 7,142,857.14 | U165: 39,000,000.00 | V165: 28,333,333.33 | W165: 0 | X165: 6,250,000.00 | Y165: 0 | Z165: 28,333,333.33 | AA165: 6,250,000.00 | AB165: 7,692,307.69 | AC165: 40,250,000.00 | AD165: 36,025,641.03 | AE165: 28,942,307.69 | AF165: 6,250,000.00 | AG165: 28,333,333.33 | AH165: 6,250,000.00
C166: TOTAL ASSET COST | G166: =SUM(G154:G165) -> 76,355,700,000.00 | H166: =SUM(H154:H165) -> 0 | I166: 0 | J166: 0 | K166: =SUM(K154:K165) -> 2,143,920,038.44 | L166: 2,295,016,438.15 | M166: =SUM(M154:M165) -> 1,544,726,045.88 | N166: =SUM(N154:N165) -> 2,204,012,303.49 | O166: =SUM(O154:O165) -> 1,247,952,380.95 | P166: =SUM(P154:P165) -> 573,483,166.69 | Q166: =SUM(Q154:Q165) -> 1,272,012,987.01 | R166: =SUM(R154:R165) -> 2,906,332,236.39 | S166: =SUM(S154:S165) -> 2,739,628,045.16 | T166: =SUM(T154:T165) -> 1,527,105,092.28 | U166: =SUM(U154:U165) -> 1,950,928,989.14 | V166: =SUM(V154:V165) -> 220,956,196.58 | W166: =SUM(W154:W165) -> 1,855,933,393.23 | X166: =SUM(X154:X165) -> 1,130,467,273.95 | Y166: =SUM(Y154:Y165) -> 1,611,170,913.71 | Z166: =SUM(Z154:Z165) -> 1,333,329,744.82 | AA166: =SUM(AA154:AA165) -> 1,279,325,481.54 | AB166: =SUM(AB154:AB165) -> 830,732,654.60 | AC166: =SUM(AC154:AC165) -> 1,689,928,429.59 | AD166: =SUM(AD154:AD165) -> 2,788,891,888.64 | AE166: =SUM(AE154:AE165) -> 1,131,390,270.55 | AF166: =SUM(AF154:AF165) -> 1,651,428,458.80 | AG166: =SUM(AG154:AG165) -> 623,565,875.47 | AH166: =SUM(AH154:AH165) -> 2,050,523,649.81

Sheet Regulated OPEX
B1: Go to Control Page
B5: No | C5: Item | D5: Type | E5: Unit | F5: Constant | G5: ='Regulatory Asset Base'!J5 -> 2024 | H5: =G5+1 -> 2025 | I5: =H5+1 -> 2026 | J5: 2027 | K5: 2028 | L5: 2029 | M5: 2030 | N5: 2031 | O5: 2032 | P5: 2033 | Q5: 2034 | R5: 2035 | S5: 2036 | T5: 2037 | U5: 2038 | V5: 2039 | W5: 2040 | X5: 2041 | Y5: 2042 | Z5: 2043 | AA5: 2044 | AB5: 2045 | AC5: 2046 | AD5: 2047 | AE5: 2048
B10: 1 | C10: Operating Expenses
C12: Operation Expenses | E12: Naira | G12: 22,100,000 | H12: 88,700,000 | I12: 95,100,000 | J12: 78,700,000 | K12: 48,600,000 | L12: 23,600,000 | M12: 88,700,000 | N12: 29,600,000 | O12: 72,900,000 | P12: 82,100,000 | Q12: 66,400,000 | R12: 72,900,000 | S12: 32,000,000 | T12: 77,300,000 | U12: 44,900,000 | V12: 13,300,000 | W12: 10,300,000 | X12: 41,100,000 | Y12: 5,200,000 | Z12: 29,600,000 | AA12: 68,900,000 | AB12: 1,800,000 | AC12: 61,400,000 | AD12: 15,800,000 | AE12: 88,100,000
C13: Operating Labour | E13: Naira | G13: 33,800,000 | H13: 10,800,000 | I13: 42,100,000 | J13: 98,200,000 | K13: 39,700,000 | L13: 35,800,000 | M13: 17,000,000 | N13: 53,900,000 | O13: 23,800,000 | P13: 77,900,000 | Q13: 72,900,000 | R13: 63,600,000 | S13: 4,100,000 | T13: 59,500,000 | U13: 12,300,000 | V13: 61,400,000 | W13: 68,800,000 | X13: 42,200,000 | Y13: 47,200,000 | Z13: 64,600,000 | AA13: 4,800,000 | AB13: 48,500,000 | AC13: 96,900,000 | AD13: 79,200,000 | AE13: 49,800,000
C14: Station/Sub-Station Buildings and Fixtures Expenses | E14: Naira | G14: 73,300,000 | H14: 92,500,000 | I14: 95,300,000 | J14: 73,700,000 | K14: 79,200,000 | L14: 91,000,000 | M14: 17,600,000 | N14: 12,800,000 | O14: 35,300,000 | P14: 83,400,000 | Q14: 87,900,000 | R14: 75,900,000 | S14: 95,400,000 | T14: 35,500,000 | U14: 40,900,000 | V14: 39,000,000 | W14: 34,800,000 | X14: 93,100,000 | Y14: 86,600,000 | Z14: 35,700,000 | AA14: 8,600,000 | AB14: 76,200,000 | AC14: 21,400,000 | AD14: 39,900,000 | AE14: 54,000,000
C15: Station/Sub-Station Equipments - Operating Supplies and Expenses | E15: Naira | G15: 7,200,000 | H15: 82,500,000 | I15: 48,100,000 | J15: 56,000,000 | K15: 28,900,000 | L15: 80,400,000 | M15: 34,100,000 | N15: 72,300,000 | O15: 69,600,000 | P15: 6,300,000 | Q15: 43,100,000 | R15: 48,300,000 | S15: 1,700,000 | T15: 18,500,000 | U15: 67,300,000 | V15: 40,700,000 | W15: 95,400,000 | X15: 72,800,000 | Y15: 1,500,000 | Z15: 60,000,000 | AA15: 89,200,000 | AB15: 88,700,000 | AC15: 73,500,000 | AD15: 70,300,000 | AE15: 12,300,000
C16: Overhead Lines Cost - Supplies and Expenses | E16: Naira | G16: 28,800,000 | H16: 55,400,000 | I16: 3,800,000 | J16: 6,000,000 | K16: 12,400,000 | L16: 71,100,000 | M16: 5,000,000 | N16: 85,500,000 | O16: 18,800,000 | P16: 51,200,000 | Q16: 63,100,000 | R16: 76,800,000 | S16: 93,100,000 | T16: 34,100,000 | U16: 23,900,000 | V16: 47,900,000 | W16: 2,600,000 | X16: 5,600,000 | Y16: 10,800,000 | Z16: 91,700,000 | AA16: 17,400,000 | AB16: 1,200,000 | AC16: 64,000,000 | AD16: 65,800,000 | AE16: 81,400,000
C17: Street Lighting and Signal Systems (Street Furniture) Expenses | E17: Naira | G17: 30,100,000 | H17: 93,200,000 | I17: 23,100,000 | J17: 94,400,000 | K17: 30,800,000 | L17: 19,800,000 | M17: 84,800,000 | N17: 64,200,000 | O17: 83,900,000 | P17: 15,100,000 | Q17: 67,300,000 | R17: 73,900,000 | S17: 99,200,000 | T17: 11,400,000 | U17: 12,700,000 | V17: 87,700,000 | W17: 92,900,000 | X17: 70,100,000 | Y17: 56,800,000 | Z17: 53,500,000 | AA17: 67,800,000 | AB17: 29,700,000 | AC17: 1,600,000 | AD17: 4,500,000 | AE17: 6,000,000
C18: Meter Expenses | E18: Naira | G18: 87,100,000 | H18: 5,900,000 | I18: 49,200,000 | J18: 50,900,000 | K18: 43,200,000 | L18: 34,100,000 | M18: 92,200,000 | N18: 98,200,000 | O18: 91,300,000 | P18: 700,000 | Q18: 27,200,000 | R18: 89,900,000 | S18: 81,200,000 | T18: 26,100,000 | U18: 82,300,000 | V18: 98,800,000 | W18: 25,300,000 | X18: 34,100,000 | Y18: 18,400,000 | Z18: 17,600,000 | AA18: 65,800,000 | AB18: 71,400,000 | AC18: 94,400,000 | AD18: 82,900,000 | AE18: 27,600,000
C19: Customer Installations - Materials Expenses | E19: Naira | G19: 57,100,000 | H19: 93,100,000 | I19: 95,300,000 | J19: 69,400,000 | K19: 16,000,000 | L19: 53,000,000 | M19: 76,000,000 | N19: 19,000,000 | O19: 1,400,000 | P19: 66,200,000 | Q19: 6,600,000 | R19: 3,100,000 | S19: 19,200,000 | T19: 58,300,000 | U19: 87,500,000 | V19: 4,500,000 | W19: 56,300,000 | X19: 39,100,000 | Y19: 55,300,000 | Z19: 34,300,000 | AA19: 46,600,000 | AB19: 30,800,000 | AC19: 3,700,000 | AD19: 99,700,000 | AE19: 6,100,000
C20: Rent | E20: Naira | G20: 28,600,000 | H20: 98,800,000 | I20: 14,600,000 | J20: 57,800,000 | K20: 86,900,000 | L20: 28,600,000 | M20: 9,300,000 | N20: 65,000,000 | O20: 24,800,000 | P20: 66,200,000 | Q20: 78,200,000 | R20: 85,300,000 | S20: 24,800,000 | T20: 15,100,000 | U20: 87,300,000 | V20: 43,000,000 | W20: 97,700,000 | X20: 59,100,000 | Y20: 3,000,000 | Z20: 1,300,000 | AA20: 87,600,000 | AB20: 99,600,000 | AC20: 36,900,000 | AD20: 48,500,000 | AE20: 1,400,000
C21: Miscellaneous Distribution Expenses | E21: Naira | G21: 94,200,000 | H21: 60,100,000 | I21: 36,100,000 | J21: 23,300,000 | K21: 81,200,000 | L21: 67,100,000 | M21: 48,900,000 | N21: 47,600,000 | O21: 88,100,000 | P21: 78,500,000 | Q21: 86,600,000 | R21: 71,500,000 | S21: 88,500,000 | T21: 48,300,000 | U21: 10,700,000 | V21: 20,600,000 | W21: 20,400,000 | X21: 12,700,000 | Y21: 60,000,000 | Z21: 49,100,000 | AA21: 40,900,000 | AB21: 59,300,000 | AC21: 76,300,000 | AD21: 97,600,000 | AE21: 46,300,000
C22: Total Operation Expenes | E22: Naira | G22: =SUM(G12:G21) -> 462,300,000 | H22: =SUM(H12:H21) -> 681,000,000 | I22: 502,700,000 | J22: 608,400,000 | K22: 466,900,000 | L22: 504,500,000 | M22: 473,600,000 | N22: 548,100,000 | O22: 509,900,000 | P22: 527,600,000 | Q22: 599,300,000 | R22: 661,200,000 | S22: 539,200,000 | T22: 384,100,000 | U22: 469,800,000 | V22: 456,900,000 | W22: 504,500,000 | X22: 469,900,000 | Y22: 344,800,000 | Z22: 437,400,000 | AA22: 497,600,000 | AB22: 507,200,000 | AC22: 530,100,000 | AD22: 604,200,000 | AE22: 373,000,000
B24: 2 | C24: Maintenance Expenses
C26: Maintenance Expenses | E26: Naira | G26: 67,000,000 | H26: 11,100,000 | I26: 9,700,000 | J26: 94,500,000 | K26: 78,500,000 | L26: 55,500,000 | M26: 300,000 | N26: 56,500,000 | O26: 93,900,000 | P26: 21,300,000 | Q26: 64,500,000 | R26: 94,200,000 | S26: 44,700,000 | T26: 30,300,000 | U26: 92,600,000 | V26: 28,700,000 | W26: 91,900,000 | X26: 55,400,000 | Y26: 53,800,000 | Z26: 17,900,000 | AA26: 8,400,000 | AB26: 4,800,000 | AC26: 67,400,000 | AD26: 83,600,000 | AE26: 59,500,000
C27: Maintenance Labour | E27: Naira | G27: 100,000 | H27: 74,800,000 | I27: 71,000,000 | J27: 28,700,000 | K27: 11,000,000 | L27: 23,800,000 | M27: 68,800,000 | N27: 18,000,000 | O27: 31,400,000 | P27: 50,300,000 | Q27: 61,900,000 | R27: 46,900,000 | S27: 38,600,000 | T27: 81,300,000 | U27: 37,400,000 | V27: 92,800,000 | W27: 34,100,000 | X27: 9,400,000 | Y27: 67,300,000 | Z27: 22,600,000 | AA27: 92,900,000 | AB27: 93,700,000 | AC27: 74,800,000 | AD27: 98,300,000 | AE27: 8,200,000
C28: Maintenance of Building & Structures - Plant | E28: Naira | G28: 81,400,000 | H28: 33,400,000 | I28: 85,400,000 | J28: 79,400,000 | K28: 1,800,000 | L28: 77,700,000 | M28: 71,200,000 | N28: 95,500,000 | O28: 27,700,000 | P28: 11,500,000 | Q28: 14,100,000 | R28: 92,200,000 | S28: 48,700,000 | T28: 17,600,000 | U28: 21,800,000 | V28: 14,100,000 | W28: 300,000 | X28: 59,600,000 | Y28: 14,300,000 | Z28: 24,400,000 | AA28: 62,900,000 | AB28: 24,800,000 | AC28: 2,700,000 | AD28: 94,000,000 | AE28: 38,200,000
C29: Maintenance of Building & Structures - Office & Others | E29: Naira | G29: 84,600,000 | H29: 3,400,000 | I29: 49,400,000 | J29: 3,500,000 | K29: 81,500,000 | L29: 74,600,000 | M29: 33,200,000 | N29: 21,000,000 | O29: 35,300,000 | P29: 94,200,000 | Q29: 44,100,000 | R29: 2,000,000 | S29: 47,100,000 | T29: 80,500,000 | U29: 14,200,000 | V29: 51,200,000 | W29: 67,400,000 | X29: 500,000 | Y29: 95,700,000 | Z29: 19,500,000 | AA29: 90,700,000 | AB29: 40,300,000 | AC29: 50,800,000 | AD29: 11,800,000 | AE29: 16,000,000
C30: Maintenance of Station/Sub-Station Equipment | E30: Naira | G30: 20,300,000 | H30: 55,900,000 | I30: 95,800,000 | J30: 62,000,000 | K30: 32,800,000 | L30: 19,500,000 | M30: 54,500,000 | N30: 56,500,000 | O30: 31,500,000 | P30: 83,000,000 | Q30: 74,400,000 | R30: 3,100,000 | S30: 45,900,000 | T30: 76,700,000 | U30: 84,000,000 | V30: 19,300,000 | W30: 29,800,000 | X30: 66,700,000 | Y30: 38,800,000 | Z30: 27,900,000 | AA30: 88,700,000 | AB30: 26,100,000 | AC30: 96,400,000 | AD30: 21,900,000 | AE30: 10,200,000
C31: Maintenance of Overhead Lines | E31: Naira | G31: 92,000,000 | H31: 92,000,000 | I31: 18,600,000 | J31: 96,000,000 | K31: 12,400,000 | L31: 63,600,000 | M31: 91,900,000 | N31: 43,800,000 | O31: 73,900,000 | P31: 96,000,000 | Q31: 39,900,000 | R31: 27,300,000 | S31: 1,200,000 | T31: 88,400,000 | U31: 67,900,000 | V31: 20,600,000 | W31: 8,400,000 | X31: 77,900,000 | Y31: 92,300,000 | Z31: 9,200,000 | AA31: 8,000,000 | AB31: 34,200,000 | AC31: 6,600,000 | AD31: 52,400,000 | AE31: 70,500,000
C32: Maintenance of Underground Lines | E32: Naira | G32: 39,200,000 | H32: 32,600,000 | I32: 58,000,000 | J32: 28,400,000 | K32: 84,700,000 | L32: 25,000,000 | M32: 40,600,000 | N32: 27,200,000 | O32: 70,900,000 | P32: 85,500,000 | Q32: 9,300,000 | R32: 50,100,000 | S32: 2,700,000 | T32: 54,500,000 | U32: 87,200,000 | V32: 98,500,000 | W32: 99,400,000 | X32: 30,200,000 | Y32: 37,800,000 | Z32: 20,100,000 | AA32: 83,100,000 | AB32: 57,700,000 | AC32: 7,500,000 | AD32: 93,500,000 | AE32: 24,400,000
C33: Maintenance of Distribution/Line Transformers | E33: Naira | G33: 60,500,000 | H33: 23,100,000 | I33: 97,100,000 | J33: 77,000,000 | K33: 99,300,000 | L33: 70,500,000 | M33: 9,200,000 | N33: 23,100,000 | O33: 80,600,000 | P33: 13,500,000 | Q33: 20,400,000 | R33: 60,100,000 | S33: 11,100,000 | T33: 85,500,000 | U33: 97,800,000 | V33: 86,900,000 | W33: 90,900,000 | X33: 61,700,000 | Y33: 98,700,000 | Z33: 89,200,000 | AA33: 100,000 | AB33: 11,300,000 | AC33: 10,500,000 | AD33: 66,600,000 | AE33: 76,100,000
C34: Maintenance of Street Lighting and Signal System | E34: Naira | G34: 31,600,000 | H34: 28,100,000 | I34: 61,200,000 | J34: 54,900,000 | K34: 73,900,000 | L34: 19,600,000 | M34: 75,400,000 | N34: 67,700,000 | O34: 95,200,000 | P34: 60,900,000 | Q34: 30,300,000 | R34: 14,300,000 | S34: 82,200,000 | T34: 64,200,000 | U34: 100,000,000 | V34: 50,700,000 | W34: 2,800,000 | X34: 71,000,000 | Y34: 97,800,000 | Z34: 55,300,000 | AA34: 14,400,000 | AB34: 43,100,000 | AC34: 85,200,000 | AD34: 61,700,000 | AE34: 9,300,000
C35: Maintenance of Meters | E35: Naira | G35: 8,200,000 | H35: 52,000,000 | I35: 51,700,000 | J35: 75,600,000 | K35: 77,100,000 | L35: 6,600,000 | M35: 67,000,000 | N35: 62,000,000 | O35: 91,100,000 | P35: 56,100,000 | Q35: 11,100,000 | R35: 66,400,000 | S35: 56,000,000 | T35: 19,700,000 | U35: 55,200,000 | V35: 13,900,000 | W35: 23,300,000 | X35: 22,200,000 | Y35: 64,600,000 | Z35: 22,000,000 | AA35: 26,700,000 | AB35: 11,600,000 | AC35: 80,300,000 | AD35: 55,600,000 | AE35: 44,100,000
C36: Maintenance of Billing and Collection Equipment | E36: Naira | G36: 18,400,000 | H36: 1,900,000 | I36: 70,600,000 | J36: 32,700,000 | K36: 26,300,000 | L36: 100,000,000 | M36: 81,800,000 | N36: 11,600,000 | O36: 57,700,000 | P36: 87,100,000 | Q36: 95,700,000 | R36: 80,300,000 | S36: 5,000,000 | T36: 61,400,000 | U36: 49,100,000 | V36: 40,400,000 | W36: 41,200,000 | X36: 100,000,000 | Y36: 88,600,000 | Z36: 9,000,000 | AA36: 75,000,000 | AB36: 78,200,000 | AC36: 59,600,000 | AD36: 69,300,000 | AE36: 34,200,000
C37: Maintenance of Equipment on Customers Premises | E37: Naira | G37: 77,900,000 | H37: 33,400,000 | I37: 9,400,000 | J37: 5,400,000 | K37: 4,000,000 | L37: 35,200,000 | M37: 68,700,000 | N37: 13,400,000 | O37: 6,300,000 | P37: 34,000,000 | Q37: 85,300,000 | R37: 47,400,000 | S37: 54,200,000 | T37: 95,400,000 | U37: 66,300,000 | V37: 34,100,000 | W37: 58,500,000 | X37: 32,900,000 | Y37: 72,200,000 | Z37: 71,000,000 | AA37: 6,700,000 | AB37: 80,900,000 | AC37: 57,900,000 | AD37: 76,000,000 | AE37: 46,600,000
C38: Miscellaneous Maintenance Expenses | E38: Naira | G38: 88,000,000 | H38: 93,700,000 | I38: 55,800,000 | J38: 29,200,000 | K38: 11,600,000 | L38: 22,600,000 | M38: 25,900,000 | N38: 40,700,000 | O38: 7,900,000 | P38: 28,700,000 | Q38: 90,500,000 | R38: 3,200,000 | S38: 7,100,000 | T38: 50,000,000 | U38: 69,500,000 | V38: 34,500,000 | W38: 22,300,000 | X38: 57,300,000 | Y38: 26,300,000 | Z38: 9,600,000 | AA38: 63,200,000 | AB38: 57,900,000 | AC38: 88,900,000 | AD38: 2,900,000 | AE38: 5,600,000
C39: Total Maintenance Expense | E39: Naira | G39: =SUM(G26:G38) -> 669,200,000 | H39: =SUM(H26:H38) -> 535,400,000 | I39: 733,700,000 | J39: 667,300,000 | K39: 594,900,000 | L39: 594,200,000 | M39: 688,500,000 | N39: 537,000,000 | O39: 703,400,000 | P39: 722,100,000 | Q39: 641,500,000 | R39: 587,500,000 | S39: 444,500,000 | T39: 805,500,000 | U39: 843,000,000 | V39: 585,700,000 | W39: 570,300,000 | X39: 644,800,000 | Y39: 848,200,000 | Z39: 397,700,000 | AA39: 620,800,000 | AB39: 564,600,000 | AC39: 688,600,000 | AD39: 787,600,000 | AE39: 442,900,000
C41: Total Operation and Mainenance Expense | E41: Naira | G41: =G22+G39 -> 1,131,500,000 | H41: =H22+H39 -> 1,216,400,000 | I41: 1,236,400,000 | J41: 1,275,700,000 | K41: 1,061,800,000 | L41: 1,098,700,000 | M41: 1,162,100,000 | N41: 1,085,100,000 | O41: 1,213,300,000 | P41: 1,249,700,000 | Q41: 1,240,800,000 | R41: 1,248,700,000 | S41: 983,700,000 | T41: 1,189,600,000 | U41: 1,312,800,000 | V41: 1,042,600,000 | W41: 1,074,800,000 | X41: 1,114,700,000 | Y41: 1,193,000,000 | Z41: 835,100,000 | AA41: 1,118,400,000 | AB41: 1,071,800,000 | AC41: =AC22+AC39 -> 1,218,700,000 | AD41: 1,391,800,000 | AE41: 815,900,000

Sheet -Calculations-->
B1: Go to Control Page
B4: Sheet No | C4: Sheet Name | D4: Sheet Function
B5: 9 | C5: Gen and Trans | D5: Calculates Generation and Transmission Costs
B6: 10 | C6: Asset Depreciation | D6: This is where the assets are depreciated and the Return of Capital and Return on Capital is calculated
B7: =B6+1 -> 11 | C7: Tariff Calculation | D7: This sheet shows how the tariff are derived
B8: =B7+1 -> 12 | C8: Tariff | D8: This sheet shows the final tariff

Sheet Gen and Trans
B1: Go to Control Page
B5: No | C5: Item | D5: Type | E5: Unit | F5: Constant | G5: ='Input Data'!G5 -> 2024 | H5: =G5+1 -> 2025 | I5: =H5+1 -> 2026 | J5: 2027 | K5: 2028 | L5: 2029 | M5: 2030 | N5: 2031 | O5: 2032 | P5: 2033 | Q5: 2034 | R5: 2035 | S5: 2036 | T5: 2037 | U5: 2038 | V5: 2039 | W5: 2040 | X5: 2041 | Y5: 2042 | Z5: 2043 | AA5: 2044 | AB5: 2045 | AC5: 2046 | AD5: 2047 | AE5: 2048
B8: 1 | C8: Energy Flow
C10: Energy Delivered to Disco | E10: MWh | G10: ='Input Data'!G41*'Input Data'!G42*'Input Data'!$F$15 -> 1,227,240 | H10: ='Input Data'!H41*'Input Data'!H42*'Input Data'!$F$15 -> 1,227,240 | I10: ='Input Data'!I41*'Input Data'!I42*'Input Data'!$F$15 -> 1,227,240 | J10: ='Input Data'!J41*'Input Data'!J42*'Input Data'!$F$15 -> 1,227,240 | K10: ='Input Data'!K41*'Input Data'!K42*'Input Data'!$F$15 -> 1,227,240 | L10: ='Input Data'!L41*'Input Data'!L42*'Input Data'!$F$15 -> 1,227,240 | M10: ='Input Data'!M41*'Input Data'!M42*'Input Data'!$F$15 -> 1,227,240 | N10: ='Input Data'!N41*'Input Data'!N42*'Input Data'!$F$15 -> 1,227,240 | O10: ='Input Data'!O41*'Input Data'!O42*'Input Data'!$F$15 -> 1,227,240 | P10: ='Input Data'!P41*'Input Data'!P42*'Input Data'!$F$15 -> 1,227,240 | Q10: ='Input Data'!Q41*'Input Data'!Q42*'Input Data'!$F$15 -> 1,227,240 | R10: ='Input Data'!R41*'Input Data'!R42*'Input Data'!$F$15 -> 1,227,240 | S10: ='Input Data'!S41*'Input Data'!S42*'Input Data'!$F$15 -> 1,227,240 | T10: ='Input Data'!T41*'Input Data'!T42*'Input Data'!$F$15 -> 1,227,240 | U10: ='Input Data'!U41*'Input Data'!U42*'Input Data'!$F$15 -> 1,227,240 | V10: ='Input Data'!V41*'Input Data'!V42*'Input Data'!$F$15 -> 1,227,240 | W10: ='Input Data'!W41*'Input Data'!W42*'Input Data'!$F$15 -> 1,227,240 | X10: ='Input Data'!X41*'Input Data'!X42*'Input Data'!$F$15 -> 1,227,240 | Y10: ='Input Data'!Y41*'Input Data'!Y42*'Input Data'!$F$15 -> 1,227,240 | Z10: ='Input Data'!Z41*'Input Data'!Z42*'Input Data'!$F$15 -> 1,227,240 | AA10: ='Input Data'!AA41*'Input Data'!AA42*'Input Data'!$F$15 -> 1,227,240 | AB10: ='Input Data'!AB41*'Input Data'!AB42*'Input Data'!$F$15 -> 1,227,240 | AC10: ='Input Data'!AC41*'Input Data'!AC42*'Input Data'!$F$15 -> 1,227,240 | AD10: ='Input Data'!AD41*'Input Data'!AD42*'Input Data'!$F$15 -> 1,227,240 | AE10: ='Input Data'!AE41*'Input Data'!AE42*'Input Data'!$F$15 -> 1,227,240
C11: Energy Delivered and Paid For | E11: MWh | G11: =G10*(1-'Input Data'!G49) -> 920,430 | H11: =H10*(1-'Input Data'!H49) -> 920,430 | I11: =I10*(1-'Input Data'!I49) -> 920,430 | J11: =J10*(1-'Input Data'!J49) -> 920,430 | K11: =K10*(1-'Input Data'!K49) -> 920,430 | L11: =L10*(1-'Input Data'!L49) -> 920,430 | M11: =M10*(1-'Input Data'!M49) -> 920,430 | N11: =N10*(1-'Input Data'!N49) -> 920,430 | O11: =O10*(1-'Input Data'!O49) -> 920,430 | P11: =P10*(1-'Input Data'!P49) -> 920,430 | Q11: =Q10*(1-'Input Data'!Q49) -> 920,430 | R11: =R10*(1-'Input Data'!R49) -> 920,430 | S11: =S10*(1-'Input Data'!S49) -> 920,430 | T11: =T10*(1-'Input Data'!T49) -> 920,430 | U11: =U10*(1-'Input Data'!U49) -> 920,430 | V11: =V10*(1-'Input Data'!V49) -> 920,430 | W11: =W10*(1-'Input Data'!W49) -> 920,430 | X11: =X10*(1-'Input Data'!X49) -> 920,430 | Y11: =Y10*(1-'Input Data'!Y49) -> 920,430 | Z11: =Z10*(1-'Input Data'!Z49) -> 920,430 | AA11: =AA10*(1-'Input Data'!AA49) -> 920,430 | AB11: =AB10*(1-'Input Data'!AB49) -> 920,430 | AC11: =AC10*(1-'Input Data'!AC49) -> 920,430 | AD11: =AD10*(1-'Input Data'!AD49) -> 920,430 | AE11: =AE10*(1-'Input Data'!AE49) -> 920,430
B13: 2 | C13: Generation
C15: Generation Cost | E15: % | G15: ='Input Data'!G43*G10*1000 -> 126,405,720,000 | H15: ='Input Data'!H43*H10*1000 -> 126,405,720,000 | I15: ='Input Data'!I43*I10*1000 -> 126,405,720,000 | J15: ='Input Data'!J43*J10*1000 -> 126,405,720,000 | K15: ='Input Data'!K43*K10*1000 -> 126,405,720,000 | L15: ='Input Data'!L43*L10*1000 -> 126,405,720,000 | M15: ='Input Data'!M43*M10*1000 -> 126,405,720,000 | N15: ='Input Data'!N43*N10*1000 -> 126,405,720,000 | O15: ='Input Data'!O43*O10*1000 -> 126,405,720,000 | P15: ='Input Data'!P43*P10*1000 -> 126,405,720,000 | Q15: ='Input Data'!Q43*Q10*1000 -> 126,405,720,000 | R15: ='Input Data'!R43*R10*1000 -> 126,405,720,000 | S15: ='Input Data'!S43*S10*1000 -> 126,405,720,000 | T15: ='Input Data'!T43*T10*1000 -> 126,405,720,000 | U15: ='Input Data'!U43*U10*1000 -> 126,405,720,000 | V15: ='Input Data'!V43*V10*1000 -> 126,405,720,000 | W15: ='Input Data'!W43*W10*1000 -> 126,405,720,000 | X15: ='Input Data'!X43*X10*1000 -> 126,405,720,000 | Y15: ='Input Data'!Y43*Y10*1000 -> 126,405,720,000 | Z15: ='Input Data'!Z43*Z10*1000 -> 126,405,720,000 | AA15: ='Input Data'!AA43*AA10*1000 -> 126,405,720,000 | AB15: ='Input Data'!AB43*AB10*1000 -> 126,405,720,000 | AC15: ='Input Data'!AC43*AC10*1000 -> 126,405,720,000 | AD15: ='Input Data'!AD43*AD10*1000 -> 126,405,720,000 | AE15: ='Input Data'!AE43*AE10*1000 -> 126,405,720,000
B18: 3 | C18: Transmission
C20: Transmission Cost | E20: % | G20: ='Input Data'!G44*G10*1000 -> 10,370,178,000 | H20: ='Input Data'!H44*H10*1000 -> 10,370,178,000 | I20: ='Input Data'!I44*I10*1000 -> 10,370,178,000 | J20: ='Input Data'!J44*J10*1000 -> 10,370,178,000 | K20: ='Input Data'!K44*K10*1000 -> 10,370,178,000 | L20: ='Input Data'!L44*L10*1000 -> 10,370,178,000 | M20: ='Input Data'!M44*M10*1000 -> 10,370,178,000 | N20: ='Input Data'!N44*N10*1000 -> 10,370,178,000 | O20: ='Input Data'!O44*O10*1000 -> 10,370,178,000 | P20: ='Input Data'!P44*P10*1000 -> 10,370,178,000 | Q20: ='Input Data'!Q44*Q10*1000 -> 10,370,178,000 | R20: ='Input Data'!R44*R10*1000 -> 10,370,178,000 | S20: ='Input Data'!S44*S10*1000 -> 10,370,178,000 | T20: ='Input Data'!T44*T10*1000 -> 10,370,178,000 | U20: ='Input Data'!U44*U10*1000 -> 10,370,178,000 | V20: ='Input Data'!V44*V10*1000 -> 10,370,178,000 | W20: ='Input Data'!W44*W10*1000 -> 10,370,178,000 | X20: ='Input Data'!X44*X10*1000 -> 10,370,178,000 | Y20: ='Input Data'!Y44*Y10*1000 -> 10,370,178,000 | Z20: ='Input Data'!Z44*Z10*1000 -> 10,370,178,000 | AA20: ='Input Data'!AA44*AA10*1000 -> 10,370,178,000 | AB20: ='Input Data'!AB44*AB10*1000 -> 10,370,178,000 | AC20: ='Input Data'!AC44*AC10*1000 -> 10,370,178,000 | AD20: ='Input Data'!AD44*AD10*1000 -> 10,370,178,000 | AE20: ='Input Data'!AE44*AE10*1000 -> 10,370,178,000
B23: 4 | C23: Customer Energy Intake
C25: LV Customers | E25: MWh | G25: =G10*'Input Data'!G54 -> 1,104,516 | H25: =H10*'Input Data'!H54 -> 1,104,516 | I25: =I10*'Input Data'!I54 -> 1,104,516 | J25: =J10*'Input Data'!J54 -> 1,104,516 | K25: =K10*'Input Data'!K54 -> 1,104,516 | L25: =L10*'Input Data'!L54 -> 1,104,516 | M25: =M10*'Input Data'!M54 -> 1,104,516 | N25: =N10*'Input Data'!N54 -> 1,104,516 | O25: =O10*'Input Data'!O54 -> 1,104,516 | P25: =P10*'Input Data'!P54 -> 1,104,516 | Q25: =Q10*'Input Data'!Q54 -> 1,104,516 | R25: =R10*'Input Data'!R54 -> 1,104,516 | S25: =S10*'Input Data'!S54 -> 1,104,516 | T25: =T10*'Input Data'!T54 -> 1,104,516 | U25: =U10*'Input Data'!U54 -> 1,104,516 | V25: =V10*'Input Data'!V54 -> 1,104,516 | W25: =W10*'Input Data'!W54 -> 1,104,516 | X25: =X10*'Input Data'!X54 -> 1,104,516 | Y25: =Y10*'Input Data'!Y54 -> 1,104,516 | Z25: =Z10*'Input Data'!Z54 -> 1,104,516 | AA25: =AA10*'Input Data'!AA54 -> 1,104,516 | AB25: =AB10*'Input Data'!AB54 -> 1,104,516 | AC25: =AC10*'Input Data'!AC54 -> 1,104,516 | AD25: =AD10*'Input Data'!AD54 -> 1,104,516 | AE25: =AE10*'Input Data'!AE54 -> 1,104,516
C26: HV Customers | E26: MWh | G26: =G10*'Input Data'!G55 -> 122,724 | H26: =H10*'Input Data'!H55 -> 122,724 | I26: =I10*'Input Data'!I55 -> 122,724 | J26: =J10*'Input Data'!J55 -> 122,724 | K26: =K10*'Input Data'!K55 -> 122,724 | L26: =L10*'Input Data'!L55 -> 122,724 | M26: =M10*'Input Data'!M55 -> 122,724 | N26: =N10*'Input Data'!N55 -> 122,724 | O26: =O10*'Input Data'!O55 -> 122,724 | P26: =P10*'Input Data'!P55 -> 122,724 | Q26: =Q10*'Input Data'!Q55 -> 122,724 | R26: =R10*'Input Data'!R55 -> 122,724 | S26: =S10*'Input Data'!S55 -> 122,724 | T26: =T10*'Input Data'!T55 -> 122,724 | U26: =U10*'Input Data'!U55 -> 122,724 | V26: =V10*'Input Data'!V55 -> 122,724 | W26: =W10*'Input Data'!W55 -> 122,724 | X26: =X10*'Input Data'!X55 -> 122,724 | Y26: =Y10*'Input Data'!Y55 -> 122,724 | Z26: =Z10*'Input Data'!Z55 -> 122,724 | AA26: =AA10*'Input Data'!AA55 -> 122,724 | AB26: =AB10*'Input Data'!AB55 -> 122,724 | AC26: =AC10*'Input Data'!AC55 -> 122,724 | AD26: =AD10*'Input Data'!AD55 -> 122,724 | AE26: =AE10*'Input Data'!AE55 -> 122,724

Sheet Asset Depreciation
B1: Go to Control Page
B4: No | C4: Item | D4: Unit | E4: Constant | F4: ='Input Data'!F10 -> 2024 | G4: =F4+1 -> 2025 | H4: =G4+1 -> 2026 | I4: 2027 | J4: 2028 | K4: 2029 | L4: 2030 | M4: 2031 | N4: 2032 | O4: 2033 | P4: 2034 | Q4: 2035 | R4: 2036 | S4: 2037 | T4: =S4+1 -> 2038 | U4: =T4+1 -> 2039 | V4: =U4+1 -> 2040 | W4: =V4+1 -> 2041 | X4: =W4+1 -> 2042 | Y4: =X4+1 -> 2043 | Z4: =Y4+1 -> 2044 | AA4: =Z4+1 -> 2045 | AB4: =AA4+1 -> 2046 | AC4: =AB4+1 -> 2047 | AD4: =AC4+1 -> 2048
B8: 1 | C8: Depreciation Settings
D10: Useful Life (years) - New | E10: SL Rate Capital Base Depreciation Rate) | F10: Asset Values
B11: 1 | C11: Land | D11: ='Input Data'!D66 -> 50 | E11: ='Input Data'!E66 -> 2.00% | F11: =VLOOKUP(C11,'Regulatory Asset Base'!C156:G165,5,FALSE) -> 35,000,000
B12: 2 | C12: Building and Fixtures | D12: ='Input Data'!D67 -> 50 | E12: ='Input Data'!E67 -> 2.00% | F12: =VLOOKUP(C12,'Regulatory Asset Base'!C157:G166,5,FALSE) -> 5,100,000,000
B13: 3 | C13: Substations | D13: ='Input Data'!D68 -> 20 | E13: ='Input Data'!E68 -> 5.00% | F13: =VLOOKUP(C13,'Regulatory Asset Base'!C158:G167,5,FALSE) -> 16,200,000,000
B14: 4 | C14: Lines | D14: ='Input Data'!D69 -> 20 | E14: ='Input Data'!E69 -> 5.00% | F14: =VLOOKUP(C14,'Regulatory Asset Base'!C159:G168,5,FALSE) -> 7,900,000,000
B15: 5 | C15: Transformers | D15: ='Input Data'!D70 -> 20 | E15: ='Input Data'!E70 -> 5.00% | F15: =VLOOKUP(C15,'Regulatory Asset Base'!C160:G169,5,FALSE) -> 33,570,700,000
B16: 6 | C16: Meters | D16: ='Input Data'!D71 -> 10 | E16: ='Input Data'!E71 -> 10.00% | F16: =VLOOKUP(C16,'Regulatory Asset Base'!C161:G170,5,FALSE) -> 10,000,000,000
B17: 7 | C17: Information and Communication | D17: ='Input Data'!D72 -> 5 | E17: ='Input Data'!E72 -> 20.00% | F17: =VLOOKUP(C17,'Regulatory Asset Base'!C162:G171,5,FALSE) -> 180,000,000
B18: 8 | C18: Other Equipment | D18: ='Input Data'!D73 -> 5 | E18: ='Input Data'!E73 -> 20.00% | F18: =VLOOKUP(C18,'Regulatory Asset Base'!C163:G172,5,FALSE) -> 0
B19: 9 | C19: Vehicles | D19: ='Input Data'!D74 -> 5 | E19: ='Input Data'!E74 -> 20.00% | F19: =VLOOKUP(C19,'Regulatory Asset Base'!C164:G173,5,FALSE) -> 2,930,000,000
B20: 10 | C20: Furniture & Fittings | D20: ='Input Data'!D75 -> 5 | E20: ='Input Data'!E75 -> 20.00% | F20: =VLOOKUP(C20,'Regulatory Asset Base'!C165:G174,5,FALSE) -> 440,000,000
B23: 2 | C23: Accumulated Depreciation
C27: Assets Closing Balance | D27: Naira | F27: =F56+F108+F160+F212+F264+F316+F368+F420+F472+F524 -> 76,355,700,000 | G27: 73,694,332,751 | H27: 71,058,421,888 | I27: 67,595,344,331 | J27: 64,639,025,946 | K27: 60,627,117,163 | L27: 56,600,027,898 | M27: 53,197,317,154 | N27: =N56+N108+N160+N212+N264+N316+N368+N420+N472+N524 -> 51,228,836,485 | O27: 48,991,887,972 | P27: 45,484,890,449 | Q27: 43,332,986,623 | R27: 39,423,707,158 | S27: 37,091,376,168 | T27: 34,023,537,902 | U27: 31,357,674,563 | V27: 28,346,683,175 | W27: 25,316,702,167 | X27: 21,799,420,405 | Y27: 19,026,421,709 | Z27: 17,406,947,875 | AA27: 17,182,526,101 | AB27: 17,577,837,595 | AC27: 17,105,242,869 | AD27: 18,169,906,268
C28: Accumulated Depreciation | D28: Naira | F28: 0 | G28: 4,805,287,287 | H28: 4,930,927,301 | I28: 5,007,803,603 | J28: 5,160,330,688 | K28: 5,259,861,164 | L28: 4,600,572,432 | M28: 4,674,723,731 | N28: =N57+N109+N161+N213+N265+N317+N369+N421+N473+N525 -> 4,874,812,905 | O28: 4,976,576,558 | P28: 5,034,102,615 | Q28: 4,102,832,816 | R28: 4,130,235,662 | S28: 4,188,264,383 | T28: 4,198,305,540 | U28: 4,277,034,253 | V28: 4,344,321,133 | W28: 4,309,306,489 | X28: 4,348,014,417 | Y28: 4,462,927,126 | Z28: 4,408,365,723 | AA28: 1,355,812,044 | AB28: 1,256,116,965 | AC28: 1,096,160,602 | AD28: 985,860,251
C30: WACC | F30: ='Input Data'!G35 -> 28.34% | G30: ='Input Data'!H35 -> 28.34% | H30: ='Input Data'!I35 -> 28.34% | I30: ='Input Data'!J35 -> 28.34% | J30: ='Input Data'!K35 -> 28.34% | K30: ='Input Data'!L35 -> 28.34% | L30: ='Input Data'!M35 -> 28.34% | M30: ='Input Data'!N35 -> 28.34% | N30: ='Input Data'!O35 -> 28.34% | O30: ='Input Data'!P35 -> 28.34% | P30: ='Input Data'!Q35 -> 28.34% | Q30: ='Input Data'!R35 -> 28.34% | R30: ='Input Data'!S35 -> 28.34% | S30: ='Input Data'!T35 -> 28.34% | T30: ='Input Data'!U35 -> 28.34% | U30: ='Input Data'!V35 -> 28.34% | V30: ='Input Data'!W35 -> 28.34% | W30: ='Input Data'!X35 -> 28.34% | X30: ='Input Data'!Y35 -> 28.34% | Y30: ='Input Data'!Z35 -> 28.34% | Z30: ='Input Data'!AA35 -> 28.34% | AA30: ='Input Data'!AB35 -> 28.34% | AB30: ='Input Data'!AC35 -> 28.34% | AC30: ='Input Data'!AD35 -> 28.34% | AD30: ='Input Data'!AE35 -> 28.34%
C31: Return on Capital | F31: =F30*F27 -> 21,639,205,380 | G31: =G30*G27 -> 20,884,973,902 | H31: =H30*H27 -> 20,137,956,763 | I31: 19,156,520,583 | J31: 18,318,699,953 | K31: 17,181,725,004 | L31: 16,040,447,906 | M31: 15,076,119,681 | N31: 14,518,252,260 | O31: 13,884,301,051 | P31: 12,890,417,953 | Q31: 12,280,568,409 | R31: 11,172,678,608 | S31: 10,511,696,006 | T31: 9,642,270,642 | U31: 8,886,764,971 | V31: 8,033,450,012 | W31: 7,174,753,394 | X31: 6,177,955,743 | Y31: 5,392,087,912 | Z31: 4,933,129,028 | AA31: 4,869,527,897 | AB31: 4,981,559,175 | AC31: 4,847,625,829 | AD31: 5,149,351,436
B34: 3 | C34: =LOOKUP(D34,$B$11:$C$20) -> Land | D34: 1
C36: Old Asset
C39: Asset Value | D39: Naira | F39: =LOOKUP(D34,$B$11:$B$20,$F$11:$F$20) -> 35,000,000 | G39: =F39 -> 35,000,000 | H39: =G39 -> 35,000,000 | I39: =H39 -> 35,000,000 | J39: 35,000,000 | K39: 35,000,000 | L39: 35,000,000 | M39: 35,000,000 | N39: 35,000,000 | O39: 35,000,000 | P39: 35,000,000 | Q39: 35,000,000 | R39: 35,000,000 | S39: 35,000,000 | T39: 35,000,000 | U39: 35,000,000 | V39: 35,000,000 | W39: 35,000,000 | X39: 35,000,000 | Y39: 35,000,000 | Z39: 35,000,000 | AA39: 35,000,000 | AB39: 35,000,000 | AC39: 35,000,000 | AD39: 35,000,000
C40: Beginning Value | D40: Naira | G40: =F45 -> 35,000,000 | H40: =G45 -> 34,300,000 | I40: =H45 -> 33,600,000 | J40: 32,900,000 | K40: 32,200,000 | L40: 31,500,000 | M40: 30,800,000 | N40: 30,100,000 | O40: 29,400,000 | P40: 28,700,000 | Q40: 28,000,000 | R40: 27,300,000 | S40: 26,600,000 | T40: 25,900,000 | U40: 25,200,000 | V40: 24,500,000 | W40: 23,800,000 | X40: 23,100,000 | Y40: 22,400,000 | Z40: 21,700,000 | AA40: =Z45 -> 21,000,000 | AB40: =AA45 -> 20,300,000 | AC40: 19,600,000 | AD40: 18,900,000
C41: Depreciation Rate | D41: Naira | G41: =LOOKUP($D34,$B$11:$B$20,$E$11:$E$20) -> 2.00% | H41: 2.00% | I41: 2.00% | J41: 2.00% | K41: 2.00% | L41: 2.00% | M41: 2.00% | N41: 2.00% | O41: 2.00% | P41: 2.00% | Q41: 2.00% | R41: 2.00% | S41: 2.00% | T41: 2.00% | U41: 2.00% | V41: 2.00% | W41: 2.00% | X41: 2.00% | Y41: 2.00% | Z41: 2.00% | AA41: 2.00% | AB41: 2.00% | AC41: 2.00% | AD41: 2.00%
C42: Opening Depreciation (prior year) | D42: Naira | F42: =E44 -> 0 | G42: 0 | H42: 700,000 | I42: 1,400,000 | J42: 2,100,000 | K42: 2,800,000 | L42: 3,500,000 | M42: 4,200,000 | N42: 4,900,000 | O42: =N44 -> 5,600,000 | P42: =O44 -> 6,300,000 | Q42: =P44 -> 7,000,000 | R42: =Q44 -> 7,700,000 | S42: =R44 -> 8,400,000 | T42: =S44 -> 9,100,000 | U42: =T44 -> 9,800,000 | V42: =U44 -> 10,500,000 | W42: =V44 -> 11,200,000 | X42: =W44 -> 11,900,000 | Y42: =X44 -> 12,600,000 | Z42: =Y44 -> 13,300,000 | AA42: =Z44 -> 14,000,000 | AB42: =AA44 -> 14,700,000 | AC42: =AB44 -> 15,400,000 | AD42: =AC44 -> 16,100,000
C43: CCA Depreciation - For Year | D43: Naira | F43: =IF(F40>0,F39*F41,0) -> 0 | G43: 700,000 | H43: 700,000 | I43: 700,000 | J43: 700,000 | K43: 700,000 | L43: 700,000 | M43: 700,000 | N43: 700,000 | O43: 700,000 | P43: 700,000 | Q43: 700,000 | R43: 700,000 | S43: 700,000 | T43: 700,000 | U43: 700,000 | V43: 700,000 | W43: 700,000 | X43: 700,000 | Y43: 700,000 | Z43: =IF(Z40>0,Z39*Z41,0) -> 700,000 | AA43: =IF(AA40>0,AA39*AA41,0) -> 700,000 | AB43: =IF(AB40>0,AB39*AB41,0) -> 700,000 | AC43: =IF(AC40>0,AC39*AC41,0) -> 700,000 | AD43: =IF(AD40>0,AD39*AD41,0) -> 700,000
C44: Accumulated Depreciation | D44: Naira | F44: 0 | G44: =SUM(G42:G43) -> 700,000 | H44: 1,400,000 | I44: 2,100,000 | J44: 2,800,000 | K44: 3,500,000 | L44: 4,200,000 | M44: 4,900,000 | N44: 5,600,000 | O44: 6,300,000 | P44: 7,000,000 | Q44: 7,700,000 | R44: 8,400,000 | S44: 9,100,000 | T44: 9,800,000 | U44: 10,500,000 | V44: 11,200,000 | W44: 11,900,000 | X44: 12,600,000 | Y44: 13,300,000 | Z44: 14,000,000 | AA44: 14,700,000 | AB44: 15,400,000 | AC44: 16,100,000 | AD44: 16,800,000
C45: End Value | D45: Naira | F45: =LOOKUP(D34,$B$11:$B$20,$F$11:$F$20) -> 35,000,000 | G45: =G39-G44 -> 34,300,000 | H45: 33,600,000 | I45: 32,900,000 | J45: 32,200,000 | K45: 31,500,000 | L45: 30,800,000 | M45: 30,100,000 | N45: 29,400,000 | O45: 28,700,000 | P45: 28,000,000 | Q45: 27,300,000 | R45: 26,600,000 | S45: 25,900,000 | T45: 25,200,000 | U45: 24,500,000 | V45: 23,800,000 | W45: 23,100,000 | X45: 22,400,000 | Y45: 21,700,000 | Z45: 21,000,000 | AA45: 20,300,000 | AB45: 19,600,000 | AC45: 18,900,000 | AD45: 18,200,000
C48: New Assets
C49: Beginning of period | D49: Naira | F49: 0 | G49: =F53 -> 0 | H49: =G53 -> 28,322,000 | I49: =H53 -> 28,152,333 | J49: =I53 -> 29,526,000 | K49: =J53 -> 28,899,667 | L49: =K53 -> 28,600,000 | M49: =L53 -> 28,343,923 | N49: =M53 -> 27,703,231 | O49: =N53 -> 29,735,266 | P49: =O53 -> 29,040,028 | Q49: =P53 -> 28,602,685 | R49: =Q53 -> 27,902,184 | S49: =R53 -> 29,651,683 | T49: =S53 -> 30,918,829 | U49: =T53 -> 30,504,075 | V49: =U53 -> 31,252,074 | W49: =V53 -> 32,826,580 | X49: =W53 -> 33,824,873 | Y49: =X53 -> 33,151,500 | Z49: =Y53 -> 33,957,539 | AA49: =Z53 -> 34,763,578 | AB49: =AA53 -> 35,304,911 | AC49: =AB53 -> 36,495,565 | AD49: =AC53 -> 37,115,846
C50: CCA Revaluation | D50: Naira
C51: Additional Asset - nominal value | D51: Naira | F51: =INDEX('Regulatory Asset Base'!J$156:J$165, MATCH($C34,'Regulatory Asset Base'!$C$156:$C$165,0)) -> 0 | G51: =INDEX('Regulatory Asset Base'!K$156:K$165, MATCH($C34,'Regulatory Asset Base'!$C$156:$C$165,0)) -> 28,900,000 | H51: =INDEX('Regulatory Asset Base'!L$156:L$165, MATCH($C34,'Regulatory Asset Base'!$C$156:$C$165,0)) -> 416,667 | I51: =INDEX('Regulatory Asset Base'!M$156:M$165, MATCH($C34,'Regulatory Asset Base'!$C$156:$C$165,0)) -> 2,000,000 | J51: =INDEX('Regulatory Asset Base'!N$156:N$165, MATCH($C34,'Regulatory Asset Base'!$C$156:$C$165,0)) -> 0 | K51: =INDEX('Regulatory Asset Base'!O$156:O$165, MATCH($C34,'Regulatory Asset Base'!$C$156:$C$165,0)) -> 333,333 | L51: =INDEX('Regulatory Asset Base'!P$156:P$165, MATCH($C34,'Regulatory Asset Base'!$C$156:$C$165,0)) -> 384,615 | M51: =INDEX('Regulatory Asset Base'!Q$156:Q$165, MATCH($C34,'Regulatory Asset Base'!$C$156:$C$165,0)) -> 0 | N51: =INDEX('Regulatory Asset Base'!R$156:R$165, MATCH($C34,'Regulatory Asset Base'!$C$156:$C$165,0)) -> 2,727,273 | O51: =INDEX('Regulatory Asset Base'!S$156:S$165, MATCH($C34,'Regulatory Asset Base'!$C$156:$C$165,0)) -> 0 | P51: =INDEX('Regulatory Asset Base'!T$156:T$165, MATCH($C34,'Regulatory Asset Base'!$C$156:$C$165,0)) -> 263,158 | Q51: =INDEX('Regulatory Asset Base'!U$156:U$165, MATCH($C34,'Regulatory Asset Base'!$C$156:$C$165,0)) -> 0 | R51: =INDEX('Regulatory Asset Base'!V$156:V$165, MATCH($C34,'Regulatory Asset Base'!$C$156:$C$165,0)) -> 2,500,000 | S51: =INDEX('Regulatory Asset Base'!W$156:W$165, MATCH($C34,'Regulatory Asset Base'!$C$156:$C$165,0)) -> 2,058,824 | T51: =INDEX('Regulatory Asset Base'!X$156:X$165, MATCH($C34,'Regulatory Asset Base'!$C$156:$C$165,0)) -> 384,615 | U51: =INDEX('Regulatory Asset Base'!Y$156:Y$165, MATCH($C34,'Regulatory Asset Base'!$C$156:$C$165,0)) -> 1,578,947 | V51: =INDEX('Regulatory Asset Base'!Z$156:Z$165, MATCH($C34,'Regulatory Asset Base'!$C$156:$C$165,0)) -> 2,454,545 | W51: =INDEX('Regulatory Asset Base'!AA$156:AA$165, MATCH($C34,'Regulatory Asset Base'!$C$156:$C$165,0)) -> 1,916,667 | X51: =INDEX('Regulatory Asset Base'!AB$156:AB$165, MATCH($C34,'Regulatory Asset Base'!$C$156:$C$165,0)) -> 250,000 | Y51: =INDEX('Regulatory Asset Base'!AC$156:AC$165, MATCH($C34,'Regulatory Asset Base'!$C$156:$C$165,0)) -> 1,764,706 | Z51: =INDEX('Regulatory Asset Base'!AD$156:AD$165, MATCH($C34,'Regulatory Asset Base'!$C$156:$C$165,0)) -> 1,764,706 | AA51: =INDEX('Regulatory Asset Base'!AE$156:AE$165, MATCH($C34,'Regulatory Asset Base'!$C$156:$C$165,0)) -> 1,500,000 | AB51: =INDEX('Regulatory Asset Base'!AF$156:AF$165, MATCH($C34,'Regulatory Asset Base'!$C$156:$C$165,0)) -> 2,149,321 | AC51: =INDEX('Regulatory Asset Base'!AG$156:AG$165, MATCH($C34,'Regulatory Asset Base'!$C$156:$C$165,0)) -> 1,578,947 | AD51: =INDEX('Regulatory Asset Base'!AH$156:AH$165, MATCH($C34,'Regulatory Asset Base'!$C$156:$C$165,0)) -> 1,960,784
C52: Straight Line Amortisation - real | D52: Naira | F52: =F83 -> 0 | G52: =G83 -> 578,000 | H52: =H83 -> 586,333 | I52: =I83 -> 626,333 | J52: 626,333 | K52: 633,000 | L52: 640,692 | M52: 640,692 | N52: 695,238 | O52: 695,238 | P52: 700,501 | Q52: 700,501 | R52: 750,501 | S52: 791,677 | T52: 799,370 | U52: 830,949 | V52: 880,040 | W52: 918,373 | X52: 923,373 | Y52: 958,667 | Z52: 958,667 | AA52: 958,667 | AB52: 958,667 | AC52: 958,667 | AD52: 958,667
C53: End of period | D53: Naira | F53: =SUM(F49:F51)-F52 -> 0 | G53: 28,322,000 | H53: =SUM(H49:H51)-H52 -> 28,152,333 | I53: =SUM(I49:I51)-I52 -> 29,526,000 | J53: 28,899,667 | K53: =SUM(K49:K51)-K52 -> 28,600,000 | L53: 28,343,923 | M53: 27,703,231 | N53: =SUM(N49:N51)-N52 -> 29,735,266 | O53: 29,040,028 | P53: 28,602,685 | Q53: 27,902,184 | R53: 29,651,683 | S53: 30,918,829 | T53: =SUM(T49:T51)-T52 -> 30,504,075 | U53: 31,252,074 | V53: 32,826,580 | W53: 33,824,873 | X53: 33,151,500 | Y53: 33,957,539 | Z53: 34,763,578 | AA53: 35,304,911 | AB53: 36,495,565 | AC53: 37,115,846 | AD53: 38,117,963
C56: Cumulative New Asset Less Combined (mixed) Depreciation | D56: Naira | F56: =F45 -> 35,000,000 | G56: =F56+G51-(G43+G52) -> 62,622,000 | H56: =G56+H51-(H43+H52) -> 61,752,333 | I56: 62,426,000 | J56: 61,099,667 | K56: 60,100,000 | L56: 59,143,923 | M56: 57,803,231 | N56: 59,135,266 | O56: 57,740,028 | P56: 56,602,685 | Q56: 55,202,184 | R56: 56,251,683 | S56: 56,818,829 | T56: 55,704,075 | U56: 55,752,074 | V56: 56,626,580 | W56: 56,924,873 | X56: 55,551,500 | Y56: 55,657,539 | Z56: 55,763,578 | AA56: 55,604,911 | AB56: 56,095,565 | AC56: 56,015,846 | AD56: 56,317,963
C57: REGULATOR - DORC DEPRECIATION | D57: Naira | F57: =(F82+F43) -> 0 | G57: =(G43+G52) -> 1,278,000 | H57: =(H43+H52) -> 1,286,333 | I57: =(I43+I52) -> 1,326,333 | J57: =(J43+J52) -> 1,326,333 | K57: 1,333,000 | L57: 1,340,692 | M57: 1,340,692 | N57: =(N43+N52) -> 1,395,238 | O57: 1,395,238 | P57: 1,400,501 | Q57: 1,400,501 | R57: 1,450,501 | S57: 1,491,677 | T57: 1,499,370 | U57: 1,530,949 | V57: 1,580,040 | W57: 1,618,373 | X57: 1,623,373 | Y57: 1,658,667 | Z57: 1,658,667 | AA57: 1,658,667 | AB57: 1,658,667 | AC57: 1,658,667 | AD57: 1,658,667
C59: Straight Line Amortisation - New Assets
C62: Year | E62: =C51 -> Additional Asset - nominal value
C63: ='Input Data'!$F$10 -> 2024 | D63: Naira | F63: =IF(F$4<$C63,0,IF(F$4>=$C63+$D$11,0,$E63/$D$11)) -> 0 | G63: =IF(G$4<$C63,0,IF(G$4>=$C63+$D$11,0,$E63/$D$11)) -> 0 | H63: 0 | I63: 0 | J63: 0 | K63: 0 | L63: 0 | M63: 0 | N63: 0 | O63: 0 | P63: =IF(P$4<$C63,0,IF(P$4>=$C63+$D$11,0,$E63/$D$11)) -> 0 | Q63: 0 | R63: 0 | S63: 0 | T63: 0 | U63: 0 | V63: 0 | W63: 0 | X63: 0 | Y63: =IF(Y$4<$C63,0,IF(Y$4>=$C63+$D$11,0,$E63/$D$11)) -> 0 | Z63: 0 | AA63: =IF(AA$4<$C63,0,IF(AA$4>=$C63+$D$11,0,$E63/$D$11)) -> 0 | AB63: 0 | AC63: 0 | AD63: 0
C64: =C63+1 -> 2025 | D64: Naira | E64: =OFFSET('Regulatory Asset Base'!$K$156,$D34-1,0) -> 28,900,000 | F64: =IF(F$4<$C64,0,IF(F$4>=$C64+$D$11,0,$E64/$D$11)) -> 0 | G64: 578,000 | H64: 578,000 | I64: 578,000 | J64: 578,000 | K64: 578,000 | L64: 578,000 | M64: 578,000 | N64: 578,000 | O64: 578,000 | P64: 578,000 | Q64: 578,000 | R64: 578,000 | S64: 578,000 | T64: 578,000 | U64: 578,000 | V64: 578,000 | W64: 578,000 | X64: 578,000 | Y64: 578,000 | Z64: 578,000 | AA64: 578,000 | AB64: 578,000 | AC64: 578,000 | AD64: 578,000
C65: =C64+1 -> 2026 | D65: Naira | E65: =OFFSET('Regulatory Asset Base'!$L$156,$D34-1,0) -> 416,667 | F65: 0 | G65: 0 | H65: 8,333 | I65: 8,333 | J65: 8,333 | K65: 8,333 | L65: 8,333 | M65: 8,333 | N65: 8,333 | O65: 8,333 | P65: 8,333 | Q65: 8,333 | R65: 8,333 | S65: 8,333 | T65: 8,333 | U65: 8,333 | V65: 8,333 | W65: 8,333 | X65: 8,333 | Y65: 8,333 | Z65: 8,333 | AA65: 8,333 | AB65: 8,333 | AC65: 8,333 | AD65: 8,333
C66: 2027 | D66: Naira | E66: =OFFSET('Regulatory Asset Base'!$M$156,$D34-1,0) -> 2,000,000 | F66: 0 | G66: 0 | H66: 0 | I66: 40,000 | J66: 40,000 | K66: 40,000 | L66: 40,000 | M66: 40,000 | N66: 40,000 | O66: 40,000 | P66: 40,000 | Q66: 40,000 | R66: 40,000 | S66: 40,000 | T66: 40,000 | U66: 40,000 | V66: 40,000 | W66: 40,000 | X66: 40,000 | Y66: 40,000 | Z66: 40,000 | AA66: 40,000 | AB66: 40,000 | AC66: 40,000 | AD66: 40,000
C67: 2028 | D67: Naira | E67: =OFFSET('Regulatory Asset Base'!$N$156,$D34-1,0) -> 0 | F67: 0 | G67: 0 | H67: 0 | I67: 0 | J67: 0 | K67: 0 | L67: 0 | M67: 0 | N67: 0 | O67: 0 | P67: 0 | Q67: 0 | R67: 0 | S67: 0 | T67: 0 | U67: 0 | V67: 0 | W67: 0 | X67: 0 | Y67: 0 | Z67: 0 | AA67: 0 | AB67: 0 | AC67: 0 | AD67: 0
C68: 2029 | D68: Naira | E68: =OFFSET('Regulatory Asset Base'!$O$156,$D34-1,0) -> 333,333 | F68: 0 | G68: 0 | H68: 0 | I68: 0 | J68: 0 | K68: 6,667 | L68: 6,667 | M68: 6,667 | N68: 6,667 | O68: 6,667 | P68: 6,667 | Q68: 6,667 | R68: 6,667 | S68: 6,667 | T68: 6,667 | U68: 6,667 | V68: 6,667 | W68: 6,667 | X68: 6,667 | Y68: 6,667 | Z68: 6,667 | AA68: 6,667 | AB68: 6,667 | AC68: 6,667 | AD68: 6,667
C69: 2030 | D69: Naira | E69: =OFFSET('Regulatory Asset Base'!$P$156,$D34-1,0) -> 384,615 | F69: 0 | G69: 0 | H69: 0 | I69: 0 | J69: 0 | K69: 0 | L69: 7,692 | M69: 7,692 | N69: 7,692 | O69: 7,692 | P69: 7,692 | Q69: 7,692 | R69: 7,692 | S69: 7,692 | T69: 7,692 | U69: 7,692 | V69: 7,692 | W69: 7,692 | X69: 7,692 | Y69: 7,692 | Z69: 7,692 | AA69: 7,692 | AB69: 7,692 | AC69: 7,692 | AD69: 7,692
C70: 2031 | D70: Naira | E70: =OFFSET('Regulatory Asset Base'!$Q$156,$D34-1,0) -> 0 | F70: 0 | G70: 0 | H70: 0 | I70: 0 | J70: 0 | K70: 0 | L70: 0 | M70: 0 | N70: 0 | O70: 0 | P70: 0 | Q70: 0 | R70: 0 | S70: 0 | T70: 0 | U70: 0 | V70: 0 | W70: 0 | X70: 0 | Y70: 0 | Z70: 0 | AA70: 0 | AB70: 0 | AC70: 0 | AD70: 0
C71: 2032 | D71: Naira | E71: =OFFSET('Regulatory Asset Base'!$R$156,$D34-1,0) -> 2,727,273 | F71: 0 | G71: 0 | H71: 0 | I71: 0 | J71: 0 | K71: 0 | L71: 0 | M71: 0 | N71: 54,545 | O71: 54,545 | P71: 54,545 | Q71: 54,545 | R71: 54,545 | S71: 54,545 | T71: 54,545 | U71: 54,545 | V71: 54,545 | W71: 54,545 | X71: 54,545 | Y71: 54,545 | Z71: 54,545 | AA71: 54,545 | AB71: 54,545 | AC71: 54,545 | AD71: 54,545
C72: 2033 | D72: Naira | E72: =OFFSET('Regulatory Asset Base'!$S$156,$D34-1,0) -> 0 | F72: 0 | G72: 0 | H72: 0 | I72: 0 | J72: 0 | K72: 0 | L72: 0 | M72: 0 | N72: 0 | O72: 0 | P72: 0 | Q72: 0 | R72: 0 | S72: 0 | T72: 0 | U72: 0 | V72: 0 | W72: 0 | X72: 0 | Y72: 0 | Z72: 0 | AA72: 0 | AB72: 0 | AC72: 0 | AD72: 0
C73: 2034 | D73: Naira | E73: =OFFSET('Regulatory Asset Base'!$T$156,$D34-1,0) -> 263,158 | F73: 0 | G73: 0 | H73: 0 | I73: 0 | J73: 0 | K73: 0 | L73: 0 | M73: 0 | N73: 0 | O73: 0 | P73: 5,263 | Q73: 5,263 | R73: 5,263 | S73: 5,263 | T73: 5,263 | U73: 5,263 | V73: 5,263 | W73: 5,263 | X73: 5,263 | Y73: 5,263 | Z73: 5,263 | AA73: 5,263 | AB73: 5,263 | AC73: 5,263 | AD73: 5,263
C74: 2035 | D74: Naira | E74: =OFFSET('Regulatory Asset Base'!$U$156,$D34-1,0) -> 0 | F74: 0 | G74: 0 | H74: 0 | I74: 0 | J74: 0 | K74: 0 | L74: 0 | M74: 0 | N74: 0 | O74: 0 | P74: 0 | Q74: 0 | R74: 0 | S74: 0 | T74: 0 | U74: 0 | V74: 0 | W74: 0 | X74: 0 | Y74: 0 | Z74: 0 | AA74: 0 | AB74: 0 | AC74: 0 | AD74: 0
C75: 2036 | D75: Naira | E75: =OFFSET('Regulatory Asset Base'!$V$156,$D34-1,0) -> 2,500,000 | F75: 0 | G75: 0 | H75: 0 | I75: 0 | J75: 0 | K75: 0 | L75: 0 | M75: 0 | N75: 0 | O75: 0 | P75: 0 | Q75: 0 | R75: 50,000 | S75: 50,000 | T75: 50,000 | U75: 50,000 | V75: 50,000 | W75: 50,000 | X75: 50,000 | Y75: 50,000 | Z75: 50,000 | AA75: 50,000 | AB75: 50,000 | AC75: 50,000 | AD75: 50,000
C76: 2037 | D76: Naira | E76: =OFFSET('Regulatory Asset Base'!$W$156,$D34-1,0) -> 2,058,824 | F76: 0 | G76: 0 | H76: 0 | I76: 0 | J76: 0 | K76: 0 | L76: 0 | M76: 0 | N76: 0 | O76: 0 | P76: 0 | Q76: 0 | R76: 0 | S76: 41,176 | T76: 41,176 | U76: 41,176 | V76: 41,176 | W76: 41,176 | X76: 41,176 | Y76: 41,176 | Z76: 41,176 | AA76: 41,176 | AB76: 41,176 | AC76: 41,176 | AD76: 41,176
C77: 2038 | D77: Naira | E77: =OFFSET('Regulatory Asset Base'!$X$156,$D34-1,0) -> 384,615 | F77: 0 | G77: 0 | H77: 0 | I77: 0 | J77: 0 | K77: 0 | L77: 0 | M77: 0 | N77: 0 | O77: 0 | P77: 0 | Q77: 0 | R77: 0 | S77: 0 | T77: 7,692 | U77: 7,692 | V77: 7,692 | W77: 7,692 | X77: 7,692 | Y77: 7,692 | Z77: 7,692 | AA77: 7,692 | AB77: 7,692 | AC77: 7,692 | AD77: 7,692
C78: 2039 | D78: Naira | E78: =OFFSET('Regulatory Asset Base'!$Y$156,$D34-1,0) -> 1,578,947 | F78: 0 | G78: 0 | H78: 0 | I78: 0 | J78: 0 | K78: 0 | L78: 0 | M78: 0 | N78: 0 | O78: 0 | P78: 0 | Q78: 0 | R78: 0 | S78: 0 | T78: 0 | U78: 31,579 | V78: 31,579 | W78: 31,579 | X78: 31,579 | Y78: 31,579 | Z78: 31,579 | AA78: 31,579 | AB78: 31,579 | AC78: 31,579 | AD78: 31,579
C79: 2040 | D79: Naira | E79: =OFFSET('Regulatory Asset Base'!$Z$156,$D34-1,0) -> 2,454,545 | F79: 0 | G79: 0 | H79: 0 | I79: 0 | J79: 0 | K79: 0 | L79: 0 | M79: 0 | N79: 0 | O79: 0 | P79: =IF(P$4<$C79,0,IF(P$4>=$C79+$D$11,0,$E79/$D$11)) -> 0 | Q79: 0 | R79: 0 | S79: 0 | T79: 0 | U79: 0 | V79: 49,091 | W79: 49,091 | X79: 49,091 | Y79: 49,091 | Z79: 49,091 | AA79: 49,091 | AB79: 49,091 | AC79: 49,091 | AD79: 49,091
C80: 2041 | D80: Naira | E80: =OFFSET('Regulatory Asset Base'!$AA$156,$D34-1,0) -> 1,916,667 | F80: 0 | G80: 0 | H80: 0 | I80: 0 | J80: 0 | K80: 0 | L80: 0 | M80: 0 | N80: 0 | O80: 0 | P80: 0 | Q80: 0 | R80: 0 | S80: 0 | T80: 0 | U80: 0 | V80: 0 | W80: 38,333 | X80: 38,333 | Y80: 38,333 | Z80: 38,333 | AA80: 38,333 | AB80: 38,333 | AC80: 38,333 | AD80: 38,333
C81: 2042 | D81: Naira | E81: =OFFSET('Regulatory Asset Base'!$AB$156,$D34-1,0) -> 250,000 | F81: 0 | G81: 0 | H81: 0 | I81: 0 | J81: 0 | K81: 0 | L81: 0 | M81: 0 | N81: 0 | O81: 0 | P81: 0 | Q81: 0 | R81: 0 | S81: 0 | T81: 0 | U81: 0 | V81: 0 | W81: 0 | X81: 5,000 | Y81: 5,000 | Z81: 5,000 | AA81: 5,000 | AB81: 5,000 | AC81: 5,000 | AD81: 5,000
C82: 2043 | D82: Naira | E82: =OFFSET('Regulatory Asset Base'!$AC$156,$D34-1,0) -> 1,764,706 | F82: 0 | G82: 0 | H82: 0 | I82: 0 | J82: 0 | K82: 0 | L82: 0 | M82: 0 | N82: 0 | O82: 0 | P82: 0 | Q82: 0 | R82: 0 | S82: 0 | T82: 0 | U82: 0 | V82: 0 | W82: 0 | X82: 0 | Y82: 35,294 | Z82: 35,294 | AA82: 35,294 | AB82: 35,294 | AC82: 35,294 | AD82: 35,294
C83: TOTAL | D83: Naira | F83: =SUM(F63:F82) -> 0 | G83: =SUM(G63:G82) -> 578,000 | H83: =SUM(H63:H82) -> 586,333 | I83: =SUM(I63:I82) -> 626,333 | J83: =SUM(J63:J82) -> 626,333 | K83: =SUM(K63:K82) -> 633,000 | L83: =SUM(L63:L82) -> 640,692 | M83: =SUM(M63:M82) -> 640,692 | N83: =SUM(N63:N82) -> 695,238 | O83: =SUM(O63:O82) -> 695,238 | P83: =SUM(P63:P82) -> 700,501 | Q83: =SUM(Q63:Q82) -> 700,501 | R83: =SUM(R63:R82) -> 750,501 | S83: =SUM(S63:S82) -> 791,677 | T83: =SUM(T63:T82) -> 799,370 | U83: =SUM(U63:U82) -> 830,949 | V83: =SUM(V63:V82) -> 880,040 | W83: =SUM(W63:W82) -> 918,373 | X83: =SUM(X63:X82) -> 923,373 | Y83: =SUM(Y63:Y82) -> 958,667 | Z83: =SUM(Z63:Z82) -> 958,667 | AA83: =SUM(AA63:AA82) -> 958,667 | AB83: =SUM(AB63:AB82) -> 958,667 | AC83: =SUM(AC63:AC82) -> 958,667 | AD83: =SUM(AD63:AD82) -> 958,667
B86: =D86+2 -> 4 | C86: =LOOKUP(D86,$B$11:$C$20) -> Building and Fixtures | D86: 2
C88: Old Asset
C91: Asset Value | D91: Naira | F91: =LOOKUP(D86,$B$11:$B$20,$F$11:$F$20) -> 5,100,000,000 | G91: =F91 -> 5,100,000,000 | H91: =G91 -> 5,100,000,000 | I91: =H91 -> 5,100,000,000 | J91: 5,100,000,000 | K91: 5,100,000,000 | L91: 5,100,000,000 | M91: 5,100,000,000 | N91: 5,100,000,000 | O91: 5,100,000,000 | P91: 5,100,000,000 | Q91: 5,100,000,000 | R91: 5,100,000,000 | S91: 5,100,000,000 | T91: 5,100,000,000 | U91: 5,100,000,000 | V91: 5,100,000,000 | W91: 5,100,000,000 | X91: 5,100,000,000 | Y91: 5,100,000,000 | Z91: 5,100,000,000 | AA91: 5,100,000,000 | AB91: 5,100,000,000 | AC91: 5,100,000,000 | AD91: 5,100,000,000
C92: Beginning Value | D92: Naira | G92: =F97 -> 5,100,000,000 | H92: =G97 -> 4,998,000,000 | I92: =H97 -> 4,896,000,000 | J92: 4,794,000,000 | K92: 4,692,000,000 | L92: 4,590,000,000 | M92: 4,488,000,000 | N92: 4,386,000,000 | O92: 4,284,000,000 | P92: 4,182,000,000 | Q92: 4,080,000,000 | R92: 3,978,000,000 | S92: 3,876,000,000 | T92: 3,774,000,000 | U92: 3,672,000,000 | V92: 3,570,000,000 | W92: 3,468,000,000 | X92: 3,366,000,000 | Y92: 3,264,000,000 | Z92: 3,162,000,000 | AA92: =Z97 -> 3,060,000,000 | AB92: =AA97 -> 2,958,000,000 | AC92: 2,856,000,000 | AD92: 2,754,000,000
C93: Depreciation Rate | D93: Naira | G93: =LOOKUP($D86,$B$11:$B$20,$E$11:$E$20) -> 2.00% | H93: 2.00% | I93: 2.00% | J93: 2.00% | K93: 2.00% | L93: 2.00% | M93: 2.00% | N93: 2.00% | O93: 2.00% | P93: 2.00% | Q93: 2.00% | R93: 2.00% | S93: 2.00% | T93: 2.00% | U93: 2.00% | V93: 2.00% | W93: 2.00% | X93: 2.00% | Y93: 2.00% | Z93: 2.00% | AA93: 2.00% | AB93: 2.00% | AC93: 2.00% | AD93: 2.00%
C94: Opening Depreciation (prior year) | D94: Naira | F94: =E96 -> 0 | G94: 0 | H94: 102,000,000 | I94: 204,000,000 | J94: 306,000,000 | K94: 408,000,000 | L94: 510,000,000 | M94: 612,000,000 | N94: 714,000,000 | O94: =N96 -> 816,000,000 | P94: =O96 -> 918,000,000 | Q94: =P96 -> 1,020,000,000 | R94: =Q96 -> 1,122,000,000 | S94: =R96 -> 1,224,000,000 | T94: =S96 -> 1,326,000,000 | U94: =T96 -> 1,428,000,000 | V94: =U96 -> 1,530,000,000 | W94: =V96 -> 1,632,000,000 | X94: =W96 -> 1,734,000,000 | Y94: =X96 -> 1,836,000,000 | Z94: =Y96 -> 1,938,000,000 | AA94: =Z96 -> 2,040,000,000 | AB94: =AA96 -> 2,142,000,000 | AC94: =AB96 -> 2,244,000,000 | AD94: =AC96 -> 2,346,000,000
C95: CCA Depreciation - For Year | D95: Naira | F95: =IF(F92>0,F91*F93,0) -> 0 | G95: 102,000,000 | H95: 102,000,000 | I95: 102,000,000 | J95: 102,000,000 | K95: 102,000,000 | L95: 102,000,000 | M95: 102,000,000 | N95: 102,000,000 | O95: 102,000,000 | P95: 102,000,000 | Q95: 102,000,000 | R95: 102,000,000 | S95: 102,000,000 | T95: 102,000,000 | U95: 102,000,000 | V95: 102,000,000 | W95: 102,000,000 | X95: 102,000,000 | Y95: 102,000,000 | Z95: =IF(Z92>0,Z91*Z93,0) -> 102,000,000 | AA95: =IF(AA92>0,AA91*AA93,0) -> 102,000,000 | AB95: =IF(AB92>0,AB91*AB93,0) -> 102,000,000 | AC95: =IF(AC92>0,AC91*AC93,0) -> 102,000,000 | AD95: =IF(AD92>0,AD91*AD93,0) -> 102,000,000
C96: Accumulated Depreciation | D96: Naira | F96: 0 | G96: =SUM(G94:G95) -> 102,000,000 | H96: 204,000,000 | I96: 306,000,000 | J96: 408,000,000 | K96: 510,000,000 | L96: 612,000,000 | M96: 714,000,000 | N96: 816,000,000 | O96: 918,000,000 | P96: 1,020,000,000 | Q96: 1,122,000,000 | R96: 1,224,000,000 | S96: 1,326,000,000 | T96: 1,428,000,000 | U96: 1,530,000,000 | V96: 1,632,000,000 | W96: 1,734,000,000 | X96: 1,836,000,000 | Y96: 1,938,000,000 | Z96: 2,040,000,000 | AA96: 2,142,000,000 | AB96: 2,244,000,000 | AC96: 2,346,000,000 | AD96: 2,448,000,000
C97: End Value | D97: Naira | F97: =LOOKUP(D86,$B$11:$B$20,$F$11:$F$20) -> 5,100,000,000 | G97: =G91-G96 -> 4,998,000,000 | H97: 4,896,000,000 | I97: 4,794,000,000 | J97: 4,692,000,000 | K97: 4,590,000,000 | L97: 4,488,000,000 | M97: 4,386,000,000 | N97: 4,284,000,000 | O97: 4,182,000,000 | P97: 4,080,000,000 | Q97: 3,978,000,000 | R97: 3,876,000,000 | S97: 3,774,000,000 | T97: 3,672,000,000 | U97: 3,570,000,000 | V97: 3,468,000,000 | W97: 3,366,000,000 | X97: 3,264,000,000 | Y97: 3,162,000,000 | Z97: 3,060,000,000 | AA97: 2,958,000,000 | AB97: 2,856,000,000 | AC97: 2,754,000,000 | AD97: 2,652,000,000
C100: New Assets
C101: Beginning of period | D101: Naira | F101: 0 | G101: =F105 -> 0 | H101: =G105 -> 445,454,545 | I101: =H105 -> 694,258,373 | J101: =I105 -> 689,704,306 | K101: =J105 -> 986,558,134 | L101: =K105 -> 965,648,804 | M101: =L105 -> 1,208,078,655 | N101: =M105 -> 1,590,128,389 | O101: =N105 -> 1,891,978,123 | P101: =O105 -> 2,122,716,746 | Q101: =P105 -> 2,343,372,329 | R101: =Q105 -> 2,604,120,016 | S101: =R105 -> 2,551,758,180 | T101: =S105 -> 2,877,191,215 | U101: =T105 -> 2,817,855,020 | V101: =U105 -> 3,196,281,062 | W101: =V105 -> 3,126,286,650 | X101: =W105 -> 3,316,846,065 | Y101: =X105 -> 3,240,056,677 | Z101: =Y105 -> 3,168,067,289 | AA101: =Z105 -> 3,341,341,059 | AB101: =AA105 -> 3,543,379,448 | AC101: =AB105 -> 3,915,935,514 | AD101: =AC105 -> 3,842,279,459
C102: CCA Revaluation | D102: Naira
C103: Additional Asset - nominal value | D103: Naira | F103: =INDEX('Regulatory Asset Base'!J$156:J$165, MATCH($C86,'Regulatory Asset Base'!$C$156:$C$165,0)) -> 0 | G103: =INDEX('Regulatory Asset Base'!K$156:K$165, MATCH($C86,'Regulatory Asset Base'!$C$156:$C$165,0)) -> 454,545,455 | H103: =INDEX('Regulatory Asset Base'!L$156:L$165, MATCH($C86,'Regulatory Asset Base'!$C$156:$C$165,0)) -> 263,157,895 | I103: =INDEX('Regulatory Asset Base'!M$156:M$165, MATCH($C86,'Regulatory Asset Base'!$C$156:$C$165,0)) -> 10,000,000 | J103: =INDEX('Regulatory Asset Base'!N$156:N$165, MATCH($C86,'Regulatory Asset Base'!$C$156:$C$165,0)) -> 317,763,158 | K103: =INDEX('Regulatory Asset Base'!O$156:O$165, MATCH($C86,'Regulatory Asset Base'!$C$156:$C$165,0)) -> 0 | L103: =INDEX('Regulatory Asset Base'!P$156:P$165, MATCH($C86,'Regulatory Asset Base'!$C$156:$C$165,0)) -> 268,713,450 | M103: =INDEX('Regulatory Asset Base'!Q$156:Q$165, MATCH($C86,'Regulatory Asset Base'!$C$156:$C$165,0)) -> 416,666,667 | N103: =INDEX('Regulatory Asset Base'!R$156:R$165, MATCH($C86,'Regulatory Asset Base'!$C$156:$C$165,0)) -> 343,333,333 | O103: =INDEX('Regulatory Asset Base'!S$156:S$165, MATCH($C86,'Regulatory Asset Base'!$C$156:$C$165,0)) -> 277,777,778 | P103: =INDEX('Regulatory Asset Base'!T$156:T$165, MATCH($C86,'Regulatory Asset Base'!$C$156:$C$165,0)) -> 273,157,895 | Q103: =INDEX('Regulatory Asset Base'!U$156:U$165, MATCH($C86,'Regulatory Asset Base'!$C$156:$C$165,0)) -> 319,642,857 | R103: =INDEX('Regulatory Asset Base'!V$156:V$165, MATCH($C86,'Regulatory Asset Base'!$C$156:$C$165,0)) -> 6,666,667 | S103: =INDEX('Regulatory Asset Base'!W$156:W$165, MATCH($C86,'Regulatory Asset Base'!$C$156:$C$165,0)) -> 392,307,692 | T103: =INDEX('Regulatory Asset Base'!X$156:X$165, MATCH($C86,'Regulatory Asset Base'!$C$156:$C$165,0)) -> 7,692,308 | U103: =INDEX('Regulatory Asset Base'!Y$156:Y$165, MATCH($C86,'Regulatory Asset Base'!$C$156:$C$165,0)) -> 454,545,455 | V103: =INDEX('Regulatory Asset Base'!Z$156:Z$165, MATCH($C86,'Regulatory Asset Base'!$C$156:$C$165,0)) -> 6,250,000 | W103: =INDEX('Regulatory Asset Base'!AA$156:AA$165, MATCH($C86,'Regulatory Asset Base'!$C$156:$C$165,0)) -> 272,248,804 | X103: =INDEX('Regulatory Asset Base'!AB$156:AB$165, MATCH($C86,'Regulatory Asset Base'!$C$156:$C$165,0)) -> 5,000,000 | Y103: =INDEX('Regulatory Asset Base'!AC$156:AC$165, MATCH($C86,'Regulatory Asset Base'!$C$156:$C$165,0)) -> 10,000,000 | Z103: =INDEX('Regulatory Asset Base'!AD$156:AD$165, MATCH($C86,'Regulatory Asset Base'!$C$156:$C$165,0)) -> 255,263,158 | AA103: =INDEX('Regulatory Asset Base'!AE$156:AE$165, MATCH($C86,'Regulatory Asset Base'!$C$156:$C$165,0)) -> 284,027,778 | AB103: =INDEX('Regulatory Asset Base'!AF$156:AF$165, MATCH($C86,'Regulatory Asset Base'!$C$156:$C$165,0)) -> 454,545,455 | AC103: =INDEX('Regulatory Asset Base'!AG$156:AG$165, MATCH($C86,'Regulatory Asset Base'!$C$156:$C$165,0)) -> 8,333,333 | AD103: =INDEX('Regulatory Asset Base'!AH$156:AH$165, MATCH($C86,'Regulatory Asset Base'!$C$156:$C$165,0)) -> 333,333,333
C104: Straight Line Amortisation - real | D104: Naira | F104: =F135 -> 0 | G104: =G135 -> 9,090,909 | H104: =H135 -> 14,354,067 | I104: =I135 -> 14,554,067 | J104: 20,909,330 | K104: 20,909,330 | L104: 26,283,599 | M104: 34,616,932 | N104: 41,483,599 | O104: 47,039,155 | P104: 52,502,313 | Q104: 58,895,170 | R104: 59,028,503 | S104: 66,874,657 | T104: 67,028,503 | U104: 76,119,412 | V104: 76,244,412 | W104: 81,689,388 | X104: 81,789,388 | Y104: 81,989,388 | Z104: 81,989,388 | AA104: 81,989,388 | AB104: 81,989,388 | AC104: 81,989,388 | AD104: 81,989,388
C105: End of period | D105: Naira | F105: =SUM(F101:F103)-F104 -> 0 | G105: 445,454,545 | H105: =SUM(H101:H103)-H104 -> 694,258,373 | I105: =SUM(I101:I103)-I104 -> 689,704,306 | J105: 986,558,134 | K105: =SUM(K101:K103)-K104 -> 965,648,804 | L105: 1,208,078,655 | M105: 1,590,128,389 | N105: =SUM(N101:N103)-N104 -> 1,891,978,123 | O105: 2,122,716,746 | P105: 2,343,372,329 | Q105: 2,604,120,016 | R105: 2,551,758,180 | S105: 2,877,191,215 | T105: =SUM(T101:T103)-T104 -> 2,817,855,020 | U105: 3,196,281,062 | V105: 3,126,286,650 | W105: 3,316,846,065 | X105: 3,240,056,677 | Y105: 3,168,067,289 | Z105: 3,341,341,059 | AA105: 3,543,379,448 | AB105: 3,915,935,514 | AC105: 3,842,279,459 | AD105: 4,093,623,405
C108: Cumulative New Asset Less Combined (mixed) Depreciation | D108: Naira | F108: =F97 -> 5,100,000,000 | G108: =F108+G103-(G95+G104) -> 5,443,454,545 | H108: =G108+H103-(H95+H104) -> 5,590,258,373 | I108: 5,483,704,306 | J108: 5,678,558,134 | K108: 5,555,648,804 | L108: 5,696,078,655 | M108: 5,976,128,389 | N108: 6,175,978,123 | O108: 6,304,716,746 | P108: 6,423,372,329 | Q108: 6,582,120,016 | R108: 6,427,758,180 | S108: 6,651,191,215 | T108: 6,489,855,020 | U108: 6,766,281,062 | V108: 6,594,286,650 | W108: 6,682,846,065 | X108: 6,504,056,677 | Y108: 6,330,067,289 | Z108: 6,401,341,059 | AA108: 6,501,379,448 | AB108: 6,771,935,514 | AC108: 6,596,279,459 | AD108: 6,745,623,405
C109: REGULATOR - DORC DEPRECIATION | D109: Naira | F109: =(F134+F95) -> 0 | G109: =(G95+G104) -> 111,090,909 | H109: =(H95+H104) -> 116,354,067 | I109: =(I95+I104) -> 116,554,067 | J109: =(J95+J104) -> 122,909,330 | K109: 122,909,330 | L109: 128,283,599 | M109: 136,616,932 | N109: 143,483,599 | O109: 149,039,155 | P109: 154,502,313 | Q109: 160,895,170 | R109: 161,028,503 | S109: 168,874,657 | T109: 169,028,503 | U109: 178,119,412 | V109: 178,244,412 | W109: 183,689,388 | X109: 183,789,388 | Y109: 183,989,388 | Z109: 183,989,388 | AA109: 183,989,388 | AB109: 183,989,388 | AC109: 183,989,388 | AD109: 183,989,388
C111: Straight Line Amortisation - New Assets
C114: Year | E114: =C103 -> Additional Asset - nominal value
C115: ='Input Data'!$F$10 -> 2024 | D115: Naira | F115: =IF(F$4<$C115,0,IF(F$4>=$C115+$D$12,0,$E115/$D$12)) -> 0 | G115: =IF(G$4<$C115,0,IF(G$4>=$C115+$D$12,0,$E115/$D$12)) -> 0 | H115: =IF(H$4<$C115,0,IF(H$4>=$C115+$D$12,0,$E115/$D$12)) -> 0 | I115: 0 | J115: 0 | K115: 0 | L115: 0 | M115: 0 | N115: 0 | O115: 0 | P115: 0 | Q115: 0 | R115: 0 | S115: 0 | T115: 0 | U115: 0 | V115: 0 | W115: 0 | X115: 0 | Y115: 0 | Z115: 0 | AA115: 0 | AB115: 0 | AC115: 0 | AD115: 0
C116: =C115+1 -> 2025 | D116: Naira | E116: =OFFSET('Regulatory Asset Base'!$K$156,$D86-1,0) -> 454,545,455 | F116: =IF(F$4<$C116,0,IF(F$4>=$C116+$D$12,0,$E116/$D$12)) -> 0 | G116: =IF(G$4<$C116,0,IF(G$4>=$C116+$D$12,0,$E116/$D$12)) -> 9,090,909 | H116: =IF(H$4<$C116,0,IF(H$4>=$C116+$D$12,0,$E116/$D$12)) -> 9,090,909 | I116: 9,090,909 | J116: 9,090,909 | K116: 9,090,909 | L116: 9,090,909 | M116: 9,090,909 | N116: 9,090,909 | O116: 9,090,909 | P116: 9,090,909 | Q116: 9,090,909 | R116: 9,090,909 | S116: 9,090,909 | T116: 9,090,909 | U116: 9,090,909 | V116: 9,090,909 | W116: 9,090,909 | X116: 9,090,909 | Y116: 9,090,909 | Z116: 9,090,909 | AA116: 9,090,909 | AB116: 9,090,909 | AC116: 9,090,909 | AD116: 9,090,909
C117: =C116+1 -> 2026 | D117: Naira | E117: =OFFSET('Regulatory Asset Base'!$L$156,$D86-1,0) -> 263,157,895 | F117: =IF(F$4<$C117,0,IF(F$4>=$C117+$D$12,0,$E117/$D$12)) -> 0 | G117: 0 | H117: 5,263,158 | I117: 5,263,158 | J117: 5,263,158 | K117: 5,263,158 | L117: 5,263,158 | M117: 5,263,158 | N117: 5,263,158 | O117: 5,263,158 | P117: 5,263,158 | Q117: 5,263,158 | R117: 5,263,158 | S117: 5,263,158 | T117: 5,263,158 | U117: 5,263,158 | V117: 5,263,158 | W117: 5,263,158 | X117: 5,263,158 | Y117: 5,263,158 | Z117: 5,263,158 | AA117: 5,263,158 | AB117: 5,263,158 | AC117: 5,263,158 | AD117: 5,263,158
C118: 2027 | D118: Naira | E118: =OFFSET('Regulatory Asset Base'!$M$156,$D86-1,0) -> 10,000,000 | F118: 0 | G118: 0 | H118: 0 | I118: 200,000 | J118: 200,000 | K118: 200,000 | L118: 200,000 | M118: 200,000 | N118: 200,000 | O118: 200,000 | P118: 200,000 | Q118: 200,000 | R118: 200,000 | S118: 200,000 | T118: 200,000 | U118: 200,000 | V118: 200,000 | W118: 200,000 | X118: 200,000 | Y118: 200,000 | Z118: 200,000 | AA118: 200,000 | AB118: 200,000 | AC118: 200,000 | AD118: 200,000
C119: 2028 | D119: Naira | E119: =OFFSET('Regulatory Asset Base'!$N$156,$D86-1,0) -> 317,763,158 | F119: 0 | G119: 0 | H119: 0 | I119: 0 | J119: 6,355,263 | K119: 6,355,263 | L119: 6,355,263 | M119: 6,355,263 | N119: 6,355,263 | O119: 6,355,263 | P119: 6,355,263 | Q119: 6,355,263 | R119: 6,355,263 | S119: 6,355,263 | T119: 6,355,263 | U119: 6,355,263 | V119: 6,355,263 | W119: 6,355,263 | X119: 6,355,263 | Y119: 6,355,263 | Z119: 6,355,263 | AA119: 6,355,263 | AB119: 6,355,263 | AC119: 6,355,263 | AD119: 6,355,263
C120: 2029 | D120: Naira | E120: =OFFSET('Regulatory Asset Base'!$O$156,$D86-1,0) -> 0 | F120: 0 | G120: 0 | H120: 0 | I120: 0 | J120: 0 | K120: 0 | L120: 0 | M120: 0 | N120: 0 | O120: 0 | P120: 0 | Q120: 0 | R120: 0 | S120: 0 | T120: 0 | U120: 0 | V120: 0 | W120: 0 | X120: 0 | Y120: 0 | Z120: 0 | AA120: 0 | AB120: 0 | AC120: 0 | AD120: 0
C121: 2030 | D121: Naira | E121: =OFFSET('Regulatory Asset Base'!$P$156,$D86-1,0) -> 268,713,450 | F121: 0 | G121: 0 | H121: 0 | I121: 0 | J121: 0 | K121: 0 | L121: 5,374,269 | M121: 5,374,269 | N121: 5,374,269 | O121: 5,374,269 | P121: 5,374,269 | Q121: 5,374,269 | R121: 5,374,269 | S121: 5,374,269 | T121: 5,374,269 | U121: 5,374,269 | V121: 5,374,269 | W121: 5,374,269 | X121: 5,374,269 | Y121: 5,374,269 | Z121: 5,374,269 | AA121: 5,374,269 | AB121: 5,374,269 | AC121: 5,374,269 | AD121: 5,374,269
C122: 2031 | D122: Naira | E122: =OFFSET('Regulatory Asset Base'!$Q$156,$D86-1,0) -> 416,666,667 | F122: 0 | G122: 0 | H122: 0 | I122: 0 | J122: 0 | K122: 0 | L122: 0 | M122: 8,333,333 | N122: 8,333,333 | O122: 8,333,333 | P122: 8,333,333 | Q122: 8,333,333 | R122: 8,333,333 | S122: 8,333,333 | T122: 8,333,333 | U122: 8,333,333 | V122: 8,333,333 | W122: 8,333,333 | X122: 8,333,333 | Y122: 8,333,333 | Z122: 8,333,333 | AA122: 8,333,333 | AB122: 8,333,333 | AC122: 8,333,333 | AD122: 8,333,333
C123: 2032 | D123: Naira | E123: =OFFSET('Regulatory Asset Base'!$R$156,$D86-1,0) -> 343,333,333 | F123: 0 | G123: 0 | H123: 0 | I123: 0 | J123: 0 | K123: 0 | L123: 0 | M123: 0 | N123: 6,866,667 | O123: 6,866,667 | P123: 6,866,667 | Q123: 6,866,667 | R123: 6,866,667 | S123: 6,866,667 | T123: 6,866,667 | U123: 6,866,667 | V123: 6,866,667 | W123: 6,866,667 | X123: 6,866,667 | Y123: 6,866,667 | Z123: 6,866,667 | AA123: 6,866,667 | AB123: 6,866,667 | AC123: 6,866,667 | AD123: 6,866,667
C124: 2033 | D124: Naira | E124: =OFFSET('Regulatory Asset Base'!$S$156,$D86-1,0) -> 277,777,778 | F124: 0 | G124: 0 | H124: 0 | I124: 0 | J124: 0 | K124: 0 | L124: 0 | M124: 0 | N124: 0 | O124: 5,555,556 | P124: 5,555,556 | Q124: 5,555,556 | R124: 5,555,556 | S124: 5,555,556 | T124: 5,555,556 | U124: 5,555,556 | V124: 5,555,556 | W124: 5,555,556 | X124: 5,555,556 | Y124: 5,555,556 | Z124: 5,555,556 | AA124: 5,555,556 | AB124: 5,555,556 | AC124: 5,555,556 | AD124: 5,555,556
C125: 2034 | D125: Naira | E125: =OFFSET('Regulatory Asset Base'!$T$156,$D86-1,0) -> 273,157,895 | F125: 0 | G125: 0 | H125: 0 | I125: 0 | J125: 0 | K125: 0 | L125: 0 | M125: 0 | N125: 0 | O125: 0 | P125: 5,463,158 | Q125: 5,463,158 | R125: 5,463,158 | S125: 5,463,158 | T125: 5,463,158 | U125: 5,463,158 | V125: 5,463,158 | W125: 5,463,158 | X125: 5,463,158 | Y125: 5,463,158 | Z125: 5,463,158 | AA125: 5,463,158 | AB125: 5,463,158 | AC125: 5,463,158 | AD125: 5,463,158
C126: 2035 | D126: Naira | E126: =OFFSET('Regulatory Asset Base'!$U$156,$D86-1,0) -> 319,642,857 | F126: 0 | G126: 0 | H126: 0 | I126: 0 | J126: 0 | K126: 0 | L126: 0 | M126: 0 | N126: 0 | O126: 0 | P126: 0 | Q126: 6,392,857 | R126: 6,392,857 | S126: 6,392,857 | T126: 6,392,857 | U126: 6,392,857 | V126: 6,392,857 | W126: 6,392,857 | X126: 6,392,857 | Y126: 6,392,857 | Z126: 6,392,857 | AA126: 6,392,857 | AB126: 6,392,857 | AC126: 6,392,857 | AD126: 6,392,857
C127: 2036 | D127: Naira | E127: =OFFSET('Regulatory Asset Base'!$V$156,$D86-1,0) -> 6,666,667 | F127: 0 | G127: 0 | H127: 0 | I127: 0 | J127: 0 | K127: 0 | L127: 0 | M127: 0 | N127: 0 | O127: 0 | P127: 0 | Q127: 0 | R127: 133,333 | S127: 133,333 | T127: 133,333 | U127: 133,333 | V127: 133,333 | W127: 133,333 | X127: =IF(X$4<$C127,0,IF(X$4>=$C127+$D$12,0,$E127/$D$12)) -> 133,333 | Y127: 133,333 | Z127: 133,333 | AA127: 133,333 | AB127: 133,333 | AC127: 133,333 | AD127: 133,333
C128: 2037 | D128: Naira | E128: =OFFSET('Regulatory Asset Base'!$W$156,$D86-1,0) -> 392,307,692 | F128: 0 | G128: 0 | H128: 0 | I128: 0 | J128: 0 | K128: 0 | L128: 0 | M128: 0 | N128: 0 | O128: 0 | P128: 0 | Q128: 0 | R128: 0 | S128: 7,846,154 | T128: 7,846,154 | U128: 7,846,154 | V128: 7,846,154 | W128: 7,846,154 | X128: 7,846,154 | Y128: 7,846,154 | Z128: 7,846,154 | AA128: 7,846,154 | AB128: 7,846,154 | AC128: 7,846,154 | AD128: 7,846,154
C129: 2038 | D129: Naira | E129: =OFFSET('Regulatory Asset Base'!$X$156,$D86-1,0) -> 7,692,308 | F129: 0 | G129: 0 | H129: 0 | I129: 0 | J129: 0 | K129: 0 | L129: 0 | M129: 0 | N129: 0 | O129: 0 | P129: 0 | Q129: 0 | R129: 0 | S129: 0 | T129: 153,846 | U129: 153,846 | V129: 153,846 | W129: 153,846 | X129: 153,846 | Y129: 153,846 | Z129: 153,846 | AA129: 153,846 | AB129: 153,846 | AC129: 153,846 | AD129: 153,846
C130: 2039 | D130: Naira | E130: =OFFSET('Regulatory Asset Base'!$Y$156,$D86-1,0) -> 454,545,455 | F130: 0 | G130: 0 | H130: 0 | I130: 0 | J130: 0 | K130: 0 | L130: 0 | M130: 0 | N130: 0 | O130: 0 | P130: 0 | Q130: 0 | R130: 0 | S130: 0 | T130: 0 | U130: 9,090,909 | V130: 9,090,909 | W130: 9,090,909 | X130: 9,090,909 | Y130: 9,090,909 | Z130: 9,090,909 | AA130: 9,090,909 | AB130: 9,090,909 | AC130: 9,090,909 | AD130: 9,090,909
C131: 2040 | D131: Naira | E131: =OFFSET('Regulatory Asset Base'!$Z$156,$D86-1,0) -> 6,250,000 | F131: 0 | G131: 0 | H131: 0 | I131: 0 | J131: 0 | K131: 0 | L131: 0 | M131: 0 | N131: 0 | O131: 0 | P131: 0 | Q131: 0 | R131: 0 | S131: 0 | T131: 0 | U131: 0 | V131: 125,000 | W131: 125,000 | X131: 125,000 | Y131: 125,000 | Z131: 125,000 | AA131: 125,000 | AB131: 125,000 | AC131: 125,000 | AD131: 125,000
C132: 2041 | D132: Naira | E132: =OFFSET('Regulatory Asset Base'!$AA$156,$D86-1,0) -> 272,248,804 | F132: 0 | G132: 0 | H132: 0 | I132: 0 | J132: 0 | K132: 0 | L132: 0 | M132: 0 | N132: 0 | O132: 0 | P132: 0 | Q132: 0 | R132: 0 | S132: 0 | T132: 0 | U132: 0 | V132: 0 | W132: 5,444,976 | X132: 5,444,976 | Y132: 5,444,976 | Z132: 5,444,976 | AA132: 5,444,976 | AB132: 5,444,976 | AC132: 5,444,976 | AD132: 5,444,976
C133: 2042 | D133: Naira | E133: =OFFSET('Regulatory Asset Base'!$AB$156,$D86-1,0) -> 5,000,000 | F133: 0 | G133: 0 | H133: 0 | I133: 0 | J133: 0 | K133: 0 | L133: 0 | M133: 0 | N133: 0 | O133: 0 | P133: 0 | Q133: 0 | R133: 0 | S133: 0 | T133: 0 | U133: 0 | V133: 0 | W133: 0 | X133: 100,000 | Y133: 100,000 | Z133: 100,000 | AA133: 100,000 | AB133: 100,000 | AC133: 100,000 | AD133: 100,000
C134: 2043 | D134: Naira | E134: =OFFSET('Regulatory Asset Base'!$AC$156,$D86-1,0) -> 10,000,000 | F134: 0 | G134: 0 | H134: 0 | I134: 0 | J134: 0 | K134: 0 | L134: 0 | M134: 0 | N134: 0 | O134: 0 | P134: 0 | Q134: 0 | R134: 0 | S134: 0 | T134: 0 | U134: 0 | V134: 0 | W134: 0 | X134: 0 | Y134: 200,000 | Z134: 200,000 | AA134: 200,000 | AB134: 200,000 | AC134: 200,000 | AD134: 200,000
C135: TOTAL | D135: Naira | F135: =SUM(F115:F134) -> 0 | G135: =SUM(G115:G134) -> 9,090,909 | H135: =SUM(H115:H134) -> 14,354,067 | I135: =SUM(I115:I134) -> 14,554,067 | J135: =SUM(J115:J134) -> 20,909,330 | K135: =SUM(K115:K134) -> 20,909,330 | L135: =SUM(L115:L134) -> 26,283,599 | M135: =SUM(M115:M134) -> 34,616,932 | N135: =SUM(N115:N134) -> 41,483,599 | O135: =SUM(O115:O134) -> 47,039,155 | P135: =SUM(P115:P134) -> 52,502,313 | Q135: =SUM(Q115:Q134) -> 58,895,170 | R135: =SUM(R115:R134) -> 59,028,503 | S135: =SUM(S115:S134) -> 66,874,657 | T135: =SUM(T115:T134) -> 67,028,503 | U135: =SUM(U115:U134) -> 76,119,412 | V135: =SUM(V115:V134) -> 76,244,412 | W135: =SUM(W115:W134) -> 81,689,388 | X135: =SUM(X115:X134) -> 81,789,388 | Y135: =SUM(Y115:Y134) -> 81,989,388 | Z135: =SUM(Z115:Z134) -> 81,989,388 | AA135: =SUM(AA115:AA134) -> 81,989,388 | AB135: =SUM(AB115:AB134) -> 81,989,388 | AC135: =SUM(AC115:AC134) -> 81,989,388 | AD135: =SUM(AD115:AD134) -> 81,989,388
B138: =D138+2 -> 5 | C138: =LOOKUP(D138,$B$11:$C$20) -> Substations | D138: 3
C140: Old Asset
C143: Asset Value | D143: Naira | F143: =LOOKUP(D138,$B$11:$B$20,$F$11:$F$20) -> 16,200,000,000 | G143: =F143 -> 16,200,000,000 | H143: =G143 -> 16,200,000,000 | I143: =H143 -> 16,200,000,000 | J143: 16,200,000,000 | K143: 16,200,000,000 | L143: 16,200,000,000 | M143: 16,200,000,000 | N143: 16,200,000,000 | O143: 16,200,000,000 | P143: 16,200,000,000 | Q143: 16,200,000,000 | R143: 16,200,000,000 | S143: 16,200,000,000 | T143: 16,200,000,000 | U143: 16,200,000,000 | V143: 16,200,000,000 | W143: 16,200,000,000 | X143: 16,200,000,000 | Y143: 16,200,000,000 | Z143: 16,200,000,000 | AA143: 16,200,000,000 | AB143: 16,200,000,000 | AC143: 16,200,000,000 | AD143: 16,200,000,000
C144: Beginning Value | D144: Naira | G144: =F149 -> 16,200,000,000 | H144: =G149 -> 15,390,000,000 | I144: =H149 -> 14,580,000,000 | J144: 13,770,000,000 | K144: 12,960,000,000 | L144: 12,150,000,000 | M144: 11,340,000,000 | N144: 10,530,000,000 | O144: 9,720,000,000 | P144: 8,910,000,000 | Q144: 8,100,000,000 | R144: 7,290,000,000 | S144: 6,480,000,000 | T144: 5,670,000,000 | U144: 4,860,000,000 | V144: 4,050,000,000 | W144: 3,240,000,000 | X144: 2,430,000,000 | Y144: 1,620,000,000 | Z144: 810,000,000 | AA144: =Z149 -> 0 | AB144: =AA149 -> 0 | AC144: 0 | AD144: 0
C145: Depreciation Rate | D145: Naira | G145: =LOOKUP($D138,$B$11:$B$20,$E$11:$E$20) -> 5.00% | H145: 5.00% | I145: 5.00% | J145: 5.00% | K145: 5.00% | L145: 5.00% | M145: 5.00% | N145: 5.00% | O145: 5.00% | P145: 5.00% | Q145: 5.00% | R145: 5.00% | S145: 5.00% | T145: 5.00% | U145: 5.00% | V145: 5.00% | W145: 5.00% | X145: 5.00% | Y145: 5.00% | Z145: 5.00% | AA145: 5.00% | AB145: 5.00% | AC145: 5.00% | AD145: 5.00%
C146: Opening Depreciation (prior year) | D146: Naira | F146: =E148 -> 0 | G146: 0 | H146: 810,000,000 | I146: 1,620,000,000 | J146: 2,430,000,000 | K146: 3,240,000,000 | L146: 4,050,000,000 | M146: 4,860,000,000 | N146: 5,670,000,000 | O146: =N148 -> 6,480,000,000 | P146: =O148 -> 7,290,000,000 | Q146: =P148 -> 8,100,000,000 | R146: =Q148 -> 8,910,000,000 | S146: =R148 -> 9,720,000,000 | T146: =S148 -> 10,530,000,000 | U146: =T148 -> 11,340,000,000 | V146: =U148 -> 12,150,000,000 | W146: =V148 -> 12,960,000,000 | X146: =W148 -> 13,770,000,000 | Y146: =X148 -> 14,580,000,000 | Z146: =Y148 -> 15,390,000,000 | AA146: =Z148 -> 16,200,000,000 | AB146: =AA148 -> 16,200,000,000 | AC146: =AB148 -> 16,200,000,000 | AD146: =AC148 -> 16,200,000,000
C147: CCA Depreciation - For Year | D147: Naira | F147: =IF(F144>0,F143*F145,0) -> 0 | G147: 810,000,000 | H147: 810,000,000 | I147: 810,000,000 | J147: 810,000,000 | K147: 810,000,000 | L147: 810,000,000 | M147: 810,000,000 | N147: 810,000,000 | O147: 810,000,000 | P147: 810,000,000 | Q147: 810,000,000 | R147: 810,000,000 | S147: 810,000,000 | T147: 810,000,000 | U147: 810,000,000 | V147: 810,000,000 | W147: 810,000,000 | X147: 810,000,000 | Y147: 810,000,000 | Z147: =IF(Z144>0,Z143*Z145,0) -> 810,000,000 | AA147: =IF(AA144>0,AA143*AA145,0) -> 0 | AB147: =IF(AB144>0,AB143*AB145,0) -> 0 | AC147: =IF(AC144>0,AC143*AC145,0) -> 0 | AD147: =IF(AD144>0,AD143*AD145,0) -> 0
C148: Accumulated Depreciation | D148: Naira | F148: 0 | G148: =SUM(G146:G147) -> 810,000,000 | H148: 1,620,000,000 | I148: 2,430,000,000 | J148: 3,240,000,000 | K148: 4,050,000,000 | L148: 4,860,000,000 | M148: 5,670,000,000 | N148: 6,480,000,000 | O148: 7,290,000,000 | P148: 8,100,000,000 | Q148: 8,910,000,000 | R148: 9,720,000,000 | S148: 10,530,000,000 | T148: 11,340,000,000 | U148: 12,150,000,000 | V148: 12,960,000,000 | W148: 13,770,000,000 | X148: 14,580,000,000 | Y148: 15,390,000,000 | Z148: 16,200,000,000 | AA148: 16,200,000,000 | AB148: 16,200,000,000 | AC148: 16,200,000,000 | AD148: 16,200,000,000
C149: End Value | D149: Naira | F149: =LOOKUP(D138,$B$11:$B$20,$F$11:$F$20) -> 16,200,000,000 | G149: =G143-G148 -> 15,390,000,000 | H149: 14,580,000,000 | I149: 13,770,000,000 | J149: 12,960,000,000 | K149: 12,150,000,000 | L149: 11,340,000,000 | M149: 10,530,000,000 | N149: 9,720,000,000 | O149: 8,910,000,000 | P149: 8,100,000,000 | Q149: 7,290,000,000 | R149: 6,480,000,000 | S149: 5,670,000,000 | T149: 4,860,000,000 | U149: 4,050,000,000 | V149: 3,240,000,000 | W149: 2,430,000,000 | X149: 1,620,000,000 | Y149: 810,000,000 | Z149: 0 | AA149: 0 | AB149: 0 | AC149: 0 | AD149: 0
C152: New Assets
C153: Beginning of period | D153: Naira | F153: 0 | G153: =F157 -> 0 | H153: =G157 -> 1,583,333 | I153: =H157 -> 1,737,500 | J153: =I157 -> 1,641,667 | K153: =J157 -> 1,795,833 | L153: =K157 -> 1,686,842 | M153: =L157 -> 3,161,184 | N153: =M157 -> 2,968,860 | O153: =N157 -> 4,359,868 | P153: =O157 -> 4,084,211 | Q153: =P157 -> 4,125,219 | R153: =Q157 -> 3,832,895 | S153: =R157 -> 5,321,820 | T153: =S157 -> 7,310,746 | U153: =T157 -> 6,799,671 | V153: =U157 -> 8,303,748 | W153: =V157 -> 7,686,613 | X153: =W157 -> 7,319,478 | Y153: =X157 -> 9,539,185 | Z153: =Y157 -> 10,794,606 | AA153: =Z157 -> 10,240,503 | AB153: =AA157 -> 11,579,258 | AC153: =AB157 -> 13,287,655 | AD153: =AC157 -> 14,260,759
C154: CCA Revaluation | D154: Naira
C155: Additional Asset - nominal value | D155: Naira | F155: =INDEX('Regulatory Asset Base'!J$156:J$165, MATCH($C138,'Regulatory Asset Base'!$C$156:$C$165,0)) -> 0 | G155: =INDEX('Regulatory Asset Base'!K$156:K$165, MATCH($C138,'Regulatory Asset Base'!$C$156:$C$165,0)) -> 1,666,667 | H155: =INDEX('Regulatory Asset Base'!L$156:L$165, MATCH($C138,'Regulatory Asset Base'!$C$156:$C$165,0)) -> 250,000 | I155: =INDEX('Regulatory Asset Base'!M$156:M$165, MATCH($C138,'Regulatory Asset Base'!$C$156:$C$165,0)) -> 0 | J155: =INDEX('Regulatory Asset Base'!N$156:N$165, MATCH($C138,'Regulatory Asset Base'!$C$156:$C$165,0)) -> 263,158 | K155: =INDEX('Regulatory Asset Base'!O$156:O$165, MATCH($C138,'Regulatory Asset Base'!$C$156:$C$165,0)) -> 0 | L155: =INDEX('Regulatory Asset Base'!P$156:P$165, MATCH($C138,'Regulatory Asset Base'!$C$156:$C$165,0)) -> 1,666,667 | M155: =INDEX('Regulatory Asset Base'!Q$156:Q$165, MATCH($C138,'Regulatory Asset Base'!$C$156:$C$165,0)) -> 0 | N155: =INDEX('Regulatory Asset Base'!R$156:R$165, MATCH($C138,'Regulatory Asset Base'!$C$156:$C$165,0)) -> 1,666,667 | O155: =INDEX('Regulatory Asset Base'!S$156:S$165, MATCH($C138,'Regulatory Asset Base'!$C$156:$C$165,0)) -> 0 | P155: =INDEX('Regulatory Asset Base'!T$156:T$165, MATCH($C138,'Regulatory Asset Base'!$C$156:$C$165,0)) -> 333,333 | Q155: =INDEX('Regulatory Asset Base'!U$156:U$165, MATCH($C138,'Regulatory Asset Base'!$C$156:$C$165,0)) -> 0 | R155: =INDEX('Regulatory Asset Base'!V$156:V$165, MATCH($C138,'Regulatory Asset Base'!$C$156:$C$165,0)) -> 1,875,000 | S155: =INDEX('Regulatory Asset Base'!W$156:W$165, MATCH($C138,'Regulatory Asset Base'!$C$156:$C$165,0)) -> 2,500,000 | T155: =INDEX('Regulatory Asset Base'!X$156:X$165, MATCH($C138,'Regulatory Asset Base'!$C$156:$C$165,0)) -> 0 | U155: =INDEX('Regulatory Asset Base'!Y$156:Y$165, MATCH($C138,'Regulatory Asset Base'!$C$156:$C$165,0)) -> 2,121,212 | V155: =INDEX('Regulatory Asset Base'!Z$156:Z$165, MATCH($C138,'Regulatory Asset Base'!$C$156:$C$165,0)) -> 0 | W155: =INDEX('Regulatory Asset Base'!AA$156:AA$165, MATCH($C138,'Regulatory Asset Base'!$C$156:$C$165,0)) -> 263,158 | X155: =INDEX('Regulatory Asset Base'!AB$156:AB$165, MATCH($C138,'Regulatory Asset Base'!$C$156:$C$165,0)) -> 3,000,000 | Y155: =INDEX('Regulatory Asset Base'!AC$156:AC$165, MATCH($C138,'Regulatory Asset Base'!$C$156:$C$165,0)) -> 2,142,857 | Z155: =INDEX('Regulatory Asset Base'!AD$156:AD$165, MATCH($C138,'Regulatory Asset Base'!$C$156:$C$165,0)) -> 333,333 | AA155: =INDEX('Regulatory Asset Base'!AE$156:AE$165, MATCH($C138,'Regulatory Asset Base'!$C$156:$C$165,0)) -> 2,142,857 | AB155: =INDEX('Regulatory Asset Base'!AF$156:AF$165, MATCH($C138,'Regulatory Asset Base'!$C$156:$C$165,0)) -> 2,500,000 | AC155: =INDEX('Regulatory Asset Base'!AG$156:AG$165, MATCH($C138,'Regulatory Asset Base'!$C$156:$C$165,0)) -> 1,764,706 | AD155: =INDEX('Regulatory Asset Base'!AH$156:AH$165, MATCH($C138,'Regulatory Asset Base'!$C$156:$C$165,0)) -> 1,578,947
C156: Straight Line Amortisation - real | D156: Naira | F156: =F187 -> 0 | G156: =G187 -> 83,333 | H156: =H187 -> 95,833 | I156: =I187 -> 95,833 | J156: 108,991 | K156: 108,991 | L156: 192,325 | M156: 192,325 | N156: 275,658 | O156: 275,658 | P156: 292,325 | Q156: 292,325 | R156: 386,075 | S156: 511,075 | T156: 511,075 | U156: 617,135 | V156: 617,135 | W156: 630,293 | X156: 780,293 | Y156: 887,436 | Z156: 887,436 | AA156: 804,103 | AB156: 791,603 | AC156: 791,603 | AD156: 778,445
C157: End of period | D157: Naira | F157: =SUM(F153:F155)-F156 -> 0 | G157: 1,583,333 | H157: =SUM(H153:H155)-H156 -> 1,737,500 | I157: =SUM(I153:I155)-I156 -> 1,641,667 | J157: 1,795,833 | K157: =SUM(K153:K155)-K156 -> 1,686,842 | L157: 3,161,184 | M157: 2,968,860 | N157: =SUM(N153:N155)-N156 -> 4,359,868 | O157: 4,084,211 | P157: 4,125,219 | Q157: 3,832,895 | R157: 5,321,820 | S157: 7,310,746 | T157: =SUM(T153:T155)-T156 -> 6,799,671 | U157: 8,303,748 | V157: 7,686,613 | W157: 7,319,478 | X157: 9,539,185 | Y157: 10,794,606 | Z157: 10,240,503 | AA157: 11,579,258 | AB157: 13,287,655 | AC157: 14,260,759 | AD157: 15,061,261
C160: Cumulative New Asset Less Combined (mixed) Depreciation | D160: Naira | F160: =F149 -> 16,200,000,000 | G160: =F160+G155-(G147+G156) -> 15,391,583,333 | H160: =G160+H155-(H147+H156) -> 14,581,737,500 | I160: 13,771,641,667 | J160: 12,961,795,833 | K160: 12,151,686,842 | L160: 11,343,161,184 | M160: 10,532,968,860 | N160: 9,724,359,868 | O160: 8,914,084,211 | P160: 8,104,125,219 | Q160: 7,293,832,895 | R160: 6,485,321,820 | S160: 5,677,310,746 | T160: 4,866,799,671 | U160: 4,058,303,748 | V160: 3,247,686,613 | W160: 2,437,319,478 | X160: =W160+X155-(X147+X156) -> 1,629,539,185 | Y160: 820,794,606 | Z160: 10,240,503 | AA160: 11,579,258 | AB160: 13,287,655 | AC160: 14,260,759 | AD160: 15,061,261
C161: REGULATOR - DORC DEPRECIATION | D161: Naira | F161: =(F186+F147) -> 0 | G161: =(G147+G156) -> 810,083,333 | H161: =(H147+H156) -> 810,095,833 | I161: =(I147+I156) -> 810,095,833 | J161: =(J147+J156) -> 810,108,991 | K161: 810,108,991 | L161: 810,192,325 | M161: 810,192,325 | N161: 810,275,658 | O161: 810,275,658 | P161: 810,292,325 | Q161: 810,292,325 | R161: 810,386,075 | S161: 810,511,075 | T161: 810,511,075 | U161: 810,617,135 | V161: 810,617,135 | W161: 810,630,293 | X161: 810,780,293 | Y161: 810,887,436 | Z161: 810,887,436 | AA161: 804,103 | AB161: 791,603 | AC161: 791,603 | AD161: 778,445
C163: Straight Line Amortisation - New Assets
C166: Year | E166: =C155 -> Additional Asset - nominal value
C167: ='Input Data'!$F$10 -> 2024 | D167: Naira | F167: =IF(F$4<$C167,0,IF(F$4>=$C167+$D$13,0,$E167/$D$13)) -> 0 | G167: =IF(G$4<$C167,0,IF(G$4>=$C167+$D$13,0,$E167/$D$13)) -> 0 | H167: =IF(H$4<$C167,0,IF(H$4>=$C167+$D$13,0,$E167/$D$13)) -> 0 | I167: 0 | J167: 0 | K167: 0 | L167: 0 | M167: 0 | N167: 0 | O167: 0 | P167: 0 | Q167: =IF(Q$4<$C167,0,IF(Q$4>=$C167+$D$13,0,$E167/$D$13)) -> 0 | R167: =IF(R$4<$C167,0,IF(R$4>=$C167+$D$13,0,$E167/$D$13)) -> 0 | S167: =IF(S$4<$C167,0,IF(S$4>=$C167+$D$13,0,$E167/$D$13)) -> 0 | T167: 0 | U167: 0 | V167: 0 | W167: 0 | X167: 0 | Y167: =IF(Y$4<$C167,0,IF(Y$4>=$C167+$D$13,0,$E167/$D$13)) -> 0 | Z167: =IF(Z$4<$C167,0,IF(Z$4>=$C167+$D$13,0,$E167/$D$13)) -> 0 | AA167: =IF(AA$4<$C167,0,IF(AA$4>=$C167+$D$13,0,$E167/$D$13)) -> 0 | AB167: 0 | AC167: 0 | AD167: 0
C168: =C167+1 -> 2025 | D168: Naira | E168: =OFFSET('Regulatory Asset Base'!$K$156,$D138-1,0) -> 1,666,667 | F168: =IF(F$4<$C168,0,IF(F$4>=$C168+$D$13,0,$E168/$D$13)) -> 0 | G168: 83,333 | H168: 83,333 | I168: 83,333 | J168: 83,333 | K168: 83,333 | L168: 83,333 | M168: 83,333 | N168: 83,333 | O168: 83,333 | P168: 83,333 | Q168: 83,333 | R168: 83,333 | S168: 83,333 | T168: 83,333 | U168: 83,333 | V168: 83,333 | W168: 83,333 | X168: 83,333 | Y168: 83,333 | Z168: 83,333 | AA168: 0 | AB168: 0 | AC168: 0 | AD168: 0
C169: =C168+1 -> 2026 | D169: Naira | E169: =OFFSET('Regulatory Asset Base'!$L$156,$D138-1,0) -> 250,000 | F169: 0 | G169: 0 | H169: 12,500 | I169: 12,500 | J169: 12,500 | K169: 12,500 | L169: 12,500 | M169: 12,500 | N169: 12,500 | O169: 12,500 | P169: 12,500 | Q169: 12,500 | R169: 12,500 | S169: 12,500 | T169: 12,500 | U169: 12,500 | V169: 12,500 | W169: 12,500 | X169: 12,500 | Y169: 12,500 | Z169: 12,500 | AA169: 12,500 | AB169: 0 | AC169: 0 | AD169: 0
C170: 2027 | D170: Naira | E170: =OFFSET('Regulatory Asset Base'!$M$156,$D138-1,0) -> 0 | F170: 0 | G170: 0 | H170: 0 | I170: 0 | J170: 0 | K170: 0 | L170: 0 | M170: 0 | N170: 0 | O170: 0 | P170: 0 | Q170: 0 | R170: 0 | S170: 0 | T170: 0 | U170: 0 | V170: 0 | W170: 0 | X170: 0 | Y170: 0 | Z170: 0 | AA170: 0 | AB170: 0 | AC170: 0 | AD170: 0
C171: 2028 | D171: Naira | E171: =OFFSET('Regulatory Asset Base'!$N$156,$D138-1,0) -> 263,158 | F171: 0 | G171: 0 | H171: 0 | I171: 0 | J171: 13,158 | K171: 13,158 | L171: 13,158 | M171: 13,158 | N171: 13,158 | O171: 13,158 | P171: 13,158 | Q171: 13,158 | R171: 13,158 | S171: 13,158 | T171: 13,158 | U171: 13,158 | V171: 13,158 | W171: 13,158 | X171: 13,158 | Y171: 13,158 | Z171: 13,158 | AA171: 13,158 | AB171: 13,158 | AC171: 13,158 | AD171: 0
C172: 2029 | D172: Naira | E172: =OFFSET('Regulatory Asset Base'!$O$156,$D138-1,0) -> 0 | F172: 0 | G172: 0 | H172: 0 | I172: 0 | J172: 0 | K172: 0 | L172: 0 | M172: 0 | N172: 0 | O172: 0 | P172: 0 | Q172: 0 | R172: 0 | S172: 0 | T172: 0 | U172: 0 | V172: 0 | W172: 0 | X172: 0 | Y172: 0 | Z172: 0 | AA172: 0 | AB172: 0 | AC172: 0 | AD172: 0
C173: 2030 | D173: Naira | E173: =OFFSET('Regulatory Asset Base'!$P$156,$D138-1,0) -> 1,666,667 | F173: 0 | G173: 0 | H173: 0 | I173: 0 | J173: 0 | K173: 0 | L173: 83,333 | M173: 83,333 | N173: 83,333 | O173: 83,333 | P173: 83,333 | Q173: 83,333 | R173: 83,333 | S173: 83,333 | T173: 83,333 | U173: 83,333 | V173: 83,333 | W173: 83,333 | X173: 83,333 | Y173: 83,333 | Z173: 83,333 | AA173: 83,333 | AB173: 83,333 | AC173: 83,333 | AD173: 83,333
C174: 2031 | D174: Naira | E174: =OFFSET('Regulatory Asset Base'!$Q$156,$D138-1,0) -> 0 | F174: 0 | G174: 0 | H174: 0 | I174: 0 | J174: 0 | K174: 0 | L174: 0 | M174: 0 | N174: 0 | O174: 0 | P174: 0 | Q174: 0 | R174: 0 | S174: 0 | T174: 0 | U174: 0 | V174: 0 | W174: 0 | X174: 0 | Y174: 0 | Z174: 0 | AA174: 0 | AB174: 0 | AC174: 0 | AD174: 0
C175: 2032 | D175: Naira | E175: =OFFSET('Regulatory Asset Base'!$R$156,$D138-1,0) -> 1,666,667 | F175: 0 | G175: 0 | H175: 0 | I175: 0 | J175: 0 | K175: 0 | L175: 0 | M175: 0 | N175: 83,333 | O175: 83,333 | P175: 83,333 | Q175: 83,333 | R175: 83,333 | S175: 83,333 | T175: 83,333 | U175: 83,333 | V175: 83,333 | W175: 83,333 | X175: 83,333 | Y175: 83,333 | Z175: 83,333 | AA175: 83,333 | AB175: 83,333 | AC175: 83,333 | AD175: 83,333
C176: 2033 | D176: Naira | E176: =OFFSET('Regulatory Asset Base'!$S$156,$D138-1,0) -> 0 | F176: 0 | G176: 0 | H176: 0 | I176: 0 | J176: 0 | K176: 0 | L176: 0 | M176: 0 | N176: 0 | O176: 0 | P176: 0 | Q176: 0 | R176: 0 | S176: 0 | T176: 0 | U176: 0 | V176: 0 | W176: 0 | X176: 0 | Y176: 0 | Z176: 0 | AA176: 0 | AB176: 0 | AC176: 0 | AD176: 0
C177: 2034 | D177: Naira | E177: =OFFSET('Regulatory Asset Base'!$T$156,$D138-1,0) -> 333,333 | F177: 0 | G177: 0 | H177: 0 | I177: 0 | J177: 0 | K177: 0 | L177: 0 | M177: 0 | N177: 0 | O177: 0 | P177: 16,667 | Q177: 16,667 | R177: 16,667 | S177: 16,667 | T177: 16,667 | U177: 16,667 | V177: 16,667 | W177: 16,667 | X177: 16,667 | Y177: 16,667 | Z177: 16,667 | AA177: 16,667 | AB177: 16,667 | AC177: 16,667 | AD177: 16,667
C178: 2035 | D178: Naira | E178: =OFFSET('Regulatory Asset Base'!$U$156,$D138-1,0) -> 0 | F178: 0 | G178: 0 | H178: 0 | I178: 0 | J178: 0 | K178: 0 | L178: 0 | M178: 0 | N178: 0 | O178: 0 | P178: 0 | Q178: 0 | R178: 0 | S178: 0 | T178: 0 | U178: 0 | V178: 0 | W178: 0 | X178: 0 | Y178: 0 | Z178: 0 | AA178: 0 | AB178: 0 | AC178: 0 | AD178: 0
C179: 2036 | D179: Naira | E179: =OFFSET('Regulatory Asset Base'!$V$156,$D138-1,0) -> 1,875,000 | F179: 0 | G179: 0 | H179: 0 | I179: 0 | J179: 0 | K179: 0 | L179: 0 | M179: 0 | N179: 0 | O179: 0 | P179: 0 | Q179: 0 | R179: 93,750 | S179: 93,750 | T179: 93,750 | U179: 93,750 | V179: 93,750 | W179: 93,750 | X179: 93,750 | Y179: 93,750 | Z179: 93,750 | AA179: 93,750 | AB179: 93,750 | AC179: 93,750 | AD179: 93,750
C180: 2037 | D180: Naira | E180: =OFFSET('Regulatory Asset Base'!$W$156,$D138-1,0) -> 2,500,000 | F180: 0 | G180: 0 | H180: 0 | I180: 0 | J180: 0 | K180: 0 | L180: 0 | M180: 0 | N180: 0 | O180: 0 | P180: 0 | Q180: 0 | R180: 0 | S180: 125,000 | T180: 125,000 | U180: 125,000 | V180: 125,000 | W180: 125,000 | X180: 125,000 | Y180: 125,000 | Z180: 125,000 | AA180: 125,000 | AB180: 125,000 | AC180: 125,000 | AD180: 125,000
C181: 2038 | D181: Naira | E181: =OFFSET('Regulatory Asset Base'!$X$156,$D138-1,0) -> 0 | F181: 0 | G181: 0 | H181: 0 | I181: 0 | J181: 0 | K181: 0 | L181: 0 | M181: 0 | N181: 0 | O181: 0 | P181: 0 | Q181: 0 | R181: 0 | S181: 0 | T181: 0 | U181: 0 | V181: 0 | W181: 0 | X181: 0 | Y181: 0 | Z181: 0 | AA181: 0 | AB181: 0 | AC181: 0 | AD181: 0
C182: 2039 | D182: Naira | E182: =OFFSET('Regulatory Asset Base'!$Y$156,$D138-1,0) -> 2,121,212 | F182: 0 | G182: 0 | H182: 0 | I182: 0 | J182: 0 | K182: 0 | L182: 0 | M182: 0 | N182: 0 | O182: 0 | P182: 0 | Q182: 0 | R182: 0 | S182: 0 | T182: 0 | U182: 106,061 | V182: 106,061 | W182: 106,061 | X182: 106,061 | Y182: 106,061 | Z182: 106,061 | AA182: 106,061 | AB182: 106,061 | AC182: 106,061 | AD182: 106,061
C183: 2040 | D183: Naira | E183: =OFFSET('Regulatory Asset Base'!$Z$156,$D138-1,0) -> 0 | F183: 0 | G183: 0 | H183: 0 | I183: 0 | J183: 0 | K183: 0 | L183: 0 | M183: 0 | N183: 0 | O183: 0 | P183: 0 | Q183: =IF(Q$4<$C183,0,IF(Q$4>=$C183+$D$13,0,$E183/$D$13)) -> 0 | R183: 0 | S183: 0 | T183: 0 | U183: 0 | V183: 0 | W183: 0 | X183: 0 | Y183: 0 | Z183: 0 | AA183: 0 | AB183: 0 | AC183: 0 | AD183: 0
C184: 2041 | D184: Naira | E184: =OFFSET('Regulatory Asset Base'!$AA$156,$D138-1,0) -> 263,158 | F184: 0 | G184: 0 | H184: 0 | I184: 0 | J184: 0 | K184: 0 | L184: 0 | M184: 0 | N184: 0 | O184: 0 | P184: 0 | Q184: 0 | R184: 0 | S184: 0 | T184: 0 | U184: 0 | V184: 0 | W184: 13,158 | X184: 13,158 | Y184: 13,158 | Z184: 13,158 | AA184: 13,158 | AB184: 13,158 | AC184: 13,158 | AD184: 13,158
C185: 2042 | D185: Naira | E185: =OFFSET('Regulatory Asset Base'!$AB$156,$D138-1,0) -> 3,000,000 | F185: 0 | G185: 0 | H185: 0 | I185: 0 | J185: 0 | K185: 0 | L185: 0 | M185: 0 | N185: 0 | O185: 0 | P185: 0 | Q185: 0 | R185: 0 | S185: 0 | T185: 0 | U185: 0 | V185: 0 | W185: 0 | X185: 150,000 | Y185: 150,000 | Z185: 150,000 | AA185: 150,000 | AB185: 150,000 | AC185: 150,000 | AD185: 150,000
C186: 2043 | D186: Naira | E186: =OFFSET('Regulatory Asset Base'!$AC$156,$D138-1,0) -> 2,142,857 | F186: 0 | G186: 0 | H186: 0 | I186: 0 | J186: 0 | K186: 0 | L186: 0 | M186: 0 | N186: 0 | O186: 0 | P186: 0 | Q186: 0 | R186: 0 | S186: 0 | T186: 0 | U186: 0 | V186: 0 | W186: 0 | X186: 0 | Y186: 107,143 | Z186: 107,143 | AA186: 107,143 | AB186: 107,143 | AC186: 107,143 | AD186: 107,143
C187: TOTAL | D187: Naira | F187: =SUM(F167:F186) -> 0 | G187: =SUM(G167:G186) -> 83,333 | H187: =SUM(H167:H186) -> 95,833 | I187: =SUM(I167:I186) -> 95,833 | J187: =SUM(J167:J186) -> 108,991 | K187: =SUM(K167:K186) -> 108,991 | L187: =SUM(L167:L186) -> 192,325 | M187: =SUM(M167:M186) -> 192,325 | N187: =SUM(N167:N186) -> 275,658 | O187: =SUM(O167:O186) -> 275,658 | P187: =SUM(P167:P186) -> 292,325 | Q187: =SUM(Q167:Q186) -> 292,325 | R187: =SUM(R167:R186) -> 386,075 | S187: =SUM(S167:S186) -> 511,075 | T187: =SUM(T167:T186) -> 511,075 | U187: =SUM(U167:U186) -> 617,135 | V187: =SUM(V167:V186) -> 617,135 | W187: =SUM(W167:W186) -> 630,293 | X187: =SUM(X167:X186) -> 780,293 | Y187: =SUM(Y167:Y186) -> 887,436 | Z187: =SUM(Z167:Z186) -> 887,436 | AA187: =SUM(AA167:AA186) -> 804,103 | AB187: =SUM(AB167:AB186) -> 791,603 | AC187: =SUM(AC167:AC186) -> 791,603 | AD187: =SUM(AD167:AD186) -> 778,445
B190: =D190+2 -> 6 | C190: =LOOKUP(D190,$B$11:$C$20) -> Lines | D190: 4
C192: Old Asset
C195: Asset Value | D195: Naira | F195: =LOOKUP(D190,$B$11:$B$20,$F$11:$F$20) -> 7,900,000,000 | G195: =F195 -> 7,900,000,000 | H195: =G195 -> 7,900,000,000 | I195: =H195 -> 7,900,000,000 | J195: 7,900,000,000 | K195: 7,900,000,000 | L195: 7,900,000,000 | M195: 7,900,000,000 | N195: 7,900,000,000 | O195: 7,900,000,000 | P195: 7,900,000,000 | Q195: 7,900,000,000 | R195: 7,900,000,000 | S195: 7,900,000,000 | T195: 7,900,000,000 | U195: 7,900,000,000 | V195: 7,900,000,000 | W195: 7,900,000,000 | X195: 7,900,000,000 | Y195: 7,900,000,000 | Z195: 7,900,000,000 | AA195: 7,900,000,000 | AB195: 7,900,000,000 | AC195: 7,900,000,000 | AD195: 7,900,000,000
C196: Beginning Value | D196: Naira | G196: =F201 -> 7,900,000,000 | H196: =G201 -> 7,505,000,000 | I196: =H201 -> 7,110,000,000 | J196: 6,715,000,000 | K196: 6,320,000,000 | L196: 5,925,000,000 | M196: 5,530,000,000 | N196: 5,135,000,000 | O196: 4,740,000,000 | P196: 4,345,000,000 | Q196: 3,950,000,000 | R196: 3,555,000,000 | S196: 3,160,000,000 | T196: 2,765,000,000 | U196: 2,370,000,000 | V196: 1,975,000,000 | W196: 1,580,000,000 | X196: 1,185,000,000 | Y196: 790,000,000 | Z196: 395,000,000 | AA196: =Z201 -> 0 | AB196: =AA201 -> 0 | AC196: 0 | AD196: 0
C197: Depreciation Rate | D197: Naira | G197: =LOOKUP($D190,$B$11:$B$20,$E$11:$E$20) -> 5.00% | H197: 5.00% | I197: 5.00% | J197: 5.00% | K197: 5.00% | L197: 5.00% | M197: 5.00% | N197: 5.00% | O197: 5.00% | P197: 5.00% | Q197: 5.00% | R197: 5.00% | S197: 5.00% | T197: 5.00% | U197: 5.00% | V197: 5.00% | W197: 5.00% | X197: 5.00% | Y197: 5.00% | Z197: 5.00% | AA197: 5.00% | AB197: 5.00% | AC197: 5.00% | AD197: 5.00%
C198: Opening Depreciation (prior year) | D198: Naira | F198: =E200 -> 0 | G198: 0 | H198: 395,000,000 | I198: 790,000,000 | J198: 1,185,000,000 | K198: 1,580,000,000 | L198: 1,975,000,000 | M198: 2,370,000,000 | N198: 2,765,000,000 | O198: =N200 -> 3,160,000,000 | P198: =O200 -> 3,555,000,000 | Q198: =P200 -> 3,950,000,000 | R198: =Q200 -> 4,345,000,000 | S198: =R200 -> 4,740,000,000 | T198: =S200 -> 5,135,000,000 | U198: =T200 -> 5,530,000,000 | V198: =U200 -> 5,925,000,000 | W198: =V200 -> 6,320,000,000 | X198: =W200 -> 6,715,000,000 | Y198: =X200 -> 7,110,000,000 | Z198: =Y200 -> 7,505,000,000 | AA198: =Z200 -> 7,900,000,000 | AB198: =AA200 -> 7,900,000,000 | AC198: =AB200 -> 7,900,000,000 | AD198: =AC200 -> 7,900,000,000
C199: CCA Depreciation - For Year | D199: Naira | F199: =IF(F196>0,F195*F197,0) -> 0 | G199: 395,000,000 | H199: 395,000,000 | I199: 395,000,000 | J199: 395,000,000 | K199: 395,000,000 | L199: 395,000,000 | M199: 395,000,000 | N199: 395,000,000 | O199: 395,000,000 | P199: 395,000,000 | Q199: 395,000,000 | R199: 395,000,000 | S199: 395,000,000 | T199: 395,000,000 | U199: 395,000,000 | V199: 395,000,000 | W199: 395,000,000 | X199: 395,000,000 | Y199: 395,000,000 | Z199: =IF(Z196>0,Z195*Z197,0) -> 395,000,000 | AA199: =IF(AA196>0,AA195*AA197,0) -> 0 | AB199: =IF(AB196>0,AB195*AB197,0) -> 0 | AC199: =IF(AC196>0,AC195*AC197,0) -> 0 | AD199: =IF(AD196>0,AD195*AD197,0) -> 0
C200: Accumulated Depreciation | D200: Naira | F200: 0 | G200: =SUM(G198:G199) -> 395,000,000 | H200: 790,000,000 | I200: 1,185,000,000 | J200: 1,580,000,000 | K200: 1,975,000,000 | L200: 2,370,000,000 | M200: 2,765,000,000 | N200: 3,160,000,000 | O200: 3,555,000,000 | P200: 3,950,000,000 | Q200: 4,345,000,000 | R200: 4,740,000,000 | S200: 5,135,000,000 | T200: 5,530,000,000 | U200: 5,925,000,000 | V200: 6,320,000,000 | W200: 6,715,000,000 | X200: 7,110,000,000 | Y200: 7,505,000,000 | Z200: 7,900,000,000 | AA200: 7,900,000,000 | AB200: 7,900,000,000 | AC200: 7,900,000,000 | AD200: 7,900,000,000
C201: End Value | D201: Naira | F201: =LOOKUP(D190,$B$11:$B$20,$F$11:$F$20) -> 7,900,000,000 | G201: =G195-G200 -> 7,505,000,000 | H201: 7,110,000,000 | I201: 6,715,000,000 | J201: 6,320,000,000 | K201: 5,925,000,000 | L201: 5,530,000,000 | M201: 5,135,000,000 | N201: 4,740,000,000 | O201: 4,345,000,000 | P201: 3,950,000,000 | Q201: 3,555,000,000 | R201: 3,160,000,000 | S201: 2,765,000,000 | T201: 2,370,000,000 | U201: 1,975,000,000 | V201: 1,580,000,000 | W201: 1,185,000,000 | X201: 790,000,000 | Y201: 395,000,000 | Z201: 0 | AA201: 0 | AB201: 0 | AC201: 0 | AD201: 0
C204: New Assets
C205: Beginning of period | D205: Naira | F205: 0 | G205: =F209 -> 0 | H205: =G209 -> 468,666,667 | I205: =H209 -> 1,029,833,333 | J205: =I209 -> 999,333,333 | K205: =J209 -> 942,517,544 | L205: =K209 -> 1,325,076,754 | M205: =L209 -> 1,288,317,783 | N205: =M209 -> 1,245,687,600 | O205: =N209 -> 1,161,390,750 | P205: =O209 -> 1,490,623,311 | Q205: =P209 -> 2,053,340,164 | R205: =Q209 -> 1,912,079,745 | S205: =R209 -> 1,770,819,325 | T205: =S209 -> 2,268,649,815 | U205: =T209 -> 2,511,253,031 | V205: =U209 -> 2,855,151,795 | W205: =V209 -> 3,043,001,607 | X205: =W209 -> 2,839,105,008 | Y205: =X209 -> 2,589,753,863 | Z205: =Y209 -> 2,340,402,719 | AA205: =Z209 -> 2,612,162,685 | AB205: =AA209 -> 2,413,793,996 | AC205: =AB209 -> 2,892,670,125 | AD205: =AC209 -> 2,700,134,769
C206: CCA Revaluation | D206: Naira
C207: Additional Asset - nominal value | D207: Naira | F207: =INDEX('Regulatory Asset Base'!J$156:J$165, MATCH($C190,'Regulatory Asset Base'!$C$156:$C$165,0)) -> 0 | G207: =INDEX('Regulatory Asset Base'!K$156:K$165, MATCH($C190,'Regulatory Asset Base'!$C$156:$C$165,0)) -> 493,333,333 | H207: =INDEX('Regulatory Asset Base'!L$156:L$165, MATCH($C190,'Regulatory Asset Base'!$C$156:$C$165,0)) -> 616,666,667 | I207: =INDEX('Regulatory Asset Base'!M$156:M$165, MATCH($C190,'Regulatory Asset Base'!$C$156:$C$165,0)) -> 26,315,789 | J207: =INDEX('Regulatory Asset Base'!N$156:N$165, MATCH($C190,'Regulatory Asset Base'!$C$156:$C$165,0)) -> 0 | K207: =INDEX('Regulatory Asset Base'!O$156:O$165, MATCH($C190,'Regulatory Asset Base'!$C$156:$C$165,0)) -> 462,500,000 | L207: =INDEX('Regulatory Asset Base'!P$156:P$165, MATCH($C190,'Regulatory Asset Base'!$C$156:$C$165,0)) -> 45,454,545 | M207: =INDEX('Regulatory Asset Base'!Q$156:Q$165, MATCH($C190,'Regulatory Asset Base'!$C$156:$C$165,0)) -> 41,666,667 | N207: =INDEX('Regulatory Asset Base'!R$156:R$165, MATCH($C190,'Regulatory Asset Base'!$C$156:$C$165,0)) -> 0 | O207: =INDEX('Regulatory Asset Base'!S$156:S$165, MATCH($C190,'Regulatory Asset Base'!$C$156:$C$165,0)) -> 435,294,118 | P207: =INDEX('Regulatory Asset Base'!T$156:T$165, MATCH($C190,'Regulatory Asset Base'!$C$156:$C$165,0)) -> 703,977,273 | Q207: =INDEX('Regulatory Asset Base'!U$156:U$165, MATCH($C190,'Regulatory Asset Base'!$C$156:$C$165,0)) -> 0 | R207: =INDEX('Regulatory Asset Base'!V$156:V$165, MATCH($C190,'Regulatory Asset Base'!$C$156:$C$165,0)) -> 0 | S207: =INDEX('Regulatory Asset Base'!W$156:W$165, MATCH($C190,'Regulatory Asset Base'!$C$156:$C$165,0)) -> 672,727,273 | T207: =INDEX('Regulatory Asset Base'!X$156:X$165, MATCH($C190,'Regulatory Asset Base'!$C$156:$C$165,0)) -> 439,473,684 | U207: =INDEX('Regulatory Asset Base'!Y$156:Y$165, MATCH($C190,'Regulatory Asset Base'!$C$156:$C$165,0)) -> 569,230,769 | V207: =INDEX('Regulatory Asset Base'!Z$156:Z$165, MATCH($C190,'Regulatory Asset Base'!$C$156:$C$165,0)) -> 434,928,230 | W207: =INDEX('Regulatory Asset Base'!AA$156:AA$165, MATCH($C190,'Regulatory Asset Base'!$C$156:$C$165,0)) -> 45,454,545 | X207: =INDEX('Regulatory Asset Base'!AB$156:AB$165, MATCH($C190,'Regulatory Asset Base'!$C$156:$C$165,0)) -> 0 | Y207: =INDEX('Regulatory Asset Base'!AC$156:AC$165, MATCH($C190,'Regulatory Asset Base'!$C$156:$C$165,0)) -> 0 | Z207: =INDEX('Regulatory Asset Base'!AD$156:AD$165, MATCH($C190,'Regulatory Asset Base'!$C$156:$C$165,0)) -> 521,111,111 | AA207: =INDEX('Regulatory Asset Base'!AE$156:AE$165, MATCH($C190,'Regulatory Asset Base'!$C$156:$C$165,0)) -> 26,315,789 | AB207: =INDEX('Regulatory Asset Base'!AF$156:AF$165, MATCH($C190,'Regulatory Asset Base'!$C$156:$C$165,0)) -> 672,727,273 | AC207: =INDEX('Regulatory Asset Base'!AG$156:AG$165, MATCH($C190,'Regulatory Asset Base'!$C$156:$C$165,0)) -> 0 | AD207: =INDEX('Regulatory Asset Base'!AH$156:AH$165, MATCH($C190,'Regulatory Asset Base'!$C$156:$C$165,0)) -> 411,111,111
C208: Straight Line Amortisation - real | D208: Naira | F208: =F239 -> 0 | G208: =G239 -> 24,666,667 | H208: =H239 -> 55,500,000 | I208: =I239 -> 56,815,789 | J208: 56,815,789 | K208: 79,940,789 | L208: 82,213,517 | M208: 84,296,850 | N208: 84,296,850 | O208: 106,061,556 | P208: 141,260,420 | Q208: 141,260,420 | R208: 141,260,420 | S208: 174,896,783 | T208: 196,870,467 | U208: 225,332,006 | V208: 247,078,417 | W208: 249,351,145 | X208: 249,351,145 | Y208: 249,351,145 | Z208: 249,351,145 | AA208: 224,684,478 | AB208: 193,851,145 | AC208: 192,535,355 | AD208: 192,535,355
C209: End of period | D209: Naira | F209: =SUM(F205:F207)-F208 -> 0 | G209: 468,666,667 | H209: =SUM(H205:H207)-H208 -> 1,029,833,333 | I209: =SUM(I205:I207)-I208 -> 999,333,333 | J209: 942,517,544 | K209: =SUM(K205:K207)-K208 -> 1,325,076,754 | L209: 1,288,317,783 | M209: 1,245,687,600 | N209: =SUM(N205:N207)-N208 -> 1,161,390,750 | O209: 1,490,623,311 | P209: 2,053,340,164 | Q209: 1,912,079,745 | R209: 1,770,819,325 | S209: 2,268,649,815 | T209: =SUM(T205:T207)-T208 -> 2,511,253,031 | U209: 2,855,151,795 | V209: 3,043,001,607 | W209: 2,839,105,008 | X209: 2,589,753,863 | Y209: 2,340,402,719 | Z209: 2,612,162,685 | AA209: 2,413,793,996 | AB209: 2,892,670,125 | AC209: 2,700,134,769 | AD209: 2,918,710,525
C212: Cumulative New Asset Less Combined (mixed) Depreciation | D212: Naira | F212: =F201 -> 7,900,000,000 | G212: =F212+G207-(G199+G208) -> 7,973,666,667 | H212: =G212+H207-(H199+H208) -> 8,139,833,333 | I212: 7,714,333,333 | J212: 7,262,517,544 | K212: 7,250,076,754 | L212: 6,818,317,783 | M212: 6,380,687,600 | N212: 5,901,390,750 | O212: 5,835,623,311 | P212: 6,003,340,164 | Q212: 5,467,079,745 | R212: 4,930,819,325 | S212: 5,033,649,815 | T212: 4,881,253,031 | U212: 4,830,151,795 | V212: 4,623,001,607 | W212: 4,024,105,008 | X212: 3,379,753,863 | Y212: 2,735,402,719 | Z212: 2,612,162,685 | AA212: 2,413,793,996 | AB212: 2,892,670,125 | AC212: 2,700,134,769 | AD212: 2,918,710,525
C213: REGULATOR - DORC DEPRECIATION | D213: Naira | F213: =(F238+F199) -> 0 | G213: =(G199+G208) -> 419,666,667 | H213: =(H199+H208) -> 450,500,000 | I213: =(I199+I208) -> 451,815,789 | J213: =(J199+J208) -> 451,815,789 | K213: 474,940,789 | L213: 477,213,517 | M213: 479,296,850 | N213: 479,296,850 | O213: 501,061,556 | P213: 536,260,420 | Q213: 536,260,420 | R213: 536,260,420 | S213: 569,896,783 | T213: 591,870,467 | U213: 620,332,006 | V213: 642,078,417 | W213: 644,351,145 | X213: 644,351,145 | Y213: 644,351,145 | Z213: 644,351,145 | AA213: 224,684,478 | AB213: 193,851,145 | AC213: 192,535,355 | AD213: 192,535,355
C215: Straight Line Amortisation - New Assets
C218: Year | E218: =C207 -> Additional Asset - nominal value
C219: ='Input Data'!$F$10 -> 2024 | D219: Naira | F219: =IF(F$4<$C219,0,IF(F$4>=$C219+$D$14,0,$E219/$D$14)) -> 0 | G219: =IF(G$4<$C219,0,IF(G$4>=$C219+$D$14,0,$E219/$D$14)) -> 0 | H219: =IF(H$4<$C219,0,IF(H$4>=$C219+$D$14,0,$E219/$D$14)) -> 0 | I219: 0 | J219: 0 | K219: 0 | L219: 0 | M219: 0 | N219: 0 | O219: 0 | P219: 0 | Q219: 0 | R219: 0 | S219: 0 | T219: 0 | U219: 0 | V219: 0 | W219: 0 | X219: 0 | Y219: 0 | Z219: 0 | AA219: 0 | AB219: 0 | AC219: 0 | AD219: 0
C220: =C219+1 -> 2025 | D220: Naira | E220: =OFFSET('Regulatory Asset Base'!$K$156,$D190-1,0) -> 493,333,333 | F220: =IF(F$4<$C220,0,IF(F$4>=$C220+$D$14,0,$E220/$D$14)) -> 0 | G220: 24,666,667 | H220: 24,666,667 | I220: 24,666,667 | J220: 24,666,667 | K220: 24,666,667 | L220: 24,666,667 | M220: 24,666,667 | N220: 24,666,667 | O220: 24,666,667 | P220: 24,666,667 | Q220: 24,666,667 | R220: 24,666,667 | S220: 24,666,667 | T220: 24,666,667 | U220: 24,666,667 | V220: 24,666,667 | W220: 24,666,667 | X220: 24,666,667 | Y220: 24,666,667 | Z220: 24,666,667 | AA220: 0 | AB220: 0 | AC220: 0 | AD220: 0
C221: =C220+1 -> 2026 | D221: Naira | E221: =OFFSET('Regulatory Asset Base'!$L$156,$D190-1,0) -> 616,666,667 | F221: 0 | G221: 0 | H221: 30,833,333 | I221: 30,833,333 | J221: 30,833,333 | K221: 30,833,333 | L221: 30,833,333 | M221: 30,833,333 | N221: 30,833,333 | O221: 30,833,333 | P221: 30,833,333 | Q221: 30,833,333 | R221: 30,833,333 | S221: 30,833,333 | T221: 30,833,333 | U221: 30,833,333 | V221: 30,833,333 | W221: 30,833,333 | X221: 30,833,333 | Y221: 30,833,333 | Z221: 30,833,333 | AA221: 30,833,333 | AB221: 0 | AC221: 0 | AD221: 0
C222: 2027 | D222: Naira | E222: =OFFSET('Regulatory Asset Base'!$M$156,$D190-1,0) -> 26,315,789 | F222: 0 | G222: 0 | H222: 0 | I222: 1,315,789 | J222: 1,315,789 | K222: 1,315,789 | L222: 1,315,789 | M222: 1,315,789 | N222: 1,315,789 | O222: 1,315,789 | P222: 1,315,789 | Q222: 1,315,789 | R222: 1,315,789 | S222: 1,315,789 | T222: 1,315,789 | U222: 1,315,789 | V222: 1,315,789 | W222: 1,315,789 | X222: 1,315,789 | Y222: 1,315,789 | Z222: 1,315,789 | AA222: 1,315,789 | AB222: 1,315,789 | AC222: 0 | AD222: 0
C223: 2028 | D223: Naira | E223: =OFFSET('Regulatory Asset Base'!$N$156,$D190-1,0) -> 0 | F223: 0 | G223: 0 | H223: 0 | I223: 0 | J223: 0 | K223: 0 | L223: 0 | M223: 0 | N223: 0 | O223: 0 | P223: 0 | Q223: 0 | R223: 0 | S223: 0 | T223: 0 | U223: 0 | V223: 0 | W223: 0 | X223: 0 | Y223: 0 | Z223: 0 | AA223: 0 | AB223: 0 | AC223: 0 | AD223: 0
C224: 2029 | D224: Naira | E224: =OFFSET('Regulatory Asset Base'!$O$156,$D190-1,0) -> 462,500,000 | F224: 0 | G224: 0 | H224: 0 | I224: 0 | J224: 0 | K224: 23,125,000 | L224: 23,125,000 | M224: 23,125,000 | N224: 23,125,000 | O224: 23,125,000 | P224: 23,125,000 | Q224: 23,125,000 | R224: 23,125,000 | S224: 23,125,000 | T224: 23,125,000 | U224: 23,125,000 | V224: 23,125,000 | W224: 23,125,000 | X224: 23,125,000 | Y224: 23,125,000 | Z224: 23,125,000 | AA224: 23,125,000 | AB224: 23,125,000 | AC224: 23,125,000 | AD224: 23,125,000
C225: 2030 | D225: Naira | E225: =OFFSET('Regulatory Asset Base'!$P$156,$D190-1,0) -> 45,454,545 | F225: 0 | G225: 0 | H225: 0 | I225: 0 | J225: 0 | K225: 0 | L225: 2,272,727 | M225: 2,272,727 | N225: 2,272,727 | O225: 2,272,727 | P225: 2,272,727 | Q225: 2,272,727 | R225: 2,272,727 | S225: 2,272,727 | T225: 2,272,727 | U225: 2,272,727 | V225: 2,272,727 | W225: 2,272,727 | X225: 2,272,727 | Y225: 2,272,727 | Z225: 2,272,727 | AA225: 2,272,727 | AB225: 2,272,727 | AC225: 2,272,727 | AD225: 2,272,727
C226: 2031 | D226: Naira | E226: =OFFSET('Regulatory Asset Base'!$Q$156,$D190-1,0) -> 41,666,667 | F226: 0 | G226: 0 | H226: 0 | I226: 0 | J226: 0 | K226: 0 | L226: 0 | M226: 2,083,333 | N226: 2,083,333 | O226: 2,083,333 | P226: 2,083,333 | Q226: 2,083,333 | R226: 2,083,333 | S226: 2,083,333 | T226: 2,083,333 | U226: 2,083,333 | V226: 2,083,333 | W226: 2,083,333 | X226: 2,083,333 | Y226: 2,083,333 | Z226: 2,083,333 | AA226: 2,083,333 | AB226: 2,083,333 | AC226: 2,083,333 | AD226: 2,083,333
C227: 2032 | D227: Naira | E227: =OFFSET('Regulatory Asset Base'!$R$156,$D190-1,0) -> 0 | F227: 0 | G227: 0 | H227: 0 | I227: 0 | J227: 0 | K227: 0 | L227: 0 | M227: 0 | N227: 0 | O227: 0 | P227: 0 | Q227: 0 | R227: 0 | S227: 0 | T227: 0 | U227: 0 | V227: 0 | W227: 0 | X227: 0 | Y227: 0 | Z227: 0 | AA227: 0 | AB227: 0 | AC227: 0 | AD227: 0
C228: 2033 | D228: Naira | E228: =OFFSET('Regulatory Asset Base'!$S$156,$D190-1,0) -> 435,294,118 | F228: 0 | G228: 0 | H228: 0 | I228: 0 | J228: 0 | K228: 0 | L228: 0 | M228: 0 | N228: 0 | O228: 21,764,706 | P228: 21,764,706 | Q228: 21,764,706 | R228: 21,764,706 | S228: 21,764,706 | T228: 21,764,706 | U228: 21,764,706 | V228: 21,764,706 | W228: 21,764,706 | X228: 21,764,706 | Y228: 21,764,706 | Z228: 21,764,706 | AA228: 21,764,706 | AB228: 21,764,706 | AC228: 21,764,706 | AD228: 21,764,706
C229: 2034 | D229: Naira | E229: =OFFSET('Regulatory Asset Base'!$T$156,$D190-1,0) -> 703,977,273 | F229: 0 | G229: 0 | H229: 0 | I229: 0 | J229: 0 | K229: 0 | L229: 0 | M229: 0 | N229: 0 | O229: 0 | P229: 35,198,864 | Q229: 35,198,864 | R229: 35,198,864 | S229: 35,198,864 | T229: 35,198,864 | U229: 35,198,864 | V229: 35,198,864 | W229: 35,198,864 | X229: 35,198,864 | Y229: 35,198,864 | Z229: 35,198,864 | AA229: 35,198,864 | AB229: 35,198,864 | AC229: 35,198,864 | AD229: 35,198,864
C230: 2035 | D230: Naira | E230: =OFFSET('Regulatory Asset Base'!$U$156,$D190-1,0) -> 0 | F230: 0 | G230: 0 | H230: 0 | I230: 0 | J230: 0 | K230: 0 | L230: 0 | M230: 0 | N230: 0 | O230: 0 | P230: 0 | Q230: 0 | R230: 0 | S230: 0 | T230: 0 | U230: 0 | V230: 0 | W230: 0 | X230: 0 | Y230: 0 | Z230: 0 | AA230: 0 | AB230: 0 | AC230: 0 | AD230: 0
C231: 2036 | D231: Naira | E231: =OFFSET('Regulatory Asset Base'!$V$156,$D190-1,0) -> 0 | F231: 0 | G231: 0 | H231: 0 | I231: 0 | J231: 0 | K231: 0 | L231: 0 | M231: 0 | N231: 0 | O231: 0 | P231: 0 | Q231: 0 | R231: 0 | S231: 0 | T231: 0 | U231: 0 | V231: 0 | W231: 0 | X231: 0 | Y231: 0 | Z231: 0 | AA231: 0 | AB231: 0 | AC231: 0 | AD231: 0
C232: 2037 | D232: Naira | E232: =OFFSET('Regulatory Asset Base'!$W$156,$D190-1,0) -> 672,727,273 | F232: 0 | G232: 0 | H232: 0 | I232: 0 | J232: 0 | K232: 0 | L232: 0 | M232: 0 | N232: 0 | O232: 0 | P232: 0 | Q232: 0 | R232: 0 | S232: 33,636,364 | T232: 33,636,364 | U232: 33,636,364 | V232: 33,636,364 | W232: 33,636,364 | X232: 33,636,364 | Y232: 33,636,364 | Z232: 33,636,364 | AA232: 33,636,364 | AB232: 33,636,364 | AC232: 33,636,364 | AD232: 33,636,364
C233: 2038 | D233: Naira | E233: =OFFSET('Regulatory Asset Base'!$X$156,$D190-1,0) -> 439,473,684 | F233: 0 | G233: 0 | H233: 0 | I233: 0 | J233: 0 | K233: 0 | L233: 0 | M233: 0 | N233: 0 | O233: 0 | P233: 0 | Q233: 0 | R233: 0 | S233: 0 | T233: =IF(T$4<$C233,0,IF(T$4>=$C233+$D$14,0,$E233/$D$14)) -> 21,973,684 | U233: 21,973,684 | V233: 21,973,684 | W233: 21,973,684 | X233: 21,973,684 | Y233: 21,973,684 | Z233: 21,973,684 | AA233: 21,973,684 | AB233: 21,973,684 | AC233: 21,973,684 | AD233: 21,973,684
C234: 2039 | D234: Naira | E234: =OFFSET('Regulatory Asset Base'!$Y$156,$D190-1,0) -> 569,230,769 | F234: 0 | G234: 0 | H234: 0 | I234: 0 | J234: 0 | K234: 0 | L234: 0 | M234: 0 | N234: 0 | O234: 0 | P234: 0 | Q234: 0 | R234: 0 | S234: 0 | T234: 0 | U234: 28,461,538 | V234: 28,461,538 | W234: 28,461,538 | X234: 28,461,538 | Y234: 28,461,538 | Z234: 28,461,538 | AA234: 28,461,538 | AB234: 28,461,538 | AC234: 28,461,538 | AD234: 28,461,538
C235: 2040 | D235: Naira | E235: =OFFSET('Regulatory Asset Base'!$Z$156,$D190-1,0) -> 434,928,230 | F235: 0 | G235: 0 | H235: 0 | I235: 0 | J235: 0 | K235: 0 | L235: 0 | M235: 0 | N235: 0 | O235: 0 | P235: 0 | Q235: 0 | R235: 0 | S235: 0 | T235: 0 | U235: 0 | V235: 21,746,411 | W235: 21,746,411 | X235: 21,746,411 | Y235: 21,746,411 | Z235: 21,746,411 | AA235: 21,746,411 | AB235: 21,746,411 | AC235: 21,746,411 | AD235: 21,746,411
C236: 2041 | D236: Naira | E236: =OFFSET('Regulatory Asset Base'!$AA$156,$D190-1,0) -> 45,454,545 | F236: 0 | G236: 0 | H236: 0 | I236: 0 | J236: 0 | K236: 0 | L236: 0 | M236: 0 | N236: 0 | O236: 0 | P236: 0 | Q236: 0 | R236: 0 | S236: 0 | T236: 0 | U236: 0 | V236: 0 | W236: 2,272,727 | X236: 2,272,727 | Y236: 2,272,727 | Z236: 2,272,727 | AA236: 2,272,727 | AB236: 2,272,727 | AC236: 2,272,727 | AD236: 2,272,727
C237: 2042 | D237: Naira | E237: =OFFSET('Regulatory Asset Base'!$AB$156,$D190-1,0) -> 0 | F237: 0 | G237: 0 | H237: 0 | I237: 0 | J237: 0 | K237: 0 | L237: 0 | M237: 0 | N237: 0 | O237: 0 | P237: 0 | Q237: 0 | R237: 0 | S237: 0 | T237: 0 | U237: 0 | V237: 0 | W237: 0 | X237: 0 | Y237: 0 | Z237: 0 | AA237: 0 | AB237: 0 | AC237: 0 | AD237: 0
C238: 2043 | D238: Naira | E238: =OFFSET('Regulatory Asset Base'!$AC$156,$D190-1,0) -> 0 | F238: 0 | G238: 0 | H238: 0 | I238: 0 | J238: 0 | K238: 0 | L238: 0 | M238: 0 | N238: 0 | O238: 0 | P238: 0 | Q238: 0 | R238: 0 | S238: 0 | T238: 0 | U238: 0 | V238: 0 | W238: 0 | X238: 0 | Y238: 0 | Z238: 0 | AA238: 0 | AB238: 0 | AC238: 0 | AD238: 0
C239: TOTAL | D239: Naira | F239: =SUM(F219:F238) -> 0 | G239: =SUM(G219:G238) -> 24,666,667 | H239: =SUM(H219:H238) -> 55,500,000 | I239: =SUM(I219:I238) -> 56,815,789 | J239: =SUM(J219:J238) -> 56,815,789 | K239: =SUM(K219:K238) -> 79,940,789 | L239: =SUM(L219:L238) -> 82,213,517 | M239: =SUM(M219:M238) -> 84,296,850 | N239: =SUM(N219:N238) -> 84,296,850 | O239: =SUM(O219:O238) -> 106,061,556 | P239: =SUM(P219:P238) -> 141,260,420 | Q239: =SUM(Q219:Q238) -> 141,260,420 | R239: =SUM(R219:R238) -> 141,260,420 | S239: =SUM(S219:S238) -> 174,896,783 | T239: =SUM(T219:T238) -> 196,870,467 | U239: =SUM(U219:U238) -> 225,332,006 | V239: =SUM(V219:V238) -> 247,078,417 | W239: =SUM(W219:W238) -> 249,351,145 | X239: =SUM(X219:X238) -> 249,351,145 | Y239: =SUM(Y219:Y238) -> 249,351,145 | Z239: =SUM(Z219:Z238) -> 249,351,145 | AA239: =SUM(AA219:AA238) -> 224,684,478 | AB239: =SUM(AB219:AB238) -> 193,851,145 | AC239: =SUM(AC219:AC238) -> 192,535,355 | AD239: =SUM(AD219:AD238) -> 192,535,355
B242: =D242+2 -> 7 | C242: =LOOKUP(D242,$B$11:$C$20) -> Transformers | D242: 5
C244: Old Asset
C247: Asset Value | D247: Naira | F247: =LOOKUP(D242,$B$11:$B$20,$F$11:$F$20) -> 33,570,700,000 | G247: =F247 -> 33,570,700,000 | H247: =G247 -> 33,570,700,000 | I247: =H247 -> 33,570,700,000 | J247: 33,570,700,000 | K247: 33,570,700,000 | L247: 33,570,700,000 | M247: 33,570,700,000 | N247: 33,570,700,000 | O247: 33,570,700,000 | P247: 33,570,700,000 | Q247: 33,570,700,000 | R247: 33,570,700,000 | S247: 33,570,700,000 | T247: 33,570,700,000 | U247: 33,570,700,000 | V247: 33,570,700,000 | W247: 33,570,700,000 | X247: 33,570,700,000 | Y247: 33,570,700,000 | Z247: 33,570,700,000 | AA247: 33,570,700,000 | AB247: 33,570,700,000 | AC247: 33,570,700,000 | AD247: 33,570,700,000
C248: Beginning Value | D248: Naira | G248: =F253 -> 33,570,700,000 | H248: =G253 -> 31,892,165,000 | I248: =H253 -> 30,213,630,000 | J248: 28,535,095,000 | K248: 26,856,560,000 | L248: 25,178,025,000 | M248: 23,499,490,000 | N248: 21,820,955,000 | O248: 20,142,420,000 | P248: 18,463,885,000 | Q248: 16,785,350,000 | R248: 15,106,815,000 | S248: 13,428,280,000 | T248: 11,749,745,000 | U248: 10,071,210,000 | V248: 8,392,675,000 | W248: 6,714,140,000 | X248: 5,035,605,000 | Y248: 3,357,070,000 | Z248: 1,678,535,000 | AA248: =Z253 -> 0 | AB248: =AA253 -> 0 | AC248: 0 | AD248: 0
C249: Depreciation Rate | D249: Naira | G249: =LOOKUP($D242,$B$11:$B$20,$E$11:$E$20) -> 5.00% | H249: 5.00% | I249: 5.00% | J249: 5.00% | K249: 5.00% | L249: 5.00% | M249: 5.00% | N249: 5.00% | O249: 5.00% | P249: 5.00% | Q249: 5.00% | R249: 5.00% | S249: 5.00% | T249: 5.00% | U249: 5.00% | V249: 5.00% | W249: 5.00% | X249: 5.00% | Y249: 5.00% | Z249: 5.00% | AA249: 5.00% | AB249: 5.00% | AC249: 5.00% | AD249: 5.00%
C250: Opening Depreciation (prior year) | D250: Naira | F250: =E252 -> 0 | G250: 0 | H250: 1,678,535,000 | I250: 3,357,070,000 | J250: 5,035,605,000 | K250: 6,714,140,000 | L250: 8,392,675,000 | M250: 10,071,210,000 | N250: 11,749,745,000 | O250: =N252 -> 13,428,280,000 | P250: =O252 -> 15,106,815,000 | Q250: =P252 -> 16,785,350,000 | R250: =Q252 -> 18,463,885,000 | S250: =R252 -> 20,142,420,000 | T250: =S252 -> 21,820,955,000 | U250: =T252 -> 23,499,490,000 | V250: =U252 -> 25,178,025,000 | W250: =V252 -> 26,856,560,000 | X250: =W252 -> 28,535,095,000 | Y250: =X252 -> 30,213,630,000 | Z250: =Y252 -> 31,892,165,000 | AA250: =Z252 -> 33,570,700,000 | AB250: =AA252 -> 33,570,700,000 | AC250: =AB252 -> 33,570,700,000 | AD250: =AC252 -> 33,570,700,000
C251: CCA Depreciation - For Year | D251: Naira | F251: =IF(F248>0,F247*F249,0) -> 0 | G251: 1,678,535,000 | H251: 1,678,535,000 | I251: 1,678,535,000 | J251: 1,678,535,000 | K251: 1,678,535,000 | L251: 1,678,535,000 | M251: 1,678,535,000 | N251: 1,678,535,000 | O251: 1,678,535,000 | P251: 1,678,535,000 | Q251: 1,678,535,000 | R251: 1,678,535,000 | S251: 1,678,535,000 | T251: 1,678,535,000 | U251: 1,678,535,000 | V251: 1,678,535,000 | W251: 1,678,535,000 | X251: 1,678,535,000 | Y251: 1,678,535,000 | Z251: =IF(Z248>0,Z247*Z249,0) -> 1,678,535,000 | AA251: =IF(AA248>0,AA247*AA249,0) -> 0 | AB251: =IF(AB248>0,AB247*AB249,0) -> 0 | AC251: =IF(AC248>0,AC247*AC249,0) -> 0 | AD251: =IF(AD248>0,AD247*AD249,0) -> 0
C252: Accumulated Depreciation | D252: Naira | F252: 0 | G252: =SUM(G250:G251) -> 1,678,535,000 | H252: 3,357,070,000 | I252: 5,035,605,000 | J252: 6,714,140,000 | K252: 8,392,675,000 | L252: 10,071,210,000 | M252: 11,749,745,000 | N252: 13,428,280,000 | O252: 15,106,815,000 | P252: 16,785,350,000 | Q252: 18,463,885,000 | R252: 20,142,420,000 | S252: 21,820,955,000 | T252: 23,499,490,000 | U252: 25,178,025,000 | V252: 26,856,560,000 | W252: 28,535,095,000 | X252: 30,213,630,000 | Y252: 31,892,165,000 | Z252: 33,570,700,000 | AA252: 33,570,700,000 | AB252: 33,570,700,000 | AC252: 33,570,700,000 | AD252: 33,570,700,000
C253: End Value | D253: Naira | F253: =LOOKUP(D242,$B$11:$B$20,$F$11:$F$20) -> 33,570,700,000 | G253: =G247-G252 -> 31,892,165,000 | H253: 30,213,630,000 | I253: 28,535,095,000 | J253: 26,856,560,000 | K253: 25,178,025,000 | L253: 23,499,490,000 | M253: 21,820,955,000 | N253: 20,142,420,000 | O253: 18,463,885,000 | P253: 16,785,350,000 | Q253: 15,106,815,000 | R253: 13,428,280,000 | S253: 11,749,745,000 | T253: 10,071,210,000 | U253: 8,392,675,000 | V253: 6,714,140,000 | W253: 5,035,605,000 | X253: 3,357,070,000 | Y253: 1,678,535,000 | Z253: 0 | AA253: 0 | AB253: 0 | AC253: 0 | AD253: 0
C256: New Assets
C257: Beginning of period | D257: Naira | F257: 0 | G257: =F261 -> 0 | H257: =G261 -> 876,923,077 | I257: =H261 -> 2,055,524,133 | J257: =I261 -> 3,375,999,246 | K257: =J261 -> 4,419,974,817 | L257: =K261 -> 4,584,932,531 | M257: =L261 -> 4,312,390,245 | N257: =M261 -> 4,039,847,958 | O257: =N261 -> 5,382,305,672 | P257: =O261 -> 6,726,127,022 | Q257: =P261 -> 6,279,039,282 | R257: =Q261 -> 6,817,576,541 | S257: =R261 -> 6,318,613,800 | T257: =S261 -> 6,169,651,060 | U257: =T261 -> 6,285,600,600 | V257: =U261 -> 5,734,883,473 | W257: =V261 -> 5,738,333,013 | X257: =W261 -> 5,633,449,220 | Y257: =X261 -> 5,028,565,426 | Z257: =Y261 -> 5,467,014,966 | AA257: =Z261 -> 6,107,218,892 | AB257: =AA261 -> 6,032,038,203 | AC257: =AB261 -> 5,482,856,759 | AD257: =AC261 -> 5,008,995,829
C258: CCA Revaluation | D258: Naira
C259: Additional Asset - nominal value | D259: Naira | F259: =INDEX('Regulatory Asset Base'!J$156:J$165, MATCH($C242,'Regulatory Asset Base'!$C$156:$C$165,0)) -> 0 | G259: =INDEX('Regulatory Asset Base'!K$156:K$165, MATCH($C242,'Regulatory Asset Base'!$C$156:$C$165,0)) -> 923,076,923 | H259: =INDEX('Regulatory Asset Base'!L$156:L$165, MATCH($C242,'Regulatory Asset Base'!$C$156:$C$165,0)) -> 1,289,215,686 | I259: =INDEX('Regulatory Asset Base'!M$156:M$165, MATCH($C242,'Regulatory Asset Base'!$C$156:$C$165,0)) -> 1,506,410,256 | J259: =INDEX('Regulatory Asset Base'!N$156:N$165, MATCH($C242,'Regulatory Asset Base'!$C$156:$C$165,0)) -> 1,294,642,857 | K259: =INDEX('Regulatory Asset Base'!O$156:O$165, MATCH($C242,'Regulatory Asset Base'!$C$156:$C$165,0)) -> 437,500,000 | L259: =INDEX('Regulatory Asset Base'!P$156:P$165, MATCH($C242,'Regulatory Asset Base'!$C$156:$C$165,0)) -> 0 | M259: =INDEX('Regulatory Asset Base'!Q$156:Q$165, MATCH($C242,'Regulatory Asset Base'!$C$156:$C$165,0)) -> 0 | N259: =INDEX('Regulatory Asset Base'!R$156:R$165, MATCH($C242,'Regulatory Asset Base'!$C$156:$C$165,0)) -> 1,700,000,000 | O259: =INDEX('Regulatory Asset Base'!S$156:S$165, MATCH($C242,'Regulatory Asset Base'!$C$156:$C$165,0)) -> 1,790,909,091 | P259: =INDEX('Regulatory Asset Base'!T$156:T$165, MATCH($C242,'Regulatory Asset Base'!$C$156:$C$165,0)) -> 0 | Q259: =INDEX('Regulatory Asset Base'!U$156:U$165, MATCH($C242,'Regulatory Asset Base'!$C$156:$C$165,0)) -> 1,037,500,000 | R259: =INDEX('Regulatory Asset Base'!V$156:V$165, MATCH($C242,'Regulatory Asset Base'!$C$156:$C$165,0)) -> 0 | S259: =INDEX('Regulatory Asset Base'!W$156:W$165, MATCH($C242,'Regulatory Asset Base'!$C$156:$C$165,0)) -> 368,421,053 | T259: =INDEX('Regulatory Asset Base'!X$156:X$165, MATCH($C242,'Regulatory Asset Base'!$C$156:$C$165,0)) -> 666,666,667 | U259: =INDEX('Regulatory Asset Base'!Y$156:Y$165, MATCH($C242,'Regulatory Asset Base'!$C$156:$C$165,0)) -> 0 | V259: =INDEX('Regulatory Asset Base'!Z$156:Z$165, MATCH($C242,'Regulatory Asset Base'!$C$156:$C$165,0)) -> 583,333,333 | W259: =INDEX('Regulatory Asset Base'!AA$156:AA$165, MATCH($C242,'Regulatory Asset Base'!$C$156:$C$165,0)) -> 500,000,000 | X259: =INDEX('Regulatory Asset Base'!AB$156:AB$165, MATCH($C242,'Regulatory Asset Base'!$C$156:$C$165,0)) -> 0 | Y259: =INDEX('Regulatory Asset Base'!AC$156:AC$165, MATCH($C242,'Regulatory Asset Base'!$C$156:$C$165,0)) -> 1,098,245,614 | Z259: =INDEX('Regulatory Asset Base'!AD$156:AD$165, MATCH($C242,'Regulatory Asset Base'!$C$156:$C$165,0)) -> 1,300,000,000 | AA259: =INDEX('Regulatory Asset Base'!AE$156:AE$165, MATCH($C242,'Regulatory Asset Base'!$C$156:$C$165,0)) -> 538,461,538 | AB259: =INDEX('Regulatory Asset Base'!AF$156:AF$165, MATCH($C242,'Regulatory Asset Base'!$C$156:$C$165,0)) -> 0 | AC259: =INDEX('Regulatory Asset Base'!AG$156:AG$165, MATCH($C242,'Regulatory Asset Base'!$C$156:$C$165,0)) -> 0 | AD259: =INDEX('Regulatory Asset Base'!AH$156:AH$165, MATCH($C242,'Regulatory Asset Base'!$C$156:$C$165,0)) -> 1,069,078,947
C260: Straight Line Amortisation - real | D260: Naira | F260: =F291 -> 0 | G260: =G291 -> 46,153,846 | H260: =H291 -> 110,614,630 | I260: =I291 -> 185,935,143 | J260: 250,667,286 | K260: 272,542,286 | L260: 272,542,286 | M260: 272,542,286 | N260: 357,542,286 | O260: 447,087,741 | P260: 447,087,741 | Q260: 498,962,741 | R260: 498,962,741 | S260: 517,383,793 | T260: 550,717,127 | U260: 550,717,127 | V260: 579,883,793 | W260: 604,883,793 | X260: 604,883,793 | Y260: 659,796,074 | Z260: 659,796,074 | AA260: 613,642,228 | AB260: 549,181,444 | AC260: 473,860,931 | AD260: 409,128,788
C261: End of period | D261: Naira | F261: =SUM(F257:F259)-F260 -> 0 | G261: 876,923,077 | H261: =SUM(H257:H259)-H260 -> 2,055,524,133 | I261: =SUM(I257:I259)-I260 -> 3,375,999,246 | J261: 4,419,974,817 | K261: =SUM(K257:K259)-K260 -> 4,584,932,531 | L261: 4,312,390,245 | M261: 4,039,847,958 | N261: =SUM(N257:N259)-N260 -> 5,382,305,672 | O261: 6,726,127,022 | P261: 6,279,039,282 | Q261: 6,817,576,541 | R261: 6,318,613,800 | S261: 6,169,651,060 | T261: =SUM(T257:T259)-T260 -> 6,285,600,600 | U261: 5,734,883,473 | V261: 5,738,333,013 | W261: 5,633,449,220 | X261: 5,028,565,426 | Y261: 5,467,014,966 | Z261: 6,107,218,892 | AA261: 6,032,038,203 | AB261: 5,482,856,759 | AC261: 5,008,995,829 | AD261: 5,668,945,988
C264: Cumulative New Asset Less Combined (mixed) Depreciation | D264: Naira | F264: =F253 -> 33,570,700,000 | G264: =F264+G259-(G251+G260) -> 32,769,088,077 | H264: =G264+H259-(H251+H260) -> 32,269,154,133 | I264: 31,911,094,246 | J264: 31,276,534,817 | K264: 29,762,957,531 | L264: 27,811,880,245 | M264: 25,860,802,958 | N264: 25,524,725,672 | O264: 25,190,012,022 | P264: 23,064,389,282 | Q264: 21,924,391,541 | R264: 19,746,893,800 | S264: 17,919,396,060 | T264: 16,356,810,600 | U264: 14,127,558,473 | V264: 12,452,473,013 | W264: 10,669,054,220 | X264: 8,385,635,426 | Y264: 7,145,549,966 | Z264: 6,107,218,892 | AA264: 6,032,038,203 | AB264: 5,482,856,759 | AC264: 5,008,995,829 | AD264: 5,668,945,988
C265: REGULATOR - DORC DEPRECIATION | D265: Naira | F265: =(F290+F251) -> 0 | G265: =(G251+G260) -> 1,724,688,846 | H265: =(H251+H260) -> 1,789,149,630 | I265: =(I251+I260) -> 1,864,470,143 | J265: =(J251+J260) -> 1,929,202,286 | K265: 1,951,077,286 | L265: 1,951,077,286 | M265: 1,951,077,286 | N265: 2,036,077,286 | O265: 2,125,622,741 | P265: 2,125,622,741 | Q265: 2,177,497,741 | R265: 2,177,497,741 | S265: 2,195,918,793 | T265: 2,229,252,127 | U265: 2,229,252,127 | V265: 2,258,418,793 | W265: 2,283,418,793 | X265: 2,283,418,793 | Y265: 2,338,331,074 | Z265: 2,338,331,074 | AA265: 613,642,228 | AB265: 549,181,444 | AC265: 473,860,931 | AD265: 409,128,788
C267: Straight Line Amortisation - New Assets
C270: Year | E270: =C259 -> Additional Asset - nominal value
C271: ='Input Data'!$F$10 -> 2024 | D271: Naira | F271: =IF(F$4<$C271,0,IF(F$4>=$C271+$D$15,0,$E271/$D$15)) -> 0 | G271: 0 | H271: 0 | I271: 0 | J271: 0 | K271: 0 | L271: 0 | M271: 0 | N271: 0 | O271: 0 | P271: =IF(P$4<$C271,0,IF(P$4>=$C271+$D$15,0,$E271/$D$15)) -> 0 | Q271: 0 | R271: 0 | S271: 0 | T271: 0 | U271: 0 | V271: 0 | W271: 0 | X271: 0 | Y271: 0 | Z271: 0 | AA271: 0 | AB271: 0 | AC271: 0 | AD271: 0
C272: =C271+1 -> 2025 | D272: Naira | E272: =OFFSET('Regulatory Asset Base'!$K$156,$D242-1,0) -> 923,076,923 | F272: 0 | G272: 46,153,846 | H272: 46,153,846 | I272: 46,153,846 | J272: 46,153,846 | K272: 46,153,846 | L272: 46,153,846 | M272: 46,153,846 | N272: 46,153,846 | O272: 46,153,846 | P272: 46,153,846 | Q272: 46,153,846 | R272: 46,153,846 | S272: 46,153,846 | T272: 46,153,846 | U272: 46,153,846 | V272: 46,153,846 | W272: 46,153,846 | X272: 46,153,846 | Y272: 46,153,846 | Z272: 46,153,846 | AA272: 0 | AB272: 0 | AC272: 0 | AD272: 0
... 219 more rows

Sheet Tariff Calculation
B1: Go to Control Page
B4: No | C4: Item | D4: Unit | E4: Constant | G4: ='Input Data'!F10 -> 2024 | H4: =G4+1 -> 2025 | I4: 2026 | J4: 2027 | K4: 2028 | L4: 2029 | M4: 2030 | N4: 2031 | O4: 2032 | P4: 2033 | Q4: =P4+1 -> 2034 | R4: =Q4+1 -> 2035 | S4: =R4+1 -> 2036 | T4: =S4+1 -> 2037 | U4: =T4+1 -> 2038 | V4: =U4+1 -> 2039 | W4: =V4+1 -> 2040 | X4: =W4+1 -> 2041 | Y4: =X4+1 -> 2042 | Z4: =Y4+1 -> 2043 | AA4: =Z4+1 -> 2044 | AB4: =AA4+1 -> 2045 | AC4: =AB4+1 -> 2046 | AD4: 2047
B10: 1 | C10: OVERALL TARIFF
C12: Cost
C13: Generation Cost | D13: Naira | G13: ='Gen and Trans'!G15 -> 126,405,720,000 | H13: ='Gen and Trans'!H15 -> 126,405,720,000 | I13: ='Gen and Trans'!I15 -> 126,405,720,000 | J13: ='Gen and Trans'!J15 -> 126,405,720,000 | K13: ='Gen and Trans'!K15 -> 126,405,720,000 | L13: ='Gen and Trans'!L15 -> 126,405,720,000 | M13: ='Gen and Trans'!M15 -> 126,405,720,000 | N13: ='Gen and Trans'!N15 -> 126,405,720,000 | O13: ='Gen and Trans'!O15 -> 126,405,720,000 | P13: ='Gen and Trans'!P15 -> 126,405,720,000 | Q13: ='Gen and Trans'!Q15 -> 126,405,720,000 | R13: ='Gen and Trans'!R15 -> 126,405,720,000 | S13: ='Gen and Trans'!S15 -> 126,405,720,000 | T13: ='Gen and Trans'!T15 -> 126,405,720,000 | U13: ='Gen and Trans'!U15 -> 126,405,720,000 | V13: ='Gen and Trans'!V15 -> 126,405,720,000 | W13: ='Gen and Trans'!W15 -> 126,405,720,000 | X13: ='Gen and Trans'!X15 -> 126,405,720,000 | Y13: ='Gen and Trans'!Y15 -> 126,405,720,000 | Z13: ='Gen and Trans'!Z15 -> 126,405,720,000 | AA13: ='Gen and Trans'!AA15 -> 126,405,720,000 | AB13: ='Gen and Trans'!AB15 -> 126,405,720,000 | AC13: ='Gen and Trans'!AC15 -> 126,405,720,000 | AD13: ='Gen and Trans'!AD15 -> 126,405,720,000
C14: Transmission Cost | D14: Naira | G14: ='Gen and Trans'!G20 -> 10,370,178,000 | H14: ='Gen and Trans'!H20 -> 10,370,178,000 | I14: ='Gen and Trans'!I20 -> 10,370,178,000 | J14: ='Gen and Trans'!J20 -> 10,370,178,000 | K14: ='Gen and Trans'!K20 -> 10,370,178,000 | L14: ='Gen and Trans'!L20 -> 10,370,178,000 | M14: ='Gen and Trans'!M20 -> 10,370,178,000 | N14: ='Gen and Trans'!N20 -> 10,370,178,000 | O14: ='Gen and Trans'!O20 -> 10,370,178,000 | P14: ='Gen and Trans'!P20 -> 10,370,178,000 | Q14: ='Gen and Trans'!Q20 -> 10,370,178,000 | R14: ='Gen and Trans'!R20 -> 10,370,178,000 | S14: ='Gen and Trans'!S20 -> 10,370,178,000 | T14: ='Gen and Trans'!T20 -> 10,370,178,000 | U14: ='Gen and Trans'!U20 -> 10,370,178,000 | V14: ='Gen and Trans'!V20 -> 10,370,178,000 | W14: ='Gen and Trans'!W20 -> 10,370,178,000 | X14: ='Gen and Trans'!X20 -> 10,370,178,000 | Y14: ='Gen and Trans'!Y20 -> 10,370,178,000 | Z14: ='Gen and Trans'!Z20 -> 10,370,178,000 | AA14: ='Gen and Trans'!AA20 -> 10,370,178,000 | AB14: ='Gen and Trans'!AB20 -> 10,370,178,000 | AC14: ='Gen and Trans'!AC20 -> 10,370,178,000 | AD14: ='Gen and Trans'!AD20 -> 10,370,178,000
C15: Disco Operating Cost | D15: Naira | G15: ='Regulated OPEX'!G22 -> 462,300,000 | H15: ='Regulated OPEX'!H22 -> 681,000,000 | I15: ='Regulated OPEX'!I22 -> 502,700,000 | J15: ='Regulated OPEX'!J22 -> 608,400,000 | K15: ='Regulated OPEX'!K22 -> 466,900,000 | L15: ='Regulated OPEX'!L22 -> 504,500,000 | M15: ='Regulated OPEX'!M22 -> 473,600,000 | N15: ='Regulated OPEX'!N22 -> 548,100,000 | O15: ='Regulated OPEX'!O22 -> 509,900,000 | P15: ='Regulated OPEX'!P22 -> 527,600,000 | Q15: ='Regulated OPEX'!Q22 -> 599,300,000 | R15: ='Regulated OPEX'!R22 -> 661,200,000 | S15: ='Regulated OPEX'!S22 -> 539,200,000 | T15: ='Regulated OPEX'!T22 -> 384,100,000 | U15: ='Regulated OPEX'!U22 -> 469,800,000 | V15: ='Regulated OPEX'!V22 -> 456,900,000 | W15: ='Regulated OPEX'!W22 -> 504,500,000 | X15: ='Regulated OPEX'!X22 -> 469,900,000 | Y15: ='Regulated OPEX'!Y22 -> 344,800,000 | Z15: ='Regulated OPEX'!Z22 -> 437,400,000 | AA15: ='Regulated OPEX'!AA22 -> 497,600,000 | AB15: ='Regulated OPEX'!AB22 -> 507,200,000 | AC15: ='Regulated OPEX'!AC22 -> 530,100,000 | AD15: ='Regulated OPEX'!AD22 -> 604,200,000
C16: Disco Maintenance Cost | D16: Naira | G16: ='Regulated OPEX'!G39 -> 669,200,000 | H16: ='Regulated OPEX'!H39 -> 535,400,000 | I16: ='Regulated OPEX'!I39 -> 733,700,000 | J16: ='Regulated OPEX'!J39 -> 667,300,000 | K16: ='Regulated OPEX'!K39 -> 594,900,000 | L16: ='Regulated OPEX'!L39 -> 594,200,000 | M16: ='Regulated OPEX'!M39 -> 688,500,000 | N16: ='Regulated OPEX'!N39 -> 537,000,000 | O16: ='Regulated OPEX'!O39 -> 703,400,000 | P16: ='Regulated OPEX'!P39 -> 722,100,000 | Q16: ='Regulated OPEX'!Q39 -> 641,500,000 | R16: ='Regulated OPEX'!R39 -> 587,500,000 | S16: ='Regulated OPEX'!S39 -> 444,500,000 | T16: ='Regulated OPEX'!T39 -> 805,500,000 | U16: ='Regulated OPEX'!U39 -> 843,000,000 | V16: ='Regulated OPEX'!V39 -> 585,700,000 | W16: ='Regulated OPEX'!W39 -> 570,300,000 | X16: ='Regulated OPEX'!X39 -> 644,800,000 | Y16: ='Regulated OPEX'!Y39 -> 848,200,000 | Z16: ='Regulated OPEX'!Z39 -> 397,700,000 | AA16: ='Regulated OPEX'!AA39 -> 620,800,000 | AB16: ='Regulated OPEX'!AB39 -> 564,600,000 | AC16: ='Regulated OPEX'!AC39 -> 688,600,000 | AD16: ='Regulated OPEX'!AD39 -> 787,600,000
C17: Depreciation Cost | D17: Naira | G17: ='Asset Depreciation'!F28 -> 0 | H17: ='Asset Depreciation'!G28 -> 4,805,287,287 | I17: ='Asset Depreciation'!H28 -> 4,930,927,301 | J17: ='Asset Depreciation'!I28 -> 5,007,803,603 | K17: ='Asset Depreciation'!J28 -> 5,160,330,688 | L17: ='Asset Depreciation'!K28 -> 5,259,861,164 | M17: ='Asset Depreciation'!L28 -> 4,600,572,432 | N17: ='Asset Depreciation'!M28 -> 4,674,723,731 | O17: ='Asset Depreciation'!N28 -> 4,874,812,905 | P17: ='Asset Depreciation'!O28 -> 4,976,576,558 | Q17: ='Asset Depreciation'!P28 -> 5,034,102,615 | R17: ='Asset Depreciation'!Q28 -> 4,102,832,816 | S17: ='Asset Depreciation'!R28 -> 4,130,235,662 | T17: ='Asset Depreciation'!S28 -> 4,188,264,383 | U17: ='Asset Depreciation'!T28 -> 4,198,305,540 | V17: ='Asset Depreciation'!U28 -> 4,277,034,253 | W17: ='Asset Depreciation'!V28 -> 4,344,321,133 | X17: ='Asset Depreciation'!W28 -> 4,309,306,489 | Y17: ='Asset Depreciation'!X28 -> 4,348,014,417 | Z17: ='Asset Depreciation'!Y28 -> 4,462,927,126 | AA17: ='Asset Depreciation'!Z28 -> 4,408,365,723 | AB17: ='Asset Depreciation'!AA28 -> 1,355,812,044 | AC17: ='Asset Depreciation'!AB28 -> 1,256,116,965 | AD17: ='Asset Depreciation'!AC28 -> 1,096,160,602
C18: Return on Capital Cost | D18: Naira | G18: ='Asset Depreciation'!F31 -> 21,639,205,380 | H18: ='Asset Depreciation'!G31 -> 20,884,973,902 | I18: ='Asset Depreciation'!H31 -> 20,137,956,763 | J18: ='Asset Depreciation'!I31 -> 19,156,520,583 | K18: ='Asset Depreciation'!J31 -> 18,318,699,953 | L18: ='Asset Depreciation'!K31 -> 17,181,725,004 | M18: ='Asset Depreciation'!L31 -> 16,040,447,906 | N18: ='Asset Depreciation'!M31 -> 15,076,119,681 | O18: ='Asset Depreciation'!N31 -> 14,518,252,260 | P18: ='Asset Depreciation'!O31 -> 13,884,301,051 | Q18: ='Asset Depreciation'!P31 -> 12,890,417,953 | R18: ='Asset Depreciation'!Q31 -> 12,280,568,409 | S18: ='Asset Depreciation'!R31 -> 11,172,678,608 | T18: ='Asset Depreciation'!S31 -> 10,511,696,006 | U18: ='Asset Depreciation'!T31 -> 9,642,270,642 | V18: ='Asset Depreciation'!U31 -> 8,886,764,971 | W18: ='Asset Depreciation'!V31 -> 8,033,450,012 | X18: ='Asset Depreciation'!W31 -> 7,174,753,394 | Y18: ='Asset Depreciation'!X31 -> 6,177,955,743 | Z18: ='Asset Depreciation'!Y31 -> 5,392,087,912 | AA18: ='Asset Depreciation'!Z31 -> 4,933,129,028 | AB18: ='Asset Depreciation'!AA31 -> 4,869,527,897 | AC18: ='Asset Depreciation'!AB31 -> 4,981,559,175 | AD18: ='Asset Depreciation'!AC31 -> 4,847,625,829
C19: EERC Cost | D19: Naira | G19: =SUM(G13:G18)*'Input Data'!G60 -> 2,233,652,447 | H19: =SUM(H13:H18)*'Input Data'!H60 -> 2,291,555,829 | I19: =SUM(I13:I18)*'Input Data'!I60 -> 2,283,136,549 | J19: =SUM(J13:J18)*'Input Data'!J60 -> 2,271,022,911 | K19: =SUM(K13:K18)*'Input Data'!K60 -> 2,258,434,201 | L19: =SUM(L13:L18)*'Input Data'!L60 -> 2,244,426,578 | M19: =SUM(M13:M18)*'Input Data'!M60 -> 2,220,106,257 | N19: =SUM(N13:N18)*'Input Data'!N60 -> 2,206,565,780 | O19: =SUM(O13:O18)*'Input Data'!O60 -> 2,203,351,684 | P19: =SUM(P13:P18)*'Input Data'!P60 -> 2,196,410,659 | Q19: =SUM(Q13:Q18)*'Input Data'!Q60 -> 2,183,177,060 | R19: =SUM(R13:R18)*'Input Data'!R60 -> 2,161,711,989 | S19: =SUM(S13:S18)*'Input Data'!S60 -> 2,142,875,172 | T19: =SUM(T13:T18)*'Input Data'!T60 -> 2,137,316,417 | U19: =SUM(U13:U18)*'Input Data'!U60 -> 2,127,009,839 | V19: =SUM(V13:V18)*'Input Data'!V60 -> 2,113,752,161 | W19: =SUM(W13:W18)*'Input Data'!W60 -> 2,103,198,568 | X19: =SUM(X13:X18)*'Input Data'!X60 -> 2,091,245,210 | Y19: =SUM(Y13:Y18)*'Input Data'!Y60 -> 2,078,928,154 | Z19: =SUM(Z13:Z18)*'Input Data'!Z60 -> 2,064,524,183 | AA19: =SUM(AA13:AA18)*'Input Data'!AA60 -> 2,061,301,099 | AB19: =SUM(AB13:AB18)*'Input Data'!AB60 -> 2,017,022,531 | AC19: =SUM(AC13:AC18)*'Input Data'!AC60 -> 2,019,251,838 | AD19: =SUM(AD13:AD18)*'Input Data'!AD60 -> 2,017,560,782
C21: Total | G21: =SUM(G13:G20) -> 161,780,255,827 | H21: =SUM(H13:H20) -> 165,974,115,018 | I21: 165,364,318,613 | J21: 164,486,945,097 | K21: 163,575,162,842 | L21: 162,560,610,747 | M21: 160,799,124,595 | N21: 159,818,407,192 | O21: 159,585,614,849 | P21: 159,082,886,268 | Q21: 158,124,395,628 | R21: 156,569,711,214 | S21: 155,205,387,442 | T21: 154,802,774,806 | U21: 154,056,284,020 | V21: 153,096,049,385 | W21: 152,331,667,713 | X21: 151,465,903,094 | Y21: 150,573,796,314 | Z21: 149,530,537,221 | AA21: 149,297,093,849 | AB21: 146,090,060,472 | AC21: 146,251,525,977 | AD21: 146,129,045,213
C24: Tariff
C25: Generation Tariff | D25: Naira/KWh | G25: =G13/'Gen and Trans'!G$10/1000 -> 103.00 | H25: =H13/'Gen and Trans'!H$10/1000 -> 103.00 | I25: =I13/'Gen and Trans'!I$10/1000 -> 103.00 | J25: =J13/'Gen and Trans'!J$10/1000 -> 103.00 | K25: =K13/'Gen and Trans'!K$10/1000 -> 103.00 | L25: =L13/'Gen and Trans'!L$10/1000 -> 103.00 | M25: =M13/'Gen and Trans'!M$10/1000 -> 103.00 | N25: =N13/'Gen and Trans'!N$10/1000 -> 103.00 | O25: =O13/'Gen and Trans'!O$10/1000 -> 103.00 | P25: =P13/'Gen and Trans'!P$10/1000 -> 103.00 | Q25: =Q13/'Gen and Trans'!Q$10/1000 -> 103.00 | R25: =R13/'Gen and Trans'!R$10/1000 -> 103.00 | S25: =S13/'Gen and Trans'!S$10/1000 -> 103.00 | T25: =T13/'Gen and Trans'!T$10/1000 -> 103.00 | U25: =U13/'Gen and Trans'!U$10/1000 -> 103.00 | V25: =V13/'Gen and Trans'!V$10/1000 -> 103.00 | W25: =W13/'Gen and Trans'!W$10/1000 -> 103.00 | X25: =X13/'Gen and Trans'!X$10/1000 -> 103.00 | Y25: =Y13/'Gen and Trans'!Y$10/1000 -> 103.00 | Z25: =Z13/'Gen and Trans'!Z$10/1000 -> 103.00 | AA25: =AA13/'Gen and Trans'!AA$10/1000 -> 103.00 | AB25: =AB13/'Gen and Trans'!AB$10/1000 -> 103.00 | AC25: =AC13/'Gen and Trans'!AC$10/1000 -> 103.00 | AD25: =AD13/'Gen and Trans'!AD$10/1000 -> 103.00
C26: Transmission Tariff | D26: Naira/KWh | G26: =G14/'Gen and Trans'!G$10/1000 -> 8.45 | H26: =H14/'Gen and Trans'!H$10/1000 -> 8.45 | I26: =I14/'Gen and Trans'!I$10/1000 -> 8.45 | J26: =J14/'Gen and Trans'!J$10/1000 -> 8.45 | K26: =K14/'Gen and Trans'!K$10/1000 -> 8.45 | L26: =L14/'Gen and Trans'!L$10/1000 -> 8.45 | M26: =M14/'Gen and Trans'!M$10/1000 -> 8.45 | N26: =N14/'Gen and Trans'!N$10/1000 -> 8.45 | O26: =O14/'Gen and Trans'!O$10/1000 -> 8.45 | P26: =P14/'Gen and Trans'!P$10/1000 -> 8.45 | Q26: =Q14/'Gen and Trans'!Q$10/1000 -> 8.45 | R26: =R14/'Gen and Trans'!R$10/1000 -> 8.45 | S26: =S14/'Gen and Trans'!S$10/1000 -> 8.45 | T26: =T14/'Gen and Trans'!T$10/1000 -> 8.45 | U26: =U14/'Gen and Trans'!U$10/1000 -> 8.45 | V26: =V14/'Gen and Trans'!V$10/1000 -> 8.45 | W26: =W14/'Gen and Trans'!W$10/1000 -> 8.45 | X26: =X14/'Gen and Trans'!X$10/1000 -> 8.45 | Y26: =Y14/'Gen and Trans'!Y$10/1000 -> 8.45 | Z26: =Z14/'Gen and Trans'!Z$10/1000 -> 8.45 | AA26: =AA14/'Gen and Trans'!AA$10/1000 -> 8.45 | AB26: =AB14/'Gen and Trans'!AB$10/1000 -> 8.45 | AC26: =AC14/'Gen and Trans'!AC$10/1000 -> 8.45 | AD26: =AD14/'Gen and Trans'!AD$10/1000 -> 8.45
C27: Disco Operating Tariff | D27: Naira/KWh | G27: =G15/'Gen and Trans'!G$10/1000 -> 0.38 | H27: =H15/'Gen and Trans'!H$10/1000 -> 0.55 | I27: =I15/'Gen and Trans'!I$10/1000 -> 0.41 | J27: =J15/'Gen and Trans'!J$10/1000 -> 0.50 | K27: =K15/'Gen and Trans'!K$10/1000 -> 0.38 | L27: =L15/'Gen and Trans'!L$10/1000 -> 0.41 | M27: =M15/'Gen and Trans'!M$10/1000 -> 0.39 | N27: =N15/'Gen and Trans'!N$10/1000 -> 0.45 | O27: =O15/'Gen and Trans'!O$10/1000 -> 0.42 | P27: =P15/'Gen and Trans'!P$10/1000 -> 0.43 | Q27: =Q15/'Gen and Trans'!Q$10/1000 -> 0.49 | R27: =R15/'Gen and Trans'!R$10/1000 -> 0.54 | S27: =S15/'Gen and Trans'!S$10/1000 -> 0.44 | T27: =T15/'Gen and Trans'!T$10/1000 -> 0.31 | U27: =U15/'Gen and Trans'!U$10/1000 -> 0.38 | V27: =V15/'Gen and Trans'!V$10/1000 -> 0.37 | W27: =W15/'Gen and Trans'!W$10/1000 -> 0.41 | X27: =X15/'Gen and Trans'!X$10/1000 -> 0.38 | Y27: =Y15/'Gen and Trans'!Y$10/1000 -> 0.28 | Z27: =Z15/'Gen and Trans'!Z$10/1000 -> 0.36 | AA27: =AA15/'Gen and Trans'!AA$10/1000 -> 0.41 | AB27: =AB15/'Gen and Trans'!AB$10/1000 -> 0.41 | AC27: =AC15/'Gen and Trans'!AC$10/1000 -> 0.43 | AD27: =AD15/'Gen and Trans'!AD$10/1000 -> 0.49
C28: Disco Maintenance Tariff | D28: Naira/KWh | G28: =G16/'Gen and Trans'!G$10/1000 -> 0.55 | H28: =H16/'Gen and Trans'!H$10/1000 -> 0.44 | I28: =I16/'Gen and Trans'!I$10/1000 -> 0.60 | J28: =J16/'Gen and Trans'!J$10/1000 -> 0.54 | K28: =K16/'Gen and Trans'!K$10/1000 -> 0.48 | L28: =L16/'Gen and Trans'!L$10/1000 -> 0.48 | M28: =M16/'Gen and Trans'!M$10/1000 -> 0.56 | N28: =N16/'Gen and Trans'!N$10/1000 -> 0.44 | O28: =O16/'Gen and Trans'!O$10/1000 -> 0.57 | P28: =P16/'Gen and Trans'!P$10/1000 -> 0.59 | Q28: =Q16/'Gen and Trans'!Q$10/1000 -> 0.52 | R28: =R16/'Gen and Trans'!R$10/1000 -> 0.48 | S28: =S16/'Gen and Trans'!S$10/1000 -> 0.36 | T28: =T16/'Gen and Trans'!T$10/1000 -> 0.66 | U28: =U16/'Gen and Trans'!U$10/1000 -> 0.69 | V28: =V16/'Gen and Trans'!V$10/1000 -> 0.48 | W28: =W16/'Gen and Trans'!W$10/1000 -> 0.46 | X28: =X16/'Gen and Trans'!X$10/1000 -> 0.53 | Y28: =Y16/'Gen and Trans'!Y$10/1000 -> 0.69 | Z28: =Z16/'Gen and Trans'!Z$10/1000 -> 0.32 | AA28: =AA16/'Gen and Trans'!AA$10/1000 -> 0.51 | AB28: =AB16/'Gen and Trans'!AB$10/1000 -> 0.46 | AC28: =AC16/'Gen and Trans'!AC$10/1000 -> 0.56 | AD28: =AD16/'Gen and Trans'!AD$10/1000 -> 0.64
C29: Depreciation Tariff | D29: Naira/KWh | G29: =G17/'Gen and Trans'!G$10/1000 -> 0 | H29: =H17/'Gen and Trans'!H$10/1000 -> 3.92 | I29: =I17/'Gen and Trans'!I$10/1000 -> 4.02 | J29: =J17/'Gen and Trans'!J$10/1000 -> 4.08 | K29: =K17/'Gen and Trans'!K$10/1000 -> 4.20 | L29: =L17/'Gen and Trans'!L$10/1000 -> 4.29 | M29: =M17/'Gen and Trans'!M$10/1000 -> 3.75 | N29: =N17/'Gen and Trans'!N$10/1000 -> 3.81 | O29: =O17/'Gen and Trans'!O$10/1000 -> 3.97 | P29: =P17/'Gen and Trans'!P$10/1000 -> 4.06 | Q29: =Q17/'Gen and Trans'!Q$10/1000 -> 4.10 | R29: =R17/'Gen and Trans'!R$10/1000 -> 3.34 | S29: =S17/'Gen and Trans'!S$10/1000 -> 3.37 | T29: =T17/'Gen and Trans'!T$10/1000 -> 3.41 | U29: =U17/'Gen and Trans'!U$10/1000 -> 3.42 | V29: =V17/'Gen and Trans'!V$10/1000 -> 3.49 | W29: =W17/'Gen and Trans'!W$10/1000 -> 3.54 | X29: =X17/'Gen and Trans'!X$10/1000 -> 3.51 | Y29: =Y17/'Gen and Trans'!Y$10/1000 -> 3.54 | Z29: =Z17/'Gen and Trans'!Z$10/1000 -> 3.64 | AA29: =AA17/'Gen and Trans'!AA$10/1000 -> 3.59 | AB29: =AB17/'Gen and Trans'!AB$10/1000 -> 1.10 | AC29: =AC17/'Gen and Trans'!AC$10/1000 -> 1.02 | AD29: =AD17/'Gen and Trans'!AD$10/1000 -> 0.89
C30: Return on Capital Tariff | D30: Naira/KWh | G30: =G18/'Gen and Trans'!G$10/1000 -> 17.63 | H30: =H18/'Gen and Trans'!H$10/1000 -> 17.02 | I30: =I18/'Gen and Trans'!I$10/1000 -> 16.41 | J30: =J18/'Gen and Trans'!J$10/1000 -> 15.61 | K30: =K18/'Gen and Trans'!K$10/1000 -> 14.93 | L30: =L18/'Gen and Trans'!L$10/1000 -> 14.00 | M30: =M18/'Gen and Trans'!M$10/1000 -> 13.07 | N30: =N18/'Gen and Trans'!N$10/1000 -> 12.28 | O30: =O18/'Gen and Trans'!O$10/1000 -> 11.83 | P30: =P18/'Gen and Trans'!P$10/1000 -> 11.31 | Q30: =Q18/'Gen and Trans'!Q$10/1000 -> 10.50 | R30: =R18/'Gen and Trans'!R$10/1000 -> 10.01 | S30: =S18/'Gen and Trans'!S$10/1000 -> 9.10 | T30: =T18/'Gen and Trans'!T$10/1000 -> 8.57 | U30: =U18/'Gen and Trans'!U$10/1000 -> 7.86 | V30: =V18/'Gen and Trans'!V$10/1000 -> 7.24 | W30: =W18/'Gen and Trans'!W$10/1000 -> 6.55 | X30: =X18/'Gen and Trans'!X$10/1000 -> 5.85 | Y30: =Y18/'Gen and Trans'!Y$10/1000 -> 5.03 | Z30: =Z18/'Gen and Trans'!Z$10/1000 -> 4.39 | AA30: =AA18/'Gen and Trans'!AA$10/1000 -> 4.02 | AB30: =AB18/'Gen and Trans'!AB$10/1000 -> 3.97 | AC30: =AC18/'Gen and Trans'!AC$10/1000 -> 4.06 | AD30: =AD18/'Gen and Trans'!AD$10/1000 -> 3.95
C31: EERC Tariff | D31: Naira/KWh | G31: =G19/'Gen and Trans'!G$10/1000 -> 1.82 | H31: =H19/'Gen and Trans'!H$10/1000 -> 1.87 | I31: =I19/'Gen and Trans'!I$10/1000 -> 1.86 | J31: =J19/'Gen and Trans'!J$10/1000 -> 1.85 | K31: =K19/'Gen and Trans'!K$10/1000 -> 1.84 | L31: =L19/'Gen and Trans'!L$10/1000 -> 1.83 | M31: =M19/'Gen and Trans'!M$10/1000 -> 1.81 | N31: =N19/'Gen and Trans'!N$10/1000 -> 1.80 | O31: =O19/'Gen and Trans'!O$10/1000 -> 1.80 | P31: =P19/'Gen and Trans'!P$10/1000 -> 1.79 | Q31: =Q19/'Gen and Trans'!Q$10/1000 -> 1.78 | R31: =R19/'Gen and Trans'!R$10/1000 -> 1.76 | S31: =S19/'Gen and Trans'!S$10/1000 -> 1.75 | T31: =T19/'Gen and Trans'!T$10/1000 -> 1.74 | U31: =U19/'Gen and Trans'!U$10/1000 -> 1.73 | V31: =V19/'Gen and Trans'!V$10/1000 -> 1.72 | W31: =W19/'Gen and Trans'!W$10/1000 -> 1.71 | X31: =X19/'Gen and Trans'!X$10/1000 -> 1.70 | Y31: =Y19/'Gen and Trans'!Y$10/1000 -> 1.69 | Z31: =Z19/'Gen and Trans'!Z$10/1000 -> 1.68 | AA31: =AA19/'Gen and Trans'!AA$10/1000 -> 1.68 | AB31: =AB19/'Gen and Trans'!AB$10/1000 -> 1.64 | AC31: =AC19/'Gen and Trans'!AC$10/1000 -> 1.65 | AD31: =AD19/'Gen and Trans'!AD$10/1000 -> 1.64
C32: Disco Loss Tariff | D32: Naira/KWh | G32: =((G21/'Gen and Trans'!G11)-(G21/'Gen and Trans'!G10))/1000 -> 43.94 | H32: =((H21/'Gen and Trans'!H11)-(H21/'Gen and Trans'!H10))/1000 -> 45.08 | I32: =((I21/'Gen and Trans'!I11)-(I21/'Gen and Trans'!I10))/1000 -> 44.91 | J32: =((J21/'Gen and Trans'!J11)-(J21/'Gen and Trans'!J10))/1000 -> 44.68 | K32: =((K21/'Gen and Trans'!K11)-(K21/'Gen and Trans'!K10))/1000 -> 44.43 | L32: =((L21/'Gen and Trans'!L11)-(L21/'Gen and Trans'!L10))/1000 -> 44.15 | M32: =((M21/'Gen and Trans'!M11)-(M21/'Gen and Trans'!M10))/1000 -> 43.68 | N32: =((N21/'Gen and Trans'!N11)-(N21/'Gen and Trans'!N10))/1000 -> 43.41 | O32: =((O21/'Gen and Trans'!O11)-(O21/'Gen and Trans'!O10))/1000 -> 43.35 | P32: =((P21/'Gen and Trans'!P11)-(P21/'Gen and Trans'!P10))/1000 -> 43.21 | Q32: =((Q21/'Gen and Trans'!Q11)-(Q21/'Gen and Trans'!Q10))/1000 -> 42.95 | R32: =((R21/'Gen and Trans'!R11)-(R21/'Gen and Trans'!R10))/1000 -> 42.53 | S32: =((S21/'Gen and Trans'!S11)-(S21/'Gen and Trans'!S10))/1000 -> 42.16 | T32: =((T21/'Gen and Trans'!T11)-(T21/'Gen and Trans'!T10))/1000 -> 42.05 | U32: =((U21/'Gen and Trans'!U11)-(U21/'Gen and Trans'!U10))/1000 -> 41.84 | V32: =((V21/'Gen and Trans'!V11)-(V21/'Gen and Trans'!V10))/1000 -> 41.58 | W32: =((W21/'Gen and Trans'!W11)-(W21/'Gen and Trans'!W10))/1000 -> 41.38 | X32: =((X21/'Gen and Trans'!X11)-(X21/'Gen and Trans'!X10))/1000 -> 41.14 | Y32: =((Y21/'Gen and Trans'!Y11)-(Y21/'Gen and Trans'!Y10))/1000 -> 40.90 | Z32: =((Z21/'Gen and Trans'!Z11)-(Z21/'Gen and Trans'!Z10))/1000 -> 40.61 | AA32: =((AA21/'Gen and Trans'!AA11)-(AA21/'Gen and Trans'!AA10))/1000 -> 40.55 | AB32: =((AB21/'Gen and Trans'!AB11)-(AB21/'Gen and Trans'!AB10))/1000 -> 39.68 | AC32: =((AC21/'Gen and Trans'!AC11)-(AC21/'Gen and Trans'!AC10))/1000 -> 39.72 | AD32: =((AD21/'Gen and Trans'!AD11)-(AD21/'Gen and Trans'!AD10))/1000 -> 39.69
C34: Total | G34: =SUM(G25:G33) -> 175.77 | H34: =SUM(H25:H33) -> 180.32 | I34: 179.66 | J34: 178.71 | K34: 177.72 | L34: 176.61 | M34: 174.70 | N34: 173.63 | O34: 173.38 | P34: 172.84 | Q34: 171.79 | R34: 170.10 | S34: 168.62 | T34: 168.19 | U34: 167.37 | V34: 166.33 | W34: 165.50 | X34: 164.56 | Y34: 163.59 | Z34: 162.46 | AA34: 162.20 | AB34: 158.72 | AC34: 158.89 | AD34: 158.76
G35: =(G21/'Gen and Trans'!G11/1000)-G34 -> 0 | H35: =(H21/'Gen and Trans'!H11/1000)-H34 -> 0 | I35: =(I21/'Gen and Trans'!I11/1000)-I34 -> 0 | J35: =(J21/'Gen and Trans'!J11/1000)-J34 -> 0 | K35: =(K21/'Gen and Trans'!K11/1000)-K34 -> 0 | L35: =(L21/'Gen and Trans'!L11/1000)-L34 -> 0 | M35: =(M21/'Gen and Trans'!M11/1000)-M34 -> 0 | N35: =(N21/'Gen and Trans'!N11/1000)-N34 -> 0 | O35: =(O21/'Gen and Trans'!O11/1000)-O34 -> 0 | P35: =(P21/'Gen and Trans'!P11/1000)-P34 -> 0 | Q35: =(Q21/'Gen and Trans'!Q11/1000)-Q34 -> 0 | R35: =(R21/'Gen and Trans'!R11/1000)-R34 -> 0 | S35: =(S21/'Gen and Trans'!S11/1000)-S34 -> 0 | T35: =(T21/'Gen and Trans'!T11/1000)-T34 -> 0 | U35: =(U21/'Gen and Trans'!U11/1000)-U34 -> 0 | V35: =(V21/'Gen and Trans'!V11/1000)-V34 -> 0 | W35: =(W21/'Gen and Trans'!W11/1000)-W34 -> 0 | X35: =(X21/'Gen and Trans'!X11/1000)-X34 -> 0 | Y35: =(Y21/'Gen and Trans'!Y11/1000)-Y34 -> 0 | Z35: =(Z21/'Gen and Trans'!Z11/1000)-Z34 -> 0 | AA35: =(AA21/'Gen and Trans'!AA11/1000)-AA34 -> 0 | AB35: =(AB21/'Gen and Trans'!AB11/1000)-AB34 -> 0 | AC35: =(AC21/'Gen and Trans'!AC11/1000)-AC34 -> 0 | AD35: =(AD21/'Gen and Trans'!AD11/1000)-AD34 -> 0
C37: Cost & Loss
C38: Generation Cost | D38: Naira/KWh | G38: =G25*'Gen and Trans'!G$10 -> 126,405,720.00 | H38: =H25*'Gen and Trans'!H$10 -> 126,405,720.00 | I38: =I25*'Gen and Trans'!I$10 -> 126,405,720.00 | J38: =J25*'Gen and Trans'!J$10 -> 126,405,720.00 | K38: =K25*'Gen and Trans'!K$10 -> 126,405,720.00 | L38: =L25*'Gen and Trans'!L$10 -> 126,405,720.00 | M38: =M25*'Gen and Trans'!M$10 -> 126,405,720.00 | N38: =N25*'Gen and Trans'!N$10 -> 126,405,720.00 | O38: =O25*'Gen and Trans'!O$10 -> 126,405,720.00 | P38: =P25*'Gen and Trans'!P$10 -> 126,405,720.00 | Q38: =Q25*'Gen and Trans'!Q$10 -> 126,405,720.00 | R38: =R25*'Gen and Trans'!R$10 -> 126,405,720.00 | S38: =S25*'Gen and Trans'!S$10 -> 126,405,720.00 | T38: =T25*'Gen and Trans'!T$10 -> 126,405,720.00 | U38: =U25*'Gen and Trans'!U$10 -> 126,405,720.00 | V38: =V25*'Gen and Trans'!V$10 -> 126,405,720.00 | W38: =W25*'Gen and Trans'!W$10 -> 126,405,720.00 | X38: =X25*'Gen and Trans'!X$10 -> 126,405,720.00 | Y38: =Y25*'Gen and Trans'!Y$10 -> 126,405,720.00 | Z38: =Z25*'Gen and Trans'!Z$10 -> 126,405,720.00 | AA38: =AA25*'Gen and Trans'!AA$10 -> 126,405,720.00 | AB38: =AB25*'Gen and Trans'!AB$10 -> 126,405,720.00 | AC38: =AC25*'Gen and Trans'!AC$10 -> 126,405,720.00 | AD38: =AD25*'Gen and Trans'!AD$10 -> 126,405,720.00
C39: Transmission Cost | D39: Naira/KWh | G39: =G26*'Gen and Trans'!G$10 -> 10,370,178.00 | H39: =H26*'Gen and Trans'!H$10 -> 10,370,178.00 | I39: =I26*'Gen and Trans'!I$10 -> 10,370,178.00 | J39: =J26*'Gen and Trans'!J$10 -> 10,370,178.00 | K39: =K26*'Gen and Trans'!K$10 -> 10,370,178.00 | L39: =L26*'Gen and Trans'!L$10 -> 10,370,178.00 | M39: =M26*'Gen and Trans'!M$10 -> 10,370,178.00 | N39: =N26*'Gen and Trans'!N$10 -> 10,370,178.00 | O39: =O26*'Gen and Trans'!O$10 -> 10,370,178.00 | P39: =P26*'Gen and Trans'!P$10 -> 10,370,178.00 | Q39: =Q26*'Gen and Trans'!Q$10 -> 10,370,178.00 | R39: =R26*'Gen and Trans'!R$10 -> 10,370,178.00 | S39: =S26*'Gen and Trans'!S$10 -> 10,370,178.00 | T39: =T26*'Gen and Trans'!T$10 -> 10,370,178.00 | U39: =U26*'Gen and Trans'!U$10 -> 10,370,178.00 | V39: =V26*'Gen and Trans'!V$10 -> 10,370,178.00 | W39: =W26*'Gen and Trans'!W$10 -> 10,370,178.00 | X39: =X26*'Gen and Trans'!X$10 -> 10,370,178.00 | Y39: =Y26*'Gen and Trans'!Y$10 -> 10,370,178.00 | Z39: =Z26*'Gen and Trans'!Z$10 -> 10,370,178.00 | AA39: =AA26*'Gen and Trans'!AA$10 -> 10,370,178.00 | AB39: =AB26*'Gen and Trans'!AB$10 -> 10,370,178.00 | AC39: =AC26*'Gen and Trans'!AC$10 -> 10,370,178.00 | AD39: =AD26*'Gen and Trans'!AD$10 -> 10,370,178.00
C40: Disco Operating Cost | D40: Naira/KWh | G40: =G27*'Gen and Trans'!G$10 -> 462,300.00 | H40: =H27*'Gen and Trans'!H$10 -> 681,000.00 | I40: =I27*'Gen and Trans'!I$10 -> 502,700.00 | J40: =J27*'Gen and Trans'!J$10 -> 608,400.00 | K40: =K27*'Gen and Trans'!K$10 -> 466,900.00 | L40: =L27*'Gen and Trans'!L$10 -> 504,500.00 | M40: =M27*'Gen and Trans'!M$10 -> 473,600.00 | N40: =N27*'Gen and Trans'!N$10 -> 548,100.00 | O40: =O27*'Gen and Trans'!O$10 -> 509,900.00 | P40: =P27*'Gen and Trans'!P$10 -> 527,600.00 | Q40: =Q27*'Gen and Trans'!Q$10 -> 599,300.00 | R40: =R27*'Gen and Trans'!R$10 -> 661,200.00 | S40: =S27*'Gen and Trans'!S$10 -> 539,200.00 | T40: =T27*'Gen and Trans'!T$10 -> 384,100.00 | U40: =U27*'Gen and Trans'!U$10 -> 469,800.00 | V40: =V27*'Gen and Trans'!V$10 -> 456,900.00 | W40: =W27*'Gen and Trans'!W$10 -> 504,500.00 | X40: =X27*'Gen and Trans'!X$10 -> 469,900.00 | Y40: =Y27*'Gen and Trans'!Y$10 -> 344,800.00 | Z40: =Z27*'Gen and Trans'!Z$10 -> 437,400.00 | AA40: =AA27*'Gen and Trans'!AA$10 -> 497,600.00 | AB40: =AB27*'Gen and Trans'!AB$10 -> 507,200.00 | AC40: =AC27*'Gen and Trans'!AC$10 -> 530,100.00 | AD40: =AD27*'Gen and Trans'!AD$10 -> 604,200.00
C41: Disco Maintenance Cost | D41: Naira/KWh | G41: =G28*'Gen and Trans'!G$10 -> 669,200.00 | H41: =H28*'Gen and Trans'!H$10 -> 535,400.00 | I41: =I28*'Gen and Trans'!I$10 -> 733,700.00 | J41: =J28*'Gen and Trans'!J$10 -> 667,300.00 | K41: =K28*'Gen and Trans'!K$10 -> 594,900.00 | L41: =L28*'Gen and Trans'!L$10 -> 594,200.00 | M41: =M28*'Gen and Trans'!M$10 -> 688,500.00 | N41: =N28*'Gen and Trans'!N$10 -> 537,000.00 | O41: =O28*'Gen and Trans'!O$10 -> 703,400.00 | P41: =P28*'Gen and Trans'!P$10 -> 722,100.00 | Q41: =Q28*'Gen and Trans'!Q$10 -> 641,500.00 | R41: =R28*'Gen and Trans'!R$10 -> 587,500.00 | S41: =S28*'Gen and Trans'!S$10 -> 444,500.00 | T41: =T28*'Gen and Trans'!T$10 -> 805,500.00 | U41: =U28*'Gen and Trans'!U$10 -> 843,000.00 | V41: =V28*'Gen and Trans'!V$10 -> 585,700.00 | W41: =W28*'Gen and Trans'!W$10 -> 570,300.00 | X41: =X28*'Gen and Trans'!X$10 -> 644,800.00 | Y41: =Y28*'Gen and Trans'!Y$10 -> 848,200.00 | Z41: =Z28*'Gen and Trans'!Z$10 -> 397,700.00 | AA41: =AA28*'Gen and Trans'!AA$10 -> 620,800.00 | AB41: =AB28*'Gen and Trans'!AB$10 -> 564,600.00 | AC41: =AC28*'Gen and Trans'!AC$10 -> 688,600.00 | AD41: =AD28*'Gen and Trans'!AD$10 -> 787,600.00
C42: Depreciation Cost | D42: Naira/KWh | G42: =G29*'Gen and Trans'!G$10 -> 0 | H42: =H29*'Gen and Trans'!H$10 -> 4,805,287.29 | I42: =I29*'Gen and Trans'!I$10 -> 4,930,927.30 | J42: =J29*'Gen and Trans'!J$10 -> 5,007,803.60 | K42: =K29*'Gen and Trans'!K$10 -> 5,160,330.69 | L42: =L29*'Gen and Trans'!L$10 -> 5,259,861.16 | M42: =M29*'Gen and Trans'!M$10 -> 4,600,572.43 | N42: =N29*'Gen and Trans'!N$10 -> 4,674,723.73 | O42: =O29*'Gen and Trans'!O$10 -> 4,874,812.91 | P42: =P29*'Gen and Trans'!P$10 -> 4,976,576.56 | Q42: =Q29*'Gen and Trans'!Q$10 -> 5,034,102.62 | R42: =R29*'Gen and Trans'!R$10 -> 4,102,832.82 | S42: =S29*'Gen and Trans'!S$10 -> 4,130,235.66 | T42: =T29*'Gen and Trans'!T$10 -> 4,188,264.38 | U42: =U29*'Gen and Trans'!U$10 -> 4,198,305.54 | V42: =V29*'Gen and Trans'!V$10 -> 4,277,034.25 | W42: =W29*'Gen and Trans'!W$10 -> 4,344,321.13 | X42: =X29*'Gen and Trans'!X$10 -> 4,309,306.49 | Y42: =Y29*'Gen and Trans'!Y$10 -> 4,348,014.42 | Z42: =Z29*'Gen and Trans'!Z$10 -> 4,462,927.13 | AA42: =AA29*'Gen and Trans'!AA$10 -> 4,408,365.72 | AB42: =AB29*'Gen and Trans'!AB$10 -> 1,355,812.04 | AC42: =AC29*'Gen and Trans'!AC$10 -> 1,256,116.96 | AD42: =AD29*'Gen and Trans'!AD$10 -> 1,096,160.60
C43: Return on Capital Cost | D43: Naira/KWh | G43: =G30*'Gen and Trans'!G$10 -> 21,639,205.38 | H43: =H30*'Gen and Trans'!H$10 -> 20,884,973.90 | I43: =I30*'Gen and Trans'!I$10 -> 20,137,956.76 | J43: =J30*'Gen and Trans'!J$10 -> 19,156,520.58 | K43: =K30*'Gen and Trans'!K$10 -> 18,318,699.95 | L43: =L30*'Gen and Trans'!L$10 -> 17,181,725.00 | M43: =M30*'Gen and Trans'!M$10 -> 16,040,447.91 | N43: =N30*'Gen and Trans'!N$10 -> 15,076,119.68 | O43: =O30*'Gen and Trans'!O$10 -> 14,518,252.26 | P43: =P30*'Gen and Trans'!P$10 -> 13,884,301.05 | Q43: =Q30*'Gen and Trans'!Q$10 -> 12,890,417.95 | R43: =R30*'Gen and Trans'!R$10 -> 12,280,568.41 | S43: =S30*'Gen and Trans'!S$10 -> 11,172,678.61 | T43: =T30*'Gen and Trans'!T$10 -> 10,511,696.01 | U43: =U30*'Gen and Trans'!U$10 -> 9,642,270.64 | V43: =V30*'Gen and Trans'!V$10 -> 8,886,764.97 | W43: =W30*'Gen and Trans'!W$10 -> 8,033,450.01 | X43: =X30*'Gen and Trans'!X$10 -> 7,174,753.39 | Y43: =Y30*'Gen and Trans'!Y$10 -> 6,177,955.74 | Z43: =Z30*'Gen and Trans'!Z$10 -> 5,392,087.91 | AA43: =AA30*'Gen and Trans'!AA$10 -> 4,933,129.03 | AB43: =AB30*'Gen and Trans'!AB$10 -> 4,869,527.90 | AC43: =AC30*'Gen and Trans'!AC$10 -> 4,981,559.17 | AD43: =AD30*'Gen and Trans'!AD$10 -> 4,847,625.83
C44: EERC Cost | D44: Naira/KWh | G44: =G31*'Gen and Trans'!G$10 -> 2,233,652.45 | H44: =H31*'Gen and Trans'!H$10 -> 2,291,555.83 | I44: =I31*'Gen and Trans'!I$10 -> 2,283,136.55 | J44: =J31*'Gen and Trans'!J$10 -> 2,271,022.91 | K44: =K31*'Gen and Trans'!K$10 -> 2,258,434.20 | L44: =L31*'Gen and Trans'!L$10 -> 2,244,426.58 | M44: =M31*'Gen and Trans'!M$10 -> 2,220,106.26 | N44: =N31*'Gen and Trans'!N$10 -> 2,206,565.78 | O44: =O31*'Gen and Trans'!O$10 -> 2,203,351.68 | P44: =P31*'Gen and Trans'!P$10 -> 2,196,410.66 | Q44: =Q31*'Gen and Trans'!Q$10 -> 2,183,177.06 | R44: =R31*'Gen and Trans'!R$10 -> 2,161,711.99 | S44: =S31*'Gen and Trans'!S$10 -> 2,142,875.17 | T44: =T31*'Gen and Trans'!T$10 -> 2,137,316.42 | U44: =U31*'Gen and Trans'!U$10 -> 2,127,009.84 | V44: =V31*'Gen and Trans'!V$10 -> 2,113,752.16 | W44: =W31*'Gen and Trans'!W$10 -> 2,103,198.57 | X44: =X31*'Gen and Trans'!X$10 -> 2,091,245.21 | Y44: =Y31*'Gen and Trans'!Y$10 -> 2,078,928.15 | Z44: =Z31*'Gen and Trans'!Z$10 -> 2,064,524.18 | AA44: =AA31*'Gen and Trans'!AA$10 -> 2,061,301.10 | AB44: =AB31*'Gen and Trans'!AB$10 -> 2,017,022.53 | AC44: =AC31*'Gen and Trans'!AC$10 -> 2,019,251.84 | AD44: =AD31*'Gen and Trans'!AD$10 -> 2,017,560.78
C45: Disco Loss Cost | D45: Naira/KWh | G45: =G32*'Gen and Trans'!G$10 -> 53,926,751.94 | H45: =H32*'Gen and Trans'!H$10 -> 55,324,705.01 | I45: =I32*'Gen and Trans'!I$10 -> 55,121,439.54 | J45: =J32*'Gen and Trans'!J$10 -> 54,828,981.70 | K45: =K32*'Gen and Trans'!K$10 -> 54,525,054.28 | L45: =L32*'Gen and Trans'!L$10 -> 54,186,870.25 | M45: =M32*'Gen and Trans'!M$10 -> 53,599,708.20 | N45: =N32*'Gen and Trans'!N$10 -> 53,272,802.40 | O45: =O32*'Gen and Trans'!O$10 -> 53,195,204.95 | P45: =P32*'Gen and Trans'!P$10 -> 53,027,628.76 | Q45: =Q32*'Gen and Trans'!Q$10 -> 52,708,131.88 | R45: =R32*'Gen and Trans'!R$10 -> 52,189,903.74 | S45: =S32*'Gen and Trans'!S$10 -> 51,735,129.15 | T45: =T32*'Gen and Trans'!T$10 -> 51,600,924.94 | U45: =U32*'Gen and Trans'!U$10 -> 51,352,094.67 | V45: =V32*'Gen and Trans'!V$10 -> 51,032,016.46 | W45: =W32*'Gen and Trans'!W$10 -> 50,777,222.57 | X45: =X32*'Gen and Trans'!X$10 -> 50,488,634.36 | Y45: =Y32*'Gen and Trans'!Y$10 -> 50,191,265.44 | Z45: =Z32*'Gen and Trans'!Z$10 -> 49,843,512.41 | AA45: =AA32*'Gen and Trans'!AA$10 -> 49,765,697.95 | AB45: =AB32*'Gen and Trans'!AB$10 -> 48,696,686.82 | AC45: =AC32*'Gen and Trans'!AC$10 -> 48,750,508.66 | AD45: =AD32*'Gen and Trans'!AD$10 -> 48,709,681.74
C47: Total | G47: =SUM(G38:G46) -> 215,707,007.77 | H47: =SUM(H38:H46) -> 221,298,820.02 | I47: 220,485,758.15 | J47: 219,315,926.80 | K47: 218,100,217.12 | L47: 216,747,481.00 | M47: 214,398,832.79 | N47: 213,091,209.59 | O47: 212,780,819.80 | P47: 212,110,515.02 | Q47: 210,832,527.50 | R47: 208,759,614.95 | S47: 206,940,516.59 | T47: 206,403,699.74 | U47: 205,408,378.69 | V47: 204,128,065.85 | W47: 203,108,890.28 | X47: 201,954,537.46 | Y47: 200,765,061.75 | Z47: 199,374,049.63 | AA47: 199,062,791.80 | AB47: 194,786,747.30 | AC47: 195,002,034.64 | AD47: 194,838,726.95
B50: 2 | C50: LV & HV TARIFF COST ALLOCATION
C53: LV Cost
C54: Generation Cost | D54: Naira/KWh | G54: =G38*'Input Data'!G$54 -> 113,765,148.00 | H54: =H38*'Input Data'!H$54 -> 113,765,148.00 | I54: =I38*'Input Data'!I$54 -> 113,765,148.00 | J54: =J38*'Input Data'!J$54 -> 113,765,148.00 | K54: =K38*'Input Data'!K$54 -> 113,765,148.00 | L54: =L38*'Input Data'!L$54 -> 113,765,148.00 | M54: =M38*'Input Data'!M$54 -> 113,765,148.00 | N54: =N38*'Input Data'!N$54 -> 113,765,148.00 | O54: =O38*'Input Data'!O$54 -> 113,765,148.00 | P54: =P38*'Input Data'!P$54 -> 113,765,148.00 | Q54: =Q38*'Input Data'!Q$54 -> 113,765,148.00 | R54: =R38*'Input Data'!R$54 -> 113,765,148.00 | S54: =S38*'Input Data'!S$54 -> 113,765,148.00 | T54: =T38*'Input Data'!T$54 -> 113,765,148.00 | U54: =U38*'Input Data'!U$54 -> 113,765,148.00 | V54: =V38*'Input Data'!V$54 -> 113,765,148.00 | W54: =W38*'Input Data'!W$54 -> 113,765,148.00 | X54: =X38*'Input Data'!X$54 -> 113,765,148.00 | Y54: =Y38*'Input Data'!Y$54 -> 113,765,148.00 | Z54: =Z38*'Input Data'!Z$54 -> 113,765,148.00 | AA54: =AA38*'Input Data'!AA$54 -> 113,765,148.00 | AB54: =AB38*'Input Data'!AB$54 -> 113,765,148.00 | AC54: =AC38*'Input Data'!AC$54 -> 113,765,148.00 | AD54: =AD38*'Input Data'!AD$54 -> 113,765,148.00
C55: Transmission Cost | D55: Naira/KWh | G55: =G39*'Input Data'!G$54 -> 9,333,160.20 | H55: =H39*'Input Data'!H$54 -> 9,333,160.20 | I55: =I39*'Input Data'!I$54 -> 9,333,160.20 | J55: =J39*'Input Data'!J$54 -> 9,333,160.20 | K55: =K39*'Input Data'!K$54 -> 9,333,160.20 | L55: =L39*'Input Data'!L$54 -> 9,333,160.20 | M55: =M39*'Input Data'!M$54 -> 9,333,160.20 | N55: =N39*'Input Data'!N$54 -> 9,333,160.20 | O55: =O39*'Input Data'!O$54 -> 9,333,160.20 | P55: =P39*'Input Data'!P$54 -> 9,333,160.20 | Q55: =Q39*'Input Data'!Q$54 -> 9,333,160.20 | R55: =R39*'Input Data'!R$54 -> 9,333,160.20 | S55: =S39*'Input Data'!S$54 -> 9,333,160.20 | T55: =T39*'Input Data'!T$54 -> 9,333,160.20 | U55: =U39*'Input Data'!U$54 -> 9,333,160.20 | V55: =V39*'Input Data'!V$54 -> 9,333,160.20 | W55: =W39*'Input Data'!W$54 -> 9,333,160.20 | X55: =X39*'Input Data'!X$54 -> 9,333,160.20 | Y55: =Y39*'Input Data'!Y$54 -> 9,333,160.20 | Z55: =Z39*'Input Data'!Z$54 -> 9,333,160.20 | AA55: =AA39*'Input Data'!AA$54 -> 9,333,160.20 | AB55: =AB39*'Input Data'!AB$54 -> 9,333,160.20 | AC55: =AC39*'Input Data'!AC$54 -> 9,333,160.20 | AD55: =AD39*'Input Data'!AD$54 -> 9,333,160.20
C56: Disco Operating Cost | D56: Naira/KWh | G56: =G40*'Input Data'!G$54 -> 416,070.00 | H56: =H40*'Input Data'!H$54 -> 612,900.00 | I56: =I40*'Input Data'!I$54 -> 452,430.00 | J56: =J40*'Input Data'!J$54 -> 547,560.00 | K56: =K40*'Input Data'!K$54 -> 420,210.00 | L56: =L40*'Input Data'!L$54 -> 454,050.00 | M56: =M40*'Input Data'!M$54 -> 426,240.00 | N56: =N40*'Input Data'!N$54 -> 493,290.00 | O56: =O40*'Input Data'!O$54 -> 458,910.00 | P56: =P40*'Input Data'!P$54 -> 474,840.00 | Q56: =Q40*'Input Data'!Q$54 -> 539,370.00 | R56: =R40*'Input Data'!R$54 -> 595,080.00 | S56: =S40*'Input Data'!S$54 -> 485,280.00 | T56: =T40*'Input Data'!T$54 -> 345,690.00 | U56: =U40*'Input Data'!U$54 -> 422,820.00 | V56: =V40*'Input Data'!V$54 -> 411,210.00 | W56: =W40*'Input Data'!W$54 -> 454,050.00 | X56: =X40*'Input Data'!X$54 -> 422,910.00 | Y56: =Y40*'Input Data'!Y$54 -> 310,320.00 | Z56: =Z40*'Input Data'!Z$54 -> 393,660.00 | AA56: =AA40*'Input Data'!AA$54 -> 447,840.00 | AB56: =AB40*'Input Data'!AB$54 -> 456,480.00 | AC56: =AC40*'Input Data'!AC$54 -> 477,090.00 | AD56: =AD40*'Input Data'!AD$54 -> 543,780.00
C57: Disco Maintenance Cost | D57: Naira/KWh | G57: =G41*'Input Data'!G$54 -> 602,280.00 | H57: =H41*'Input Data'!H$54 -> 481,860.00 | I57: =I41*'Input Data'!I$54 -> 660,330.00 | J57: =J41*'Input Data'!J$54 -> 600,570.00 | K57: =K41*'Input Data'!K$54 -> 535,410.00 | L57: =L41*'Input Data'!L$54 -> 534,780.00 | M57: =M41*'Input Data'!M$54 -> 619,650.00 | N57: =N41*'Input Data'!N$54 -> 483,300.00 | O57: =O41*'Input Data'!O$54 -> 633,060.00 | P57: =P41*'Input Data'!P$54 -> 649,890.00 | Q57: =Q41*'Input Data'!Q$54 -> 577,350.00 | R57: =R41*'Input Data'!R$54 -> 528,750.00 | S57: =S41*'Input Data'!S$54 -> 400,050.00 | T57: =T41*'Input Data'!T$54 -> 724,950.00 | U57: =U41*'Input Data'!U$54 -> 758,700.00 | V57: =V41*'Input Data'!V$54 -> 527,130.00 | W57: =W41*'Input Data'!W$54 -> 513,270.00 | X57: =X41*'Input Data'!X$54 -> 580,320.00 | Y57: =Y41*'Input Data'!Y$54 -> 763,380.00 | Z57: =Z41*'Input Data'!Z$54 -> 357,930.00 | AA57: =AA41*'Input Data'!AA$54 -> 558,720.00 | AB57: =AB41*'Input Data'!AB$54 -> 508,140.00 | AC57: =AC41*'Input Data'!AC$54 -> 619,740.00 | AD57: =AD41*'Input Data'!AD$54 -> 708,840.00
C58: Depreciation Cost | D58: Naira/KWh | G58: =G42*'Input Data'!G$54 -> 0 | H58: =H42*'Input Data'!H$54 -> 4,324,758.56 | I58: =I42*'Input Data'!I$54 -> 4,437,834.57 | J58: =J42*'Input Data'!J$54 -> 4,507,023.24 | K58: =K42*'Input Data'!K$54 -> 4,644,297.62 | L58: =L42*'Input Data'!L$54 -> 4,733,875.05 | M58: =M42*'Input Data'!M$54 -> 4,140,515.19 | N58: =N42*'Input Data'!N$54 -> 4,207,251.36 | O58: =O42*'Input Data'!O$54 -> 4,387,331.61 | P58: =P42*'Input Data'!P$54 -> 4,478,918.90 | Q58: =Q42*'Input Data'!Q$54 -> 4,530,692.35 | R58: =R42*'Input Data'!R$54 -> 3,692,549.53 | S58: =S42*'Input Data'!S$54 -> 3,717,212.10 | T58: =T42*'Input Data'!T$54 -> 3,769,437.94 | U58: =U42*'Input Data'!U$54 -> 3,778,474.99 | V58: =V42*'Input Data'!V$54 -> 3,849,330.83 | W58: =W42*'Input Data'!W$54 -> 3,909,889.02 | X58: =X42*'Input Data'!X$54 -> 3,878,375.84 | Y58: =Y42*'Input Data'!Y$54 -> 3,913,212.98 | Z58: =Z42*'Input Data'!Z$54 -> 4,016,634.41 | AA58: =AA42*'Input Data'!AA$54 -> 3,967,529.15 | AB58: =AB42*'Input Data'!AB$54 -> 1,220,230.84 | AC58: =AC42*'Input Data'!AC$54 -> 1,130,505.27 | AD58: =AD42*'Input Data'!AD$54 -> 986,544.54
C59: Return on Capital Cost | D59: Naira/KWh | G59: =G43*'Input Data'!G$54 -> 19,475,284.84 | H59: =H43*'Input Data'!H$54 -> 18,796,476.51 | I59: =I43*'Input Data'!I$54 -> 18,124,161.09 | J59: =J43*'Input Data'!J$54 -> 17,240,868.52 | K59: =K43*'Input Data'!K$54 -> 16,486,829.96 | L59: =L43*'Input Data'!L$54 -> 15,463,552.50 | M59: =M43*'Input Data'!M$54 -> 14,436,403.12 | N59: =N43*'Input Data'!N$54 -> 13,568,507.71 | O59: =O43*'Input Data'!O$54 -> 13,066,427.03 | P59: =P43*'Input Data'!P$54 -> 12,495,870.95 | Q59: =Q43*'Input Data'!Q$54 -> 11,601,376.16 | R59: =R43*'Input Data'!R$54 -> 11,052,511.57 | S59: =S43*'Input Data'!S$54 -> 10,055,410.75 | T59: =T43*'Input Data'!T$54 -> 9,460,526.41 | U59: =U43*'Input Data'!U$54 -> 8,678,043.58 | V59: =V43*'Input Data'!V$54 -> 7,998,088.47 | W59: =W43*'Input Data'!W$54 -> 7,230,105.01 | X59: =X43*'Input Data'!X$54 -> 6,457,278.05 | Y59: =Y43*'Input Data'!Y$54 -> 5,560,160.17 | Z59: =Z43*'Input Data'!Z$54 -> 4,852,879.12 | AA59: =AA43*'Input Data'!AA$54 -> 4,439,816.12 | AB59: =AB43*'Input Data'!AB$54 -> 4,382,575.11 | AC59: =AC43*'Input Data'!AC$54 -> 4,483,403.26 | AD59: =AD43*'Input Data'!AD$54 -> 4,362,863.25
C60: EERC Cost | D60: Naira/KWh | G60: =G44*'Input Data'!G$54 -> 2,010,287.20 | H60: =H44*'Input Data'!H$54 -> 2,062,400.25 | I60: =I44*'Input Data'!I$54 -> 2,054,822.89 | J60: =J44*'Input Data'!J$54 -> 2,043,920.62 | K60: =K44*'Input Data'!K$54 -> 2,032,590.78 | L60: =L44*'Input Data'!L$54 -> 2,019,983.92 | M60: =M44*'Input Data'!M$54 -> 1,998,095.63 | N60: =N44*'Input Data'!N$54 -> 1,985,909.20 | O60: =O44*'Input Data'!O$54 -> 1,983,016.52 | P60: =P44*'Input Data'!P$54 -> 1,976,769.59 | Q60: =Q44*'Input Data'!Q$54 -> 1,964,859.35 | R60: =R44*'Input Data'!R$54 -> 1,945,540.79 | S60: =S44*'Input Data'!S$54 -> 1,928,587.65 | T60: =T44*'Input Data'!T$54 -> 1,923,584.78 | U60: =U44*'Input Data'!U$54 -> 1,914,308.85 | V60: =V44*'Input Data'!V$54 -> 1,902,376.95 | W60: =W44*'Input Data'!W$54 -> 1,892,878.71 | X60: =X44*'Input Data'!X$54 -> 1,882,120.69 | Y60: =Y44*'Input Data'!Y$54 -> 1,871,035.34 | Z60: =Z44*'Input Data'!Z$54 -> 1,858,071.76 | AA60: =AA44*'Input Data'!AA$54 -> 1,855,170.99 | AB60: =AB44*'Input Data'!AB$54 -> 1,815,320.28 | AC60: =AC44*'Input Data'!AC$54 -> 1,817,326.65 | AD60: =AD44*'Input Data'!AD$54 -> 1,815,804.70
C61: Disco Loss Cost | D61: Naira/KWh | G61: =G45 -> 53,926,751.94 | H61: =H45 -> 55,324,705.01 | I61: 55,121,439.54 | J61: 54,828,981.70 | K61: 54,525,054.28 | L61: 54,186,870.25 | M61: 53,599,708.20 | N61: 53,272,802.40 | O61: 53,195,204.95 | P61: 53,027,628.76 | Q61: 52,708,131.88 | R61: 52,189,903.74 | S61: 51,735,129.15 | T61: 51,600,924.94 | U61: 51,352,094.67 | V61: 51,032,016.46 | W61: 50,777,222.57 | X61: 50,488,634.36 | Y61: 50,191,265.44 | Z61: 49,843,512.41 | AA61: 49,765,697.95 | AB61: 48,696,686.82 | AC61: 48,750,508.66 | AD61: 48,709,681.74
C63: Total | G63: =SUM(G54:G62) -> 199,528,982.19 | H63: =SUM(H54:H62) -> 204,701,408.52 | I63: 203,949,326.29 | J63: 202,867,232.29 | K63: 201,742,700.84 | L63: 200,491,419.92 | M63: 198,318,920.33 | N63: 197,109,368.87 | O63: 196,822,258.31 | P63: 196,202,226.40 | Q63: 195,020,087.94 | R63: 193,102,643.83 | S63: 191,419,977.85 | T63: 190,923,422.26 | U63: 190,002,750.29 | V63: 188,818,460.91 | W63: 187,875,723.51 | X63: 186,807,947.15 | Y63: 185,707,682.12 | Z63: 184,420,995.91 | AA63: 184,133,082.41 | AB63: 180,177,741.25 | AC63: 180,376,882.04 | AD63: 180,225,822.43
G64: =G63/('Input Data'!G54*'Gen and Trans'!G10) -> 180.65
C66: HV Cost
C67: Generation Cost | D67: Naira/KWh | G67: =G38*'Input Data'!G$55 -> 12,640,572.00 | H67: =H38*'Input Data'!H$55 -> 12,640,572.00 | I67: =I38*'Input Data'!I$55 -> 12,640,572.00 | J67: =J38*'Input Data'!J$55 -> 12,640,572.00 | K67: =K38*'Input Data'!K$55 -> 12,640,572.00 | L67: =L38*'Input Data'!L$55 -> 12,640,572.00 | M67: =M38*'Input Data'!M$55 -> 12,640,572.00 | N67: =N38*'Input Data'!N$55 -> 12,640,572.00 | O67: =O38*'Input Data'!O$55 -> 12,640,572.00 | P67: =P38*'Input Data'!P$55 -> 12,640,572.00 | Q67: =Q38*'Input Data'!Q$55 -> 12,640,572.00 | R67: =R38*'Input Data'!R$55 -> 12,640,572.00 | S67: =S38*'Input Data'!S$55 -> 12,640,572.00 | T67: =T38*'Input Data'!T$55 -> 12,640,572.00 | U67: =U38*'Input Data'!U$55 -> 12,640,572.00 | V67: =V38*'Input Data'!V$55 -> 12,640,572.00 | W67: =W38*'Input Data'!W$55 -> 12,640,572.00 | X67: =X38*'Input Data'!X$55 -> 12,640,572.00 | Y67: =Y38*'Input Data'!Y$55 -> 12,640,572.00 | Z67: =Z38*'Input Data'!Z$55 -> 12,640,572.00 | AA67: =AA38*'Input Data'!AA$55 -> 12,640,572.00 | AB67: =AB38*'Input Data'!AB$55 -> 12,640,572.00 | AC67: =AC38*'Input Data'!AC$55 -> 12,640,572.00 | AD67: =AD38*'Input Data'!AD$55 -> 12,640,572.00
C68: Transmission Cost | D68: Naira/KWh | G68: =G39*'Input Data'!G$55 -> 1,037,017.80 | H68: =H39*'Input Data'!H$55 -> 1,037,017.80 | I68: =I39*'Input Data'!I$55 -> 1,037,017.80 | J68: =J39*'Input Data'!J$55 -> 1,037,017.80 | K68: =K39*'Input Data'!K$55 -> 1,037,017.80 | L68: =L39*'Input Data'!L$55 -> 1,037,017.80 | M68: =M39*'Input Data'!M$55 -> 1,037,017.80 | N68: =N39*'Input Data'!N$55 -> 1,037,017.80 | O68: =O39*'Input Data'!O$55 -> 1,037,017.80 | P68: =P39*'Input Data'!P$55 -> 1,037,017.80 | Q68: =Q39*'Input Data'!Q$55 -> 1,037,017.80 | R68: =R39*'Input Data'!R$55 -> 1,037,017.80 | S68: =S39*'Input Data'!S$55 -> 1,037,017.80 | T68: =T39*'Input Data'!T$55 -> 1,037,017.80 | U68: =U39*'Input Data'!U$55 -> 1,037,017.80 | V68: =V39*'Input Data'!V$55 -> 1,037,017.80 | W68: =W39*'Input Data'!W$55 -> 1,037,017.80 | X68: =X39*'Input Data'!X$55 -> 1,037,017.80 | Y68: =Y39*'Input Data'!Y$55 -> 1,037,017.80 | Z68: =Z39*'Input Data'!Z$55 -> 1,037,017.80 | AA68: =AA39*'Input Data'!AA$55 -> 1,037,017.80 | AB68: =AB39*'Input Data'!AB$55 -> 1,037,017.80 | AC68: =AC39*'Input Data'!AC$55 -> 1,037,017.80 | AD68: =AD39*'Input Data'!AD$55 -> 1,037,017.80
C69: Disco Operating Cost | D69: Naira/KWh | G69: =G40*'Input Data'!G$55 -> 46,230.00 | H69: =H40*'Input Data'!H$55 -> 68,100.00 | I69: =I40*'Input Data'!I$55 -> 50,270.00 | J69: =J40*'Input Data'!J$55 -> 60,840.00 | K69: =K40*'Input Data'!K$55 -> 46,690.00 | L69: =L40*'Input Data'!L$55 -> 50,450.00 | M69: =M40*'Input Data'!M$55 -> 47,360.00 | N69: =N40*'Input Data'!N$55 -> 54,810.00 | O69: =O40*'Input Data'!O$55 -> 50,990.00 | P69: =P40*'Input Data'!P$55 -> 52,760.00 | Q69: =Q40*'Input Data'!Q$55 -> 59,930.00 | R69: =R40*'Input Data'!R$55 -> 66,120.00 | S69: =S40*'Input Data'!S$55 -> 53,920.00 | T69: =T40*'Input Data'!T$55 -> 38,410.00 | U69: =U40*'Input Data'!U$55 -> 46,980.00 | V69: =V40*'Input Data'!V$55 -> 45,690.00 | W69: =W40*'Input Data'!W$55 -> 50,450.00 | X69: =X40*'Input Data'!X$55 -> 46,990.00 | Y69: =Y40*'Input Data'!Y$55 -> 34,480.00 | Z69: =Z40*'Input Data'!Z$55 -> 43,740.00 | AA69: =AA40*'Input Data'!AA$55 -> 49,760.00 | AB69: =AB40*'Input Data'!AB$55 -> 50,720.00 | AC69: =AC40*'Input Data'!AC$55 -> 53,010.00 | AD69: =AD40*'Input Data'!AD$55 -> 60,420.00
C70: Disco Maintenance Cost | D70: Naira/KWh | G70: =G41*'Input Data'!G$55 -> 66,920.00 | H70: =H41*'Input Data'!H$55 -> 53,540.00 | I70: =I41*'Input Data'!I$55 -> 73,370.00 | J70: =J41*'Input Data'!J$55 -> 66,730.00 | K70: =K41*'Input Data'!K$55 -> 59,490.00 | L70: =L41*'Input Data'!L$55 -> 59,420.00 | M70: =M41*'Input Data'!M$55 -> 68,850.00 | N70: =N41*'Input Data'!N$55 -> 53,700.00 | O70: =O41*'Input Data'!O$55 -> 70,340.00 | P70: =P41*'Input Data'!P$55 -> 72,210.00 | Q70: =Q41*'Input Data'!Q$55 -> 64,150.00 | R70: =R41*'Input Data'!R$55 -> 58,750.00 | S70: =S41*'Input Data'!S$55 -> 44,450.00 | T70: =T41*'Input Data'!T$55 -> 80,550.00 | U70: =U41*'Input Data'!U$55 -> 84,300.00 | V70: =V41*'Input Data'!V$55 -> 58,570.00 | W70: =W41*'Input Data'!W$55 -> 57,030.00 | X70: =X41*'Input Data'!X$55 -> 64,480.00 | Y70: =Y41*'Input Data'!Y$55 -> 84,820.00 | Z70: =Z41*'Input Data'!Z$55 -> 39,770.00 | AA70: =AA41*'Input Data'!AA$55 -> 62,080.00 | AB70: =AB41*'Input Data'!AB$55 -> 56,460.00 | AC70: =AC41*'Input Data'!AC$55 -> 68,860.00 | AD70: =AD41*'Input Data'!AD$55 -> 78,760.00
C71: Depreciation Cost | D71: Naira/KWh | G71: =G42*'Input Data'!G$55 -> 0 | H71: =H42*'Input Data'!H$55 -> 480,528.73 | I71: =I42*'Input Data'!I$55 -> 493,092.73 | J71: =J42*'Input Data'!J$55 -> 500,780.36 | K71: =K42*'Input Data'!K$55 -> 516,033.07 | L71: =L42*'Input Data'!L$55 -> 525,986.12 | M71: =M42*'Input Data'!M$55 -> 460,057.24 | N71: =N42*'Input Data'!N$55 -> 467,472.37 | O71: =O42*'Input Data'!O$55 -> 487,481.29 | P71: =P42*'Input Data'!P$55 -> 497,657.66 | Q71: =Q42*'Input Data'!Q$55 -> 503,410.26 | R71: =R42*'Input Data'!R$55 -> 410,283.28 | S71: =S42*'Input Data'!S$55 -> 413,023.57 | T71: =T42*'Input Data'!T$55 -> 418,826.44 | U71: =U42*'Input Data'!U$55 -> 419,830.55 | V71: =V42*'Input Data'!V$55 -> 427,703.43 | W71: =W42*'Input Data'!W$55 -> 434,432.11 | X71: =X42*'Input Data'!X$55 -> 430,930.65 | Y71: =Y42*'Input Data'!Y$55 -> 434,801.44 | Z71: =Z42*'Input Data'!Z$55 -> 446,292.71 | AA71: =AA42*'Input Data'!AA$55 -> 440,836.57 | AB71: =AB42*'Input Data'!AB$55 -> 135,581.20 | AC71: =AC42*'Input Data'!AC$55 -> 125,611.70 | AD71: =AD42*'Input Data'!AD$55 -> 109,616.06
C72: Return on Capital Cost | D72: Naira/KWh | G72: =G43*'Input Data'!G$55 -> 2,163,920.54 | H72: =H43*'Input Data'!H$55 -> 2,088,497.39 | I72: =I43*'Input Data'!I$55 -> 2,013,795.68 | J72: =J43*'Input Data'!J$55 -> 1,915,652.06 | K72: =K43*'Input Data'!K$55 -> 1,831,870.00 | L72: =L43*'Input Data'!L$55 -> 1,718,172.50 | M72: =M43*'Input Data'!M$55 -> 1,604,044.79 | N72: =N43*'Input Data'!N$55 -> 1,507,611.97 | O72: =O43*'Input Data'!O$55 -> 1,451,825.23 | P72: =P43*'Input Data'!P$55 -> 1,388,430.11 | Q72: =Q43*'Input Data'!Q$55 -> 1,289,041.80 | R72: =R43*'Input Data'!R$55 -> 1,228,056.84 | S72: =S43*'Input Data'!S$55 -> 1,117,267.86 | T72: =T43*'Input Data'!T$55 -> 1,051,169.60 | U72: =U43*'Input Data'!U$55 -> 964,227.06 | V72: =V43*'Input Data'!V$55 -> 888,676.50 | W72: =W43*'Input Data'!W$55 -> 803,345.00 | X72: =X43*'Input Data'!X$55 -> 717,475.34 | Y72: =Y43*'Input Data'!Y$55 -> 617,795.57 | Z72: =Z43*'Input Data'!Z$55 -> 539,208.79 | AA72: =AA43*'Input Data'!AA$55 -> 493,312.90 | AB72: =AB43*'Input Data'!AB$55 -> 486,952.79 | AC72: =AC43*'Input Data'!AC$55 -> 498,155.92 | AD72: =AD43*'Input Data'!AD$55 -> 484,762.58
C73: EERC Cost | D73: Naira/KWh | G73: =G44*'Input Data'!G$55 -> 223,365.24 | H73: =H44*'Input Data'!H$55 -> 229,155.58 | I73: =I44*'Input Data'!I$55 -> 228,313.65 | J73: =J44*'Input Data'!J$55 -> 227,102.29 | K73: =K44*'Input Data'!K$55 -> 225,843.42 | L73: =L44*'Input Data'!L$55 -> 224,442.66 | M73: =M44*'Input Data'!M$55 -> 222,010.63 | N73: =N44*'Input Data'!N$55 -> 220,656.58 | O73: =O44*'Input Data'!O$55 -> 220,335.17 | P73: =P44*'Input Data'!P$55 -> 219,641.07 | Q73: =Q44*'Input Data'!Q$55 -> 218,317.71 | R73: =R44*'Input Data'!R$55 -> 216,171.20 | S73: =S44*'Input Data'!S$55 -> 214,287.52 | T73: =T44*'Input Data'!T$55 -> 213,731.64 | U73: =U44*'Input Data'!U$55 -> 212,700.98 | V73: =V44*'Input Data'!V$55 -> 211,375.22 | W73: =W44*'Input Data'!W$55 -> 210,319.86 | X73: =X44*'Input Data'!X$55 -> 209,124.52 | Y73: =Y44*'Input Data'!Y$55 -> 207,892.82 | Z73: =Z44*'Input Data'!Z$55 -> 206,452.42 | AA73: =AA44*'Input Data'!AA$55 -> 206,130.11 | AB73: =AB44*'Input Data'!AB$55 -> 201,702.25 | AC73: =AC44*'Input Data'!AC$55 -> 201,925.18 | AD73: =AD44*'Input Data'!AD$55 -> 201,756.08
C74: Disco Loss Cost | D74: Naira/KWh
C76: Total | G76: =SUM(G67:G75) -> 16,178,025.58 | H76: =SUM(H67:H75) -> 16,597,411.50 | I76: 16,536,431.86 | J76: 16,448,694.51 | K76: 16,357,516.28 | L76: 16,256,061.07 | M76: 16,079,912.46 | N76: 15,981,840.72 | O76: 15,958,561.48 | P76: 15,908,288.63 | Q76: 15,812,439.56 | R76: 15,656,971.12 | S76: 15,520,538.74 | T76: 15,480,277.48 | U76: 15,405,628.40 | V76: 15,309,604.94 | W76: 15,233,166.77 | X76: 15,146,590.31 | Y76: 15,057,379.63 | Z76: 14,953,053.72 | AA76: 14,929,709.38 | AB76: 14,609,006.05 | AC76: 14,625,152.60 | AD76: 14,612,904.52
C80: LV Tariff
C81: Generation Tariff | D81: Naira/KWh | G81: =G54/'Gen and Trans'!G$25 -> 103.00 | H81: =H54/'Gen and Trans'!H$25 -> 103.00 | I81: =I54/'Gen and Trans'!I$25 -> 103.00 | J81: =J54/'Gen and Trans'!J$25 -> 103.00 | K81: =K54/'Gen and Trans'!K$25 -> 103.00 | L81: =L54/'Gen and Trans'!L$25 -> 103.00 | M81: =M54/'Gen and Trans'!M$25 -> 103.00 | N81: =N54/'Gen and Trans'!N$25 -> 103.00 | O81: =O54/'Gen and Trans'!O$25 -> 103.00 | P81: =P54/'Gen and Trans'!P$25 -> 103.00 | Q81: =Q54/'Gen and Trans'!Q$25 -> 103.00 | R81: =R54/'Gen and Trans'!R$25 -> 103.00 | S81: =S54/'Gen and Trans'!S$25 -> 103.00 | T81: =T54/'Gen and Trans'!T$25 -> 103.00 | U81: =U54/'Gen and Trans'!U$25 -> 103.00 | V81: =V54/'Gen and Trans'!V$25 -> 103.00 | W81: =W54/'Gen and Trans'!W$25 -> 103.00 | X81: =X54/'Gen and Trans'!X$25 -> 103.00 | Y81: =Y54/'Gen and Trans'!Y$25 -> 103.00 | Z81: =Z54/'Gen and Trans'!Z$25 -> 103.00 | AA81: =AA54/'Gen and Trans'!AA$25 -> 103.00 | AB81: =AB54/'Gen and Trans'!AB$25 -> 103.00 | AC81: =AC54/'Gen and Trans'!AC$25 -> 103.00 | AD81: =AD54/'Gen and Trans'!AD$25 -> 103.00
C82: Transmission Tariff | D82: Naira/KWh | G82: =G55/'Gen and Trans'!G$25 -> 8.45 | H82: =H55/'Gen and Trans'!H$25 -> 8.45 | I82: =I55/'Gen and Trans'!I$25 -> 8.45 | J82: =J55/'Gen and Trans'!J$25 -> 8.45 | K82: =K55/'Gen and Trans'!K$25 -> 8.45 | L82: =L55/'Gen and Trans'!L$25 -> 8.45 | M82: =M55/'Gen and Trans'!M$25 -> 8.45 | N82: =N55/'Gen and Trans'!N$25 -> 8.45 | O82: =O55/'Gen and Trans'!O$25 -> 8.45 | P82: =P55/'Gen and Trans'!P$25 -> 8.45 | Q82: =Q55/'Gen and Trans'!Q$25 -> 8.45 | R82: =R55/'Gen and Trans'!R$25 -> 8.45 | S82: =S55/'Gen and Trans'!S$25 -> 8.45 | T82: =T55/'Gen and Trans'!T$25 -> 8.45 | U82: =U55/'Gen and Trans'!U$25 -> 8.45 | V82: =V55/'Gen and Trans'!V$25 -> 8.45 | W82: =W55/'Gen and Trans'!W$25 -> 8.45 | X82: =X55/'Gen and Trans'!X$25 -> 8.45 | Y82: =Y55/'Gen and Trans'!Y$25 -> 8.45 | Z82: =Z55/'Gen and Trans'!Z$25 -> 8.45 | AA82: =AA55/'Gen and Trans'!AA$25 -> 8.45 | AB82: =AB55/'Gen and Trans'!AB$25 -> 8.45 | AC82: =AC55/'Gen and Trans'!AC$25 -> 8.45 | AD82: =AD55/'Gen and Trans'!AD$25 -> 8.45
C83: Disco Operating Tariff | D83: Naira/KWh | G83: =G56/'Gen and Trans'!G$25 -> 0.38 | H83: =H56/'Gen and Trans'!H$25 -> 0.55 | I83: =I56/'Gen and Trans'!I$25 -> 0.41 | J83: =J56/'Gen and Trans'!J$25 -> 0.50 | K83: =K56/'Gen and Trans'!K$25 -> 0.38 | L83: =L56/'Gen and Trans'!L$25 -> 0.41 | M83: =M56/'Gen and Trans'!M$25 -> 0.39 | N83: =N56/'Gen and Trans'!N$25 -> 0.45 | O83: =O56/'Gen and Trans'!O$25 -> 0.42 | P83: =P56/'Gen and Trans'!P$25 -> 0.43 | Q83: =Q56/'Gen and Trans'!Q$25 -> 0.49 | R83: =R56/'Gen and Trans'!R$25 -> 0.54 | S83: =S56/'Gen and Trans'!S$25 -> 0.44 | T83: =T56/'Gen and Trans'!T$25 -> 0.31 | U83: =U56/'Gen and Trans'!U$25 -> 0.38 | V83: =V56/'Gen and Trans'!V$25 -> 0.37 | W83: =W56/'Gen and Trans'!W$25 -> 0.41 | X83: =X56/'Gen and Trans'!X$25 -> 0.38 | Y83: =Y56/'Gen and Trans'!Y$25 -> 0.28 | Z83: =Z56/'Gen and Trans'!Z$25 -> 0.36 | AA83: =AA56/'Gen and Trans'!AA$25 -> 0.41 | AB83: =AB56/'Gen and Trans'!AB$25 -> 0.41 | AC83: =AC56/'Gen and Trans'!AC$25 -> 0.43 | AD83: =AD56/'Gen and Trans'!AD$25 -> 0.49
C84: Disco Maintenance Tariff | D84: Naira/KWh | G84: =G57/'Gen and Trans'!G$25 -> 0.55 | H84: =H57/'Gen and Trans'!H$25 -> 0.44 | I84: =I57/'Gen and Trans'!I$25 -> 0.60 | J84: =J57/'Gen and Trans'!J$25 -> 0.54 | K84: =K57/'Gen and Trans'!K$25 -> 0.48 | L84: =L57/'Gen and Trans'!L$25 -> 0.48 | M84: =M57/'Gen and Trans'!M$25 -> 0.56 | N84: =N57/'Gen and Trans'!N$25 -> 0.44 | O84: =O57/'Gen and Trans'!O$25 -> 0.57 | P84: =P57/'Gen and Trans'!P$25 -> 0.59 | Q84: =Q57/'Gen and Trans'!Q$25 -> 0.52 | R84: =R57/'Gen and Trans'!R$25 -> 0.48 | S84: =S57/'Gen and Trans'!S$25 -> 0.36 | T84: =T57/'Gen and Trans'!T$25 -> 0.66 | U84: =U57/'Gen and Trans'!U$25 -> 0.69 | V84: =V57/'Gen and Trans'!V$25 -> 0.48 | W84: =W57/'Gen and Trans'!W$25 -> 0.46 | X84: =X57/'Gen and Trans'!X$25 -> 0.53 | Y84: =Y57/'Gen and Trans'!Y$25 -> 0.69 | Z84: =Z57/'Gen and Trans'!Z$25 -> 0.32 | AA84: =AA57/'Gen and Trans'!AA$25 -> 0.51 | AB84: =AB57/'Gen and Trans'!AB$25 -> 0.46 | AC84: =AC57/'Gen and Trans'!AC$25 -> 0.56 | AD84: =AD57/'Gen and Trans'!AD$25 -> 0.64
C85: Depreciation Tariff | D85: Naira/KWh | G85: =G58/'Gen and Trans'!G$25 -> 0 | H85: =H58/'Gen and Trans'!H$25 -> 3.92 | I85: =I58/'Gen and Trans'!I$25 -> 4.02 | J85: =J58/'Gen and Trans'!J$25 -> 4.08 | K85: =K58/'Gen and Trans'!K$25 -> 4.20 | L85: =L58/'Gen and Trans'!L$25 -> 4.29 | M85: =M58/'Gen and Trans'!M$25 -> 3.75 | N85: =N58/'Gen and Trans'!N$25 -> 3.81 | O85: =O58/'Gen and Trans'!O$25 -> 3.97 | P85: =P58/'Gen and Trans'!P$25 -> 4.06 | Q85: =Q58/'Gen and Trans'!Q$25 -> 4.10 | R85: =R58/'Gen and Trans'!R$25 -> 3.34 | S85: =S58/'Gen and Trans'!S$25 -> 3.37 | T85: =T58/'Gen and Trans'!T$25 -> 3.41 | U85: =U58/'Gen and Trans'!U$25 -> 3.42 | V85: =V58/'Gen and Trans'!V$25 -> 3.49 | W85: =W58/'Gen and Trans'!W$25 -> 3.54 | X85: =X58/'Gen and Trans'!X$25 -> 3.51 | Y85: =Y58/'Gen and Trans'!Y$25 -> 3.54 | Z85: =Z58/'Gen and Trans'!Z$25 -> 3.64 | AA85: =AA58/'Gen and Trans'!AA$25 -> 3.59 | AB85: =AB58/'Gen and Trans'!AB$25 -> 1.10 | AC85: =AC58/'Gen and Trans'!AC$25 -> 1.02 | AD85: =AD58/'Gen and Trans'!AD$25 -> 0.89
C86: Return on Capital Tariff | D86: Naira/KWh | G86: =G59/'Gen and Trans'!G$25 -> 17.63 | H86: =H59/'Gen and Trans'!H$25 -> 17.02 | I86: =I59/'Gen and Trans'!I$25 -> 16.41 | J86: =J59/'Gen and Trans'!J$25 -> 15.61 | K86: =K59/'Gen and Trans'!K$25 -> 14.93 | L86: =L59/'Gen and Trans'!L$25 -> 14.00 | M86: =M59/'Gen and Trans'!M$25 -> 13.07 | N86: =N59/'Gen and Trans'!N$25 -> 12.28 | O86: =O59/'Gen and Trans'!O$25 -> 11.83 | P86: =P59/'Gen and Trans'!P$25 -> 11.31 | Q86: =Q59/'Gen and Trans'!Q$25 -> 10.50 | R86: =R59/'Gen and Trans'!R$25 -> 10.01 | S86: =S59/'Gen and Trans'!S$25 -> 9.10 | T86: =T59/'Gen and Trans'!T$25 -> 8.57 | U86: =U59/'Gen and Trans'!U$25 -> 7.86 | V86: =V59/'Gen and Trans'!V$25 -> 7.24 | W86: =W59/'Gen and Trans'!W$25 -> 6.55 | X86: =X59/'Gen and Trans'!X$25 -> 5.85 | Y86: =Y59/'Gen and Trans'!Y$25 -> 5.03 | Z86: =Z59/'Gen and Trans'!Z$25 -> 4.39 | AA86: =AA59/'Gen and Trans'!AA$25 -> 4.02 | AB86: =AB59/'Gen and Trans'!AB$25 -> 3.97 | AC86: =AC59/'Gen and Trans'!AC$25 -> 4.06 | AD86: =AD59/'Gen and Trans'!AD$25 -> 3.95
C87: EERC Tariff | D87: Naira/KWh | G87: =G60/'Gen and Trans'!G$25 -> 1.82 | H87: =H60/'Gen and Trans'!H$25 -> 1.87 | I87: =I60/'Gen and Trans'!I$25 -> 1.86 | J87: =J60/'Gen and Trans'!J$25 -> 1.85 | K87: =K60/'Gen and Trans'!K$25 -> 1.84 | L87: =L60/'Gen and Trans'!L$25 -> 1.83 | M87: =M60/'Gen and Trans'!M$25 -> 1.81 | N87: =N60/'Gen and Trans'!N$25 -> 1.80 | O87: =O60/'Gen and Trans'!O$25 -> 1.80 | P87: =P60/'Gen and Trans'!P$25 -> 1.79 | Q87: =Q60/'Gen and Trans'!Q$25 -> 1.78 | R87: =R60/'Gen and Trans'!R$25 -> 1.76 | S87: =S60/'Gen and Trans'!S$25 -> 1.75 | T87: =T60/'Gen and Trans'!T$25 -> 1.74 | U87: =U60/'Gen and Trans'!U$25 -> 1.73 | V87: =V60/'Gen and Trans'!V$25 -> 1.72 | W87: =W60/'Gen and Trans'!W$25 -> 1.71 | X87: =X60/'Gen and Trans'!X$25 -> 1.70 | Y87: =Y60/'Gen and Trans'!Y$25 -> 1.69 | Z87: =Z60/'Gen and Trans'!Z$25 -> 1.68 | AA87: =AA60/'Gen and Trans'!AA$25 -> 1.68 | AB87: =AB60/'Gen and Trans'!AB$25 -> 1.64 | AC87: =AC60/'Gen and Trans'!AC$25 -> 1.65 | AD87: =AD60/'Gen and Trans'!AD$25 -> 1.64
C88: Disco Loss Tariff | D88: Naira/KWh | G88: =G61/'Gen and Trans'!G10 -> 43.94 | H88: =H61/'Gen and Trans'!H10 -> 45.08 | I88: =I61/'Gen and Trans'!I10 -> 44.91 | J88: =J61/'Gen and Trans'!J10 -> 44.68 | K88: =K61/'Gen and Trans'!K10 -> 44.43 | L88: =L61/'Gen and Trans'!L10 -> 44.15 | M88: =M61/'Gen and Trans'!M10 -> 43.68 | N88: =N61/'Gen and Trans'!N10 -> 43.41 | O88: =O61/'Gen and Trans'!O10 -> 43.35 | P88: =P61/'Gen and Trans'!P10 -> 43.21 | Q88: =Q61/'Gen and Trans'!Q10 -> 42.95 | R88: =R61/'Gen and Trans'!R10 -> 42.53 | S88: =S61/'Gen and Trans'!S10 -> 42.16 | T88: =T61/'Gen and Trans'!T10 -> 42.05 | U88: =U61/'Gen and Trans'!U10 -> 41.84 | V88: =V61/'Gen and Trans'!V10 -> 41.58 | W88: =W61/'Gen and Trans'!W10 -> 41.38 | X88: =X61/'Gen and Trans'!X10 -> 41.14 | Y88: =Y61/'Gen and Trans'!Y10 -> 40.90 | Z88: =Z61/'Gen and Trans'!Z10 -> 40.61 | AA88: =AA61/'Gen and Trans'!AA10 -> 40.55 | AB88: =AB61/'Gen and Trans'!AB10 -> 39.68 | AC88: =AC61/'Gen and Trans'!AC10 -> 39.72 | AD88: =AD61/'Gen and Trans'!AD10 -> 39.69
C90: Total | G90: =SUM(G81:G89) -> 175.77 | H90: =SUM(H81:H89) -> 180.32 | I90: 179.66 | J90: 178.71 | K90: 177.72 | L90: 176.61 | M90: 174.70 | N90: 173.63 | O90: 173.38 | P90: 172.84 | Q90: 171.79 | R90: 170.10 | S90: 168.62 | T90: 168.19 | U90: 167.37 | V90: 166.33 | W90: 165.50 | X90: 164.56 | Y90: 163.59 | Z90: 162.46 | AA90: 162.20 | AB90: 158.72 | AC90: 158.89 | AD90: 158.76
C93: HV Tariff
C94: Generation Tariff | D94: Naira/KWh | G94: =G67/'Gen and Trans'!G$26 -> 103.00 | H94: =H67/'Gen and Trans'!H$26 -> 103.00 | I94: =I67/'Gen and Trans'!I$26 -> 103.00 | J94: =J67/'Gen and Trans'!J$26 -> 103.00 | K94: =K67/'Gen and Trans'!K$26 -> 103.00 | L94: =L67/'Gen and Trans'!L$26 -> 103.00 | M94: =M67/'Gen and Trans'!M$26 -> 103.00 | N94: =N67/'Gen and Trans'!N$26 -> 103.00 | O94: =O67/'Gen and Trans'!O$26 -> 103.00 | P94: =P67/'Gen and Trans'!P$26 -> 103.00 | Q94: =Q67/'Gen and Trans'!Q$26 -> 103.00 | R94: =R67/'Gen and Trans'!R$26 -> 103.00 | S94: =S67/'Gen and Trans'!S$26 -> 103.00 | T94: =T67/'Gen and Trans'!T$26 -> 103.00 | U94: =U67/'Gen and Trans'!U$26 -> 103.00 | V94: =V67/'Gen and Trans'!V$26 -> 103.00 | W94: =W67/'Gen and Trans'!W$26 -> 103.00 | X94: =X67/'Gen and Trans'!X$26 -> 103.00 | Y94: =Y67/'Gen and Trans'!Y$26 -> 103.00 | Z94: =Z67/'Gen and Trans'!Z$26 -> 103.00 | AA94: =AA67/'Gen and Trans'!AA$26 -> 103.00 | AB94: =AB67/'Gen and Trans'!AB$26 -> 103.00 | AC94: =AC67/'Gen and Trans'!AC$26 -> 103.00 | AD94: =AD67/'Gen and Trans'!AD$26 -> 103.00
C95: Transmission Tariff | D95: Naira/KWh | G95: =G68/'Gen and Trans'!G$26 -> 8.45 | H95: =H68/'Gen and Trans'!H$26 -> 8.45 | I95: =I68/'Gen and Trans'!I$26 -> 8.45 | J95: =J68/'Gen and Trans'!J$26 -> 8.45 | K95: =K68/'Gen and Trans'!K$26 -> 8.45 | L95: =L68/'Gen and Trans'!L$26 -> 8.45 | M95: =M68/'Gen and Trans'!M$26 -> 8.45 | N95: =N68/'Gen and Trans'!N$26 -> 8.45 | O95: =O68/'Gen and Trans'!O$26 -> 8.45 | P95: =P68/'Gen and Trans'!P$26 -> 8.45 | Q95: =Q68/'Gen and Trans'!Q$26 -> 8.45 | R95: =R68/'Gen and Trans'!R$26 -> 8.45 | S95: =S68/'Gen and Trans'!S$26 -> 8.45 | T95: =T68/'Gen and Trans'!T$26 -> 8.45 | U95: =U68/'Gen and Trans'!U$26 -> 8.45 | V95: =V68/'Gen and Trans'!V$26 -> 8.45 | W95: =W68/'Gen and Trans'!W$26 -> 8.45 | X95: =X68/'Gen and Trans'!X$26 -> 8.45 | Y95: =Y68/'Gen and Trans'!Y$26 -> 8.45 | Z95: =Z68/'Gen and Trans'!Z$26 -> 8.45 | AA95: =AA68/'Gen and Trans'!AA$26 -> 8.45 | AB95: =AB68/'Gen and Trans'!AB$26 -> 8.45 | AC95: =AC68/'Gen and Trans'!AC$26 -> 8.45 | AD95: =AD68/'Gen and Trans'!AD$26 -> 8.45
C96: Disco Operating Tariff | D96: Naira/KWh | G96: =G69/'Gen and Trans'!G$26 -> 0.38 | H96: =H69/'Gen and Trans'!H$26 -> 0.55 | I96: =I69/'Gen and Trans'!I$26 -> 0.41 | J96: =J69/'Gen and Trans'!J$26 -> 0.50 | K96: =K69/'Gen and Trans'!K$26 -> 0.38 | L96: =L69/'Gen and Trans'!L$26 -> 0.41 | M96: =M69/'Gen and Trans'!M$26 -> 0.39 | N96: =N69/'Gen and Trans'!N$26 -> 0.45 | O96: =O69/'Gen and Trans'!O$26 -> 0.42 | P96: =P69/'Gen and Trans'!P$26 -> 0.43 | Q96: =Q69/'Gen and Trans'!Q$26 -> 0.49 | R96: =R69/'Gen and Trans'!R$26 -> 0.54 | S96: =S69/'Gen and Trans'!S$26 -> 0.44 | T96: =T69/'Gen and Trans'!T$26 -> 0.31 | U96: =U69/'Gen and Trans'!U$26 -> 0.38 | V96: =V69/'Gen and Trans'!V$26 -> 0.37 | W96: =W69/'Gen and Trans'!W$26 -> 0.41 | X96: =X69/'Gen and Trans'!X$26 -> 0.38 | Y96: =Y69/'Gen and Trans'!Y$26 -> 0.28 | Z96: =Z69/'Gen and Trans'!Z$26 -> 0.36 | AA96: =AA69/'Gen and Trans'!AA$26 -> 0.41 | AB96: =AB69/'Gen and Trans'!AB$26 -> 0.41 | AC96: =AC69/'Gen and Trans'!AC$26 -> 0.43 | AD96: =AD69/'Gen and Trans'!AD$26 -> 0.49
C97: Disco Maintenance Tariff | D97: Naira/KWh | G97: =G70/'Gen and Trans'!G$26 -> 0.55 | H97: =H70/'Gen and Trans'!H$26 -> 0.44 | I97: =I70/'Gen and Trans'!I$26 -> 0.60 | J97: =J70/'Gen and Trans'!J$26 -> 0.54 | K97: =K70/'Gen and Trans'!K$26 -> 0.48 | L97: =L70/'Gen and Trans'!L$26 -> 0.48 | M97: =M70/'Gen and Trans'!M$26 -> 0.56 | N97: =N70/'Gen and Trans'!N$26 -> 0.44 | O97: =O70/'Gen and Trans'!O$26 -> 0.57 | P97: =P70/'Gen and Trans'!P$26 -> 0.59 | Q97: =Q70/'Gen and Trans'!Q$26 -> 0.52 | R97: =R70/'Gen and Trans'!R$26 -> 0.48 | S97: =S70/'Gen and Trans'!S$26 -> 0.36 | T97: =T70/'Gen and Trans'!T$26 -> 0.66 | U97: =U70/'Gen and Trans'!U$26 -> 0.69 | V97: =V70/'Gen and Trans'!V$26 -> 0.48 | W97: =W70/'Gen and Trans'!W$26 -> 0.46 | X97: =X70/'Gen and Trans'!X$26 -> 0.53 | Y97: =Y70/'Gen and Trans'!Y$26 -> 0.69 | Z97: =Z70/'Gen and Trans'!Z$26 -> 0.32 | AA97: =AA70/'Gen and Trans'!AA$26 -> 0.51 | AB97: =AB70/'Gen and Trans'!AB$26 -> 0.46 | AC97: =AC70/'Gen and Trans'!AC$26 -> 0.56 | AD97: =AD70/'Gen and Trans'!AD$26 -> 0.64
C98: Depreciation Tariff | D98: Naira/KWh | G98: =G71/'Gen and Trans'!G$26 -> 0 | H98: =H71/'Gen and Trans'!H$26 -> 3.92 | I98: =I71/'Gen and Trans'!I$26 -> 4.02 | J98: =J71/'Gen and Trans'!J$26 -> 4.08 | K98: =K71/'Gen and Trans'!K$26 -> 4.20 | L98: =L71/'Gen and Trans'!L$26 -> 4.29 | M98: =M71/'Gen and Trans'!M$26 -> 3.75 | N98: =N71/'Gen and Trans'!N$26 -> 3.81 | O98: =O71/'Gen and Trans'!O$26 -> 3.97 | P98: =P71/'Gen and Trans'!P$26 -> 4.06 | Q98: =Q71/'Gen and Trans'!Q$26 -> 4.10 | R98: =R71/'Gen and Trans'!R$26 -> 3.34 | S98: =S71/'Gen and Trans'!S$26 -> 3.37 | T98: =T71/'Gen and Trans'!T$26 -> 3.41 | U98: =U71/'Gen and Trans'!U$26 -> 3.42 | V98: =V71/'Gen and Trans'!V$26 -> 3.49 | W98: =W71/'Gen and Trans'!W$26 -> 3.54 | X98: =X71/'Gen and Trans'!X$26 -> 3.51 | Y98: =Y71/'Gen and Trans'!Y$26 -> 3.54 | Z98: =Z71/'Gen and Trans'!Z$26 -> 3.64 | AA98: =AA71/'Gen and Trans'!AA$26 -> 3.59 | AB98: =AB71/'Gen and Trans'!AB$26 -> 1.10 | AC98: =AC71/'Gen and Trans'!AC$26 -> 1.02 | AD98: =AD71/'Gen and Trans'!AD$26 -> 0.89
C99: Return on Capital Tariff | D99: Naira/KWh | G99: =G72/'Gen and Trans'!G$26 -> 17.63 | H99: =H72/'Gen and Trans'!H$26 -> 17.02 | I99: =I72/'Gen and Trans'!I$26 -> 16.41 | J99: =J72/'Gen and Trans'!J$26 -> 15.61 | K99: =K72/'Gen and Trans'!K$26 -> 14.93 | L99: =L72/'Gen and Trans'!L$26 -> 14.00 | M99: =M72/'Gen and Trans'!M$26 -> 13.07 | N99: =N72/'Gen and Trans'!N$26 -> 12.28 | O99: =O72/'Gen and Trans'!O$26 -> 11.83 | P99: =P72/'Gen and Trans'!P$26 -> 11.31 | Q99: =Q72/'Gen and Trans'!Q$26 -> 10.50 | R99: =R72/'Gen and Trans'!R$26 -> 10.01 | S99: =S72/'Gen and Trans'!S$26 -> 9.10 | T99: =T72/'Gen and Trans'!T$26 -> 8.57 | U99: =U72/'Gen and Trans'!U$26 -> 7.86 | V99: =V72/'Gen and Trans'!V$26 -> 7.24 | W99: =W72/'Gen and Trans'!W$26 -> 6.55 | X99: =X72/'Gen and Trans'!X$26 -> 5.85 | Y99: =Y72/'Gen and Trans'!Y$26 -> 5.03 | Z99: =Z72/'Gen and Trans'!Z$26 -> 4.39 | AA99: =AA72/'Gen and Trans'!AA$26 -> 4.02 | AB99: =AB72/'Gen and Trans'!AB$26 -> 3.97 | AC99: =AC72/'Gen and Trans'!AC$26 -> 4.06 | AD99: =AD72/'Gen and Trans'!AD$26 -> 3.95
C100: EERC Tariff | D100: Naira/KWh | G100: =G73/'Gen and Trans'!G$26 -> 1.82 | H100: =H73/'Gen and Trans'!H$26 -> 1.87 | I100: =I73/'Gen and Trans'!I$26 -> 1.86 | J100: =J73/'Gen and Trans'!J$26 -> 1.85 | K100: =K73/'Gen and Trans'!K$26 -> 1.84 | L100: =L73/'Gen and Trans'!L$26 -> 1.83 | M100: =M73/'Gen and Trans'!M$26 -> 1.81 | N100: =N73/'Gen and Trans'!N$26 -> 1.80 | O100: =O73/'Gen and Trans'!O$26 -> 1.80 | P100: =P73/'Gen and Trans'!P$26 -> 1.79 | Q100: =Q73/'Gen and Trans'!Q$26 -> 1.78 | R100: =R73/'Gen and Trans'!R$26 -> 1.76 | S100: =S73/'Gen and Trans'!S$26 -> 1.75 | T100: =T73/'Gen and Trans'!T$26 -> 1.74 | U100: =U73/'Gen and Trans'!U$26 -> 1.73 | V100: =V73/'Gen and Trans'!V$26 -> 1.72 | W100: =W73/'Gen and Trans'!W$26 -> 1.71 | X100: =X73/'Gen and Trans'!X$26 -> 1.70 | Y100: =Y73/'Gen and Trans'!Y$26 -> 1.69 | Z100: =Z73/'Gen and Trans'!Z$26 -> 1.68 | AA100: =AA73/'Gen and Trans'!AA$26 -> 1.68 | AB100: =AB73/'Gen and Trans'!AB$26 -> 1.64 | AC100: =AC73/'Gen and Trans'!AC$26 -> 1.65 | AD100: =AD73/'Gen and Trans'!AD$26 -> 1.64
C101: Disco Loss Tariff | D101: Naira/KWh | G101: =G74/'Gen and Trans'!G$26 -> 0 | H101: =H74/'Gen and Trans'!H$26 -> 0 | I101: =I74/'Gen and Trans'!I$26 -> 0 | J101: =J74/'Gen and Trans'!J$26 -> 0 | K101: =K74/'Gen and Trans'!K$26 -> 0 | L101: =L74/'Gen and Trans'!L$26 -> 0 | M101: =M74/'Gen and Trans'!M$26 -> 0 | N101: =N74/'Gen and Trans'!N$26 -> 0 | O101: =O74/'Gen and Trans'!O$26 -> 0 | P101: =P74/'Gen and Trans'!P$26 -> 0 | Q101: =Q74/'Gen and Trans'!Q$26 -> 0 | R101: =R74/'Gen and Trans'!R$26 -> 0 | S101: =S74/'Gen and Trans'!S$26 -> 0 | T101: =T74/'Gen and Trans'!T$26 -> 0 | U101: =U74/'Gen and Trans'!U$26 -> 0 | V101: =V74/'Gen and Trans'!V$26 -> 0 | W101: =W74/'Gen and Trans'!W$26 -> 0 | X101: =X74/'Gen and Trans'!X$26 -> 0 | Y101: =Y74/'Gen and Trans'!Y$26 -> 0 | Z101: =Z74/'Gen and Trans'!Z$26 -> 0 | AA101: =AA74/'Gen and Trans'!AA$26 -> 0 | AB101: =AB74/'Gen and Trans'!AB$26 -> 0 | AC101: =AC74/'Gen and Trans'!AC$26 -> 0 | AD101: =AD74/'Gen and Trans'!AD$26 -> 0
C103: Total | G103: =SUM(G94:G102) -> 131.82 | H103: =SUM(H94:H102) -> 135.24 | I103: 134.74 | J103: 134.03 | K103: 133.29 | L103: 132.46 | M103: 131.03 | N103: 130.23 | O103: 130.04 | P103: 129.63 | Q103: 128.85 | R103: 127.58 | S103: 126.47 | T103: 126.14 | U103: 125.53 | V103: 124.75 | W103: 124.13 | X103: 123.42 | Y103: 122.69 | Z103: 121.84 | AA103: 121.65 | AB103: 119.04 | AC103: 119.17 | AD103: 119.07
B106: 3 | C106: LV & HVE Revenue
C108: LV Revenue | G108: =G90*'Gen and Trans'!G11*'Input Data'!G54 -> 145,602,230.24 | H108: =H90*'Gen and Trans'!H11*'Input Data'!H54 -> 149,376,703.52 | I108: =I90*'Gen and Trans'!I11*'Input Data'!I54 -> 148,827,886.75 | J108: =J90*'Gen and Trans'!J11*'Input Data'!J54 -> 148,038,250.59 | K108: =K90*'Gen and Trans'!K11*'Input Data'!K54 -> 147,217,646.56 | L108: =L90*'Gen and Trans'!L11*'Input Data'!L54 -> 146,304,549.67 | M108: =M90*'Gen and Trans'!M11*'Input Data'!M54 -> 144,719,212.14 | N108: =N90*'Gen and Trans'!N11*'Input Data'!N54 -> 143,836,566.47 | O108: =O90*'Gen and Trans'!O11*'Input Data'!O54 -> 143,627,053.36 | P108: =P90*'Gen and Trans'!P11*'Input Data'!P54 -> 143,174,597.64 | Q108: =Q90*'Gen and Trans'!Q11*'Input Data'!Q54 -> 142,311,956.07 | R108: =R90*'Gen and Trans'!R11*'Input Data'!R54 -> 140,912,740.09 | S108: =S90*'Gen and Trans'!S11*'Input Data'!S54 -> 139,684,848.70 | T108: =T90*'Gen and Trans'!T11*'Input Data'!T54 -> 139,322,497.33 | U108: =U90*'Gen and Trans'!U11*'Input Data'!U54 -> 138,650,655.62 | V108: =V90*'Gen and Trans'!V11*'Input Data'!V54 -> 137,786,444.45 | W108: =W90*'Gen and Trans'!W11*'Input Data'!W54 -> 137,098,500.94 | X108: =X90*'Gen and Trans'!X11*'Input Data'!X54 -> 136,319,312.78 | Y108: =Y90*'Gen and Trans'!Y11*'Input Data'!Y54 -> 135,516,416.68 | Z108: =Z90*'Gen and Trans'!Z11*'Input Data'!Z54 -> 134,577,483.50 | AA108: =AA90*'Gen and Trans'!AA11*'Input Data'!AA54 -> 134,367,384.46 | AB108: =AB90*'Gen and Trans'!AB11*'Input Data'!AB54 -> 131,481,054.42 | AC108: =AC90*'Gen and Trans'!AC11*'Input Data'!AC54 -> 131,626,373.38 | AD108: =AD90*'Gen and Trans'!AD11*'Input Data'!AD54 -> 131,516,140.69
C109: HV Revenue | G109: =G103*'Gen and Trans'!G10*'Input Data'!G55 -> 16,178,025.58 | H109: =H103*'Gen and Trans'!H10*'Input Data'!H55 -> 16,597,411.50 | I109: =I103*'Gen and Trans'!I10*'Input Data'!I55 -> 16,536,431.86 | J109: =J103*'Gen and Trans'!J10*'Input Data'!J55 -> 16,448,694.51 | K109: =K103*'Gen and Trans'!K10*'Input Data'!K55 -> 16,357,516.28 | L109: =L103*'Gen and Trans'!L10*'Input Data'!L55 -> 16,256,061.07 | M109: =M103*'Gen and Trans'!M10*'Input Data'!M55 -> 16,079,912.46 | N109: =N103*'Gen and Trans'!N10*'Input Data'!N55 -> 15,981,840.72 | O109: =O103*'Gen and Trans'!O10*'Input Data'!O55 -> 15,958,561.48 | P109: =P103*'Gen and Trans'!P10*'Input Data'!P55 -> 15,908,288.63 | Q109: =Q103*'Gen and Trans'!Q10*'Input Data'!Q55 -> 15,812,439.56 | R109: =R103*'Gen and Trans'!R10*'Input Data'!R55 -> 15,656,971.12 | S109: =S103*'Gen and Trans'!S10*'Input Data'!S55 -> 15,520,538.74 | T109: =T103*'Gen and Trans'!T10*'Input Data'!T55 -> 15,480,277.48 | U109: =U103*'Gen and Trans'!U10*'Input Data'!U55 -> 15,405,628.40 | V109: =V103*'Gen and Trans'!V10*'Input Data'!V55 -> 15,309,604.94 | W109: =W103*'Gen and Trans'!W10*'Input Data'!W55 -> 15,233,166.77 | X109: =X103*'Gen and Trans'!X10*'Input Data'!X55 -> 15,146,590.31 | Y109: =Y103*'Gen and Trans'!Y10*'Input Data'!Y55 -> 15,057,379.63 | Z109: =Z103*'Gen and Trans'!Z10*'Input Data'!Z55 -> 14,953,053.72 | AA109: =AA103*'Gen and Trans'!AA10*'Input Data'!AA55 -> 14,929,709.38 | AB109: =AB103*'Gen and Trans'!AB10*'Input Data'!AB55 -> 14,609,006.05 | AC109: =AC103*'Gen and Trans'!AC10*'Input Data'!AC55 -> 14,625,152.60 | AD109: =AD103*'Gen and Trans'!AD10*'Input Data'!AD55 -> 14,612,904.52
C111: Total Revenue | G111: =SUM(G108:G109) -> 161,780,255.83 | H111: =SUM(H108:H109) -> 165,974,115.02 | I111: 165,364,318.61 | J111: 164,486,945.10 | K111: =SUM(K108:K109) -> 163,575,162.84 | L111: =SUM(L108:L109) -> 162,560,610.75 | M111: =SUM(M108:M109) -> 160,799,124.59 | N111: =SUM(N108:N109) -> 159,818,407.19 | O111: =SUM(O108:O109) -> 159,585,614.85 | P111: =SUM(P108:P109) -> 159,082,886.27 | Q111: =SUM(Q108:Q109) -> 158,124,395.63 | R111: =SUM(R108:R109) -> 156,569,711.21 | S111: =SUM(S108:S109) -> 155,205,387.44 | T111: =SUM(T108:T109) -> 154,802,774.81 | U111: =SUM(U108:U109) -> 154,056,284.02 | V111: =SUM(V108:V109) -> 153,096,049.39 | W111: =SUM(W108:W109) -> 152,331,667.71 | X111: =SUM(X108:X109) -> 151,465,903.09 | Y111: =SUM(Y108:Y109) -> 150,573,796.31 | Z111: =SUM(Z108:Z109) -> 149,530,537.22 | AA111: =SUM(AA108:AA109) -> 149,297,093.85 | AB111: =SUM(AB108:AB109) -> 146,090,060.47 | AC111: =SUM(AC108:AC109) -> 146,251,525.98 | AD111: =SUM(AD108:AD109) -> 146,129,045.21
C113: Check | G113: =G111-G21/1000 -> 0 | H113: =H111-H21/1000 -> 0 | I113: 0 | J113: 0 | K113: =K111-K21/1000 -> 0 | L113: 0 | M113: 0 | N113: 0 | O113: 0 | P113: 0 | Q113: 0 | R113: 0 | S113: 0 | T113: 0 | U113: 0 | V113: 0 | W113: 0 | X113: 0 | Y113: 0 | Z113: 0 | AA113: 0 | AB113: 0 | AC113: 0 | AD113: 0

Sheet Tariff
B1: Go to Control Page
B4: No | C4: Item | D4: Unit | E4: Constant | G4: ='Input Data'!F10 -> 2024 | H4: =G4+1 -> 2025 | I4: 2026 | J4: 2027 | K4: 2028 | L4: 2029 | M4: 2030 | N4: 2031 | O4: 2032 | P4: 2033 | Q4: 2034 | R4: 2035 | S4: 2036 | T4: 2037 | U4: 2038 | V4: 2039 | W4: 2040 | X4: 2041 | Y4: 2042 | Z4: 2043 | AA4: 2044 | AB4: 2045 | AC4: 2046 | AD4: 2047
B9: 1 | C9: LV & HV TARIFF
C11: LV Tariff
C12: Generation Tariff | D12: Naira/KWh | G12: ='Tariff Calculation'!G81 -> 103.00 | H12: ='Tariff Calculation'!H81 -> 103.00 | I12: ='Tariff Calculation'!I81 -> 103.00 | J12: ='Tariff Calculation'!J81 -> 103.00 | K12: ='Tariff Calculation'!K81 -> 103.00 | L12: ='Tariff Calculation'!L81 -> 103.00 | M12: ='Tariff Calculation'!M81 -> 103.00 | N12: ='Tariff Calculation'!N81 -> 103.00 | O12: ='Tariff Calculation'!O81 -> 103.00 | P12: ='Tariff Calculation'!P81 -> 103.00 | Q12: ='Tariff Calculation'!Q81 -> 103.00 | R12: ='Tariff Calculation'!R81 -> 103.00 | S12: ='Tariff Calculation'!S81 -> 103.00 | T12: ='Tariff Calculation'!T81 -> 103.00 | U12: ='Tariff Calculation'!U81 -> 103.00 | V12: ='Tariff Calculation'!V81 -> 103.00 | W12: ='Tariff Calculation'!W81 -> 103.00 | X12: ='Tariff Calculation'!X81 -> 103.00 | Y12: ='Tariff Calculation'!Y81 -> 103.00 | Z12: ='Tariff Calculation'!Z81 -> 103.00 | AA12: ='Tariff Calculation'!AA81 -> 103.00 | AB12: ='Tariff Calculation'!AB81 -> 103.00 | AC12: ='Tariff Calculation'!AC81 -> 103.00 | AD12: ='Tariff Calculation'!AD81 -> 103.00
C13: Transmission Tariff | D13: Naira/KWh | G13: ='Tariff Calculation'!G82 -> 8.45 | H13: ='Tariff Calculation'!H82 -> 8.45 | I13: ='Tariff Calculation'!I82 -> 8.45 | J13: ='Tariff Calculation'!J82 -> 8.45 | K13: ='Tariff Calculation'!K82 -> 8.45 | L13: ='Tariff Calculation'!L82 -> 8.45 | M13: ='Tariff Calculation'!M82 -> 8.45 | N13: ='Tariff Calculation'!N82 -> 8.45 | O13: ='Tariff Calculation'!O82 -> 8.45 | P13: ='Tariff Calculation'!P82 -> 8.45 | Q13: ='Tariff Calculation'!Q82 -> 8.45 | R13: ='Tariff Calculation'!R82 -> 8.45 | S13: ='Tariff Calculation'!S82 -> 8.45 | T13: ='Tariff Calculation'!T82 -> 8.45 | U13: ='Tariff Calculation'!U82 -> 8.45 | V13: ='Tariff Calculation'!V82 -> 8.45 | W13: ='Tariff Calculation'!W82 -> 8.45 | X13: ='Tariff Calculation'!X82 -> 8.45 | Y13: ='Tariff Calculation'!Y82 -> 8.45 | Z13: ='Tariff Calculation'!Z82 -> 8.45 | AA13: ='Tariff Calculation'!AA82 -> 8.45 | AB13: ='Tariff Calculation'!AB82 -> 8.45 | AC13: ='Tariff Calculation'!AC82 -> 8.45 | AD13: ='Tariff Calculation'!AD82 -> 8.45
C14: Disco Operating Tariff | D14: Naira/KWh | G14: ='Tariff Calculation'!G83 -> 0.38 | H14: ='Tariff Calculation'!H83 -> 0.55 | I14: ='Tariff Calculation'!I83 -> 0.41 | J14: ='Tariff Calculation'!J83 -> 0.50 | K14: ='Tariff Calculation'!K83 -> 0.38 | L14: ='Tariff Calculation'!L83 -> 0.41 | M14: ='Tariff Calculation'!M83 -> 0.39 | N14: ='Tariff Calculation'!N83 -> 0.45 | O14: ='Tariff Calculation'!O83 -> 0.42 | P14: ='Tariff Calculation'!P83 -> 0.43 | Q14: ='Tariff Calculation'!Q83 -> 0.49 | R14: ='Tariff Calculation'!R83 -> 0.54 | S14: ='Tariff Calculation'!S83 -> 0.44 | T14: ='Tariff Calculation'!T83 -> 0.31 | U14: ='Tariff Calculation'!U83 -> 0.38 | V14: ='Tariff Calculation'!V83 -> 0.37 | W14: ='Tariff Calculation'!W83 -> 0.41 | X14: ='Tariff Calculation'!X83 -> 0.38 | Y14: ='Tariff Calculation'!Y83 -> 0.28 | Z14: ='Tariff Calculation'!Z83 -> 0.36 | AA14: ='Tariff Calculation'!AA83 -> 0.41 | AB14: ='Tariff Calculation'!AB83 -> 0.41 | AC14: ='Tariff Calculation'!AC83 -> 0.43 | AD14: ='Tariff Calculation'!AD83 -> 0.49
C15: Disco Maintenance Tariff | D15: Naira/KWh | G15: ='Tariff Calculation'!G84 -> 0.55 | H15: ='Tariff Calculation'!H84 -> 0.44 | I15: ='Tariff Calculation'!I84 -> 0.60 | J15: ='Tariff Calculation'!J84 -> 0.54 | K15: ='Tariff Calculation'!K84 -> 0.48 | L15: ='Tariff Calculation'!L84 -> 0.48 | M15: ='Tariff Calculation'!M84 -> 0.56 | N15: ='Tariff Calculation'!N84 -> 0.44 | O15: ='Tariff Calculation'!O84 -> 0.57 | P15: ='Tariff Calculation'!P84 -> 0.59 | Q15: ='Tariff Calculation'!Q84 -> 0.52 | R15: ='Tariff Calculation'!R84 -> 0.48 | S15: ='Tariff Calculation'!S84 -> 0.36 | T15: ='Tariff Calculation'!T84 -> 0.66 | U15: ='Tariff Calculation'!U84 -> 0.69 | V15: ='Tariff Calculation'!V84 -> 0.48 | W15: ='Tariff Calculation'!W84 -> 0.46 | X15: ='Tariff Calculation'!X84 -> 0.53 | Y15: ='Tariff Calculation'!Y84 -> 0.69 | Z15: ='Tariff Calculation'!Z84 -> 0.32 | AA15: ='Tariff Calculation'!AA84 -> 0.51 | AB15: ='Tariff Calculation'!AB84 -> 0.46 | AC15: ='Tariff Calculation'!AC84 -> 0.56 | AD15: ='Tariff Calculation'!AD84 -> 0.64
C16: Depreciation Tariff | D16: Naira/KWh | G16: ='Tariff Calculation'!G85 -> 0 | H16: ='Tariff Calculation'!H85 -> 3.92 | I16: ='Tariff Calculation'!I85 -> 4.02 | J16: ='Tariff Calculation'!J85 -> 4.08 | K16: ='Tariff Calculation'!K85 -> 4.20 | L16: ='Tariff Calculation'!L85 -> 4.29 | M16: ='Tariff Calculation'!M85 -> 3.75 | N16: ='Tariff Calculation'!N85 -> 3.81 | O16: ='Tariff Calculation'!O85 -> 3.97 | P16: ='Tariff Calculation'!P85 -> 4.06 | Q16: ='Tariff Calculation'!Q85 -> 4.10 | R16: ='Tariff Calculation'!R85 -> 3.34 | S16: ='Tariff Calculation'!S85 -> 3.37 | T16: ='Tariff Calculation'!T85 -> 3.41 | U16: ='Tariff Calculation'!U85 -> 3.42 | V16: ='Tariff Calculation'!V85 -> 3.49 | W16: ='Tariff Calculation'!W85 -> 3.54 | X16: ='Tariff Calculation'!X85 -> 3.51 | Y16: ='Tariff Calculation'!Y85 -> 3.54 | Z16: ='Tariff Calculation'!Z85 -> 3.64 | AA16: ='Tariff Calculation'!AA85 -> 3.59 | AB16: ='Tariff Calculation'!AB85 -> 1.10 | AC16: ='Tariff Calculation'!AC85 -> 1.02 | AD16: ='Tariff Calculation'!AD85 -> 0.89
C17: Return on Capital Tariff | D17: Naira/KWh | G17: ='Tariff Calculation'!G86 -> 17.63 | H17: ='Tariff Calculation'!H86 -> 17.02 | I17: ='Tariff Calculation'!I86 -> 16.41 | J17: ='Tariff Calculation'!J86 -> 15.61 | K17: ='Tariff Calculation'!K86 -> 14.93 | L17: ='Tariff Calculation'!L86 -> 14.00 | M17: ='Tariff Calculation'!M86 -> 13.07 | N17: ='Tariff Calculation'!N86 -> 12.28 | O17: ='Tariff Calculation'!O86 -> 11.83 | P17: ='Tariff Calculation'!P86 -> 11.31 | Q17: ='Tariff Calculation'!Q86 -> 10.50 | R17: ='Tariff Calculation'!R86 -> 10.01 | S17: ='Tariff Calculation'!S86 -> 9.10 | T17: ='Tariff Calculation'!T86 -> 8.57 | U17: ='Tariff Calculation'!U86 -> 7.86 | V17: ='Tariff Calculation'!V86 -> 7.24 | W17: ='Tariff Calculation'!W86 -> 6.55 | X17: ='Tariff Calculation'!X86 -> 5.85 | Y17: ='Tariff Calculation'!Y86 -> 5.03 | Z17: ='Tariff Calculation'!Z86 -> 4.39 | AA17: ='Tariff Calculation'!AA86 -> 4.02 | AB17: ='Tariff Calculation'!AB86 -> 3.97 | AC17: ='Tariff Calculation'!AC86 -> 4.06 | AD17: ='Tariff Calculation'!AD86 -> 3.95
C18: EERC Tariff | D18: Naira/KWh | G18: ='Tariff Calculation'!G87 -> 1.82 | H18: ='Tariff Calculation'!H87 -> 1.87 | I18: ='Tariff Calculation'!I87 -> 1.86 | J18: ='Tariff Calculation'!J87 -> 1.85 | K18: ='Tariff Calculation'!K87 -> 1.84 | L18: ='Tariff Calculation'!L87 -> 1.83 | M18: ='Tariff Calculation'!M87 -> 1.81 | N18: ='Tariff Calculation'!N87 -> 1.80 | O18: ='Tariff Calculation'!O87 -> 1.80 | P18: ='Tariff Calculation'!P87 -> 1.79 | Q18: ='Tariff Calculation'!Q87 -> 1.78 | R18: ='Tariff Calculation'!R87 -> 1.76 | S18: ='Tariff Calculation'!S87 -> 1.75 | T18: ='Tariff Calculation'!T87 -> 1.74 | U18: ='Tariff Calculation'!U87 -> 1.73 | V18: ='Tariff Calculation'!V87 -> 1.72 | W18: ='Tariff Calculation'!W87 -> 1.71 | X18: ='Tariff Calculation'!X87 -> 1.70 | Y18: ='Tariff Calculation'!Y87 -> 1.69 | Z18: ='Tariff Calculation'!Z87 -> 1.68 | AA18: ='Tariff Calculation'!AA87 -> 1.68 | AB18: ='Tariff Calculation'!AB87 -> 1.64 | AC18: ='Tariff Calculation'!AC87 -> 1.65 | AD18: ='Tariff Calculation'!AD87 -> 1.64
C19: Disco Loss Tariff | D19: Naira/KWh | G19: ='Tariff Calculation'!G88 -> 43.94 | H19: ='Tariff Calculation'!H88 -> 45.08 | I19: ='Tariff Calculation'!I88 -> 44.91 | J19: ='Tariff Calculation'!J88 -> 44.68 | K19: ='Tariff Calculation'!K88 -> 44.43 | L19: ='Tariff Calculation'!L88 -> 44.15 | M19: ='Tariff Calculation'!M88 -> 43.68 | N19: ='Tariff Calculation'!N88 -> 43.41 | O19: ='Tariff Calculation'!O88 -> 43.35 | P19: ='Tariff Calculation'!P88 -> 43.21 | Q19: ='Tariff Calculation'!Q88 -> 42.95 | R19: ='Tariff Calculation'!R88 -> 42.53 | S19: ='Tariff Calculation'!S88 -> 42.16 | T19: ='Tariff Calculation'!T88 -> 42.05 | U19: ='Tariff Calculation'!U88 -> 41.84 | V19: ='Tariff Calculation'!V88 -> 41.58 | W19: ='Tariff Calculation'!W88 -> 41.38 | X19: ='Tariff Calculation'!X88 -> 41.14 | Y19: ='Tariff Calculation'!Y88 -> 40.90 | Z19: ='Tariff Calculation'!Z88 -> 40.61 | AA19: ='Tariff Calculation'!AA88 -> 40.55 | AB19: ='Tariff Calculation'!AB88 -> 39.68 | AC19: ='Tariff Calculation'!AC88 -> 39.72 | AD19: ='Tariff Calculation'!AD88 -> 39.69
C21: Total | D21: Naira/KWh | G21: =SUM(G12:G20) -> 175.77 | H21: =SUM(H12:H20) -> 180.32 | I21: 179.66 | J21: 178.71 | K21: 177.72 | L21: 176.61 | M21: 174.70 | N21: 173.63 | O21: 173.38 | P21: 172.84 | Q21: 171.79 | R21: 170.10 | S21: 168.62 | T21: 168.19 | U21: 167.37 | V21: 166.33 | W21: 165.50 | X21: 164.56 | Y21: 163.59 | Z21: 162.46 | AA21: 162.20 | AB21: 158.72 | AC21: 158.89 | AD21: 158.76
C24: HV Tariff
C25: Generation Tariff | D25: Naira/KWh | G25: ='Tariff Calculation'!G94 -> 103.00 | H25: ='Tariff Calculation'!H94 -> 103.00 | I25: ='Tariff Calculation'!I94 -> 103.00 | J25: ='Tariff Calculation'!J94 -> 103.00 | K25: ='Tariff Calculation'!K94 -> 103.00 | L25: ='Tariff Calculation'!L94 -> 103.00 | M25: ='Tariff Calculation'!M94 -> 103.00 | N25: ='Tariff Calculation'!N94 -> 103.00 | O25: ='Tariff Calculation'!O94 -> 103.00 | P25: ='Tariff Calculation'!P94 -> 103.00 | Q25: ='Tariff Calculation'!Q94 -> 103.00 | R25: ='Tariff Calculation'!R94 -> 103.00 | S25: ='Tariff Calculation'!S94 -> 103.00 | T25: ='Tariff Calculation'!T94 -> 103.00 | U25: ='Tariff Calculation'!U94 -> 103.00 | V25: ='Tariff Calculation'!V94 -> 103.00 | W25: ='Tariff Calculation'!W94 -> 103.00 | X25: ='Tariff Calculation'!X94 -> 103.00 | Y25: ='Tariff Calculation'!Y94 -> 103.00 | Z25: ='Tariff Calculation'!Z94 -> 103.00 | AA25: ='Tariff Calculation'!AA94 -> 103.00 | AB25: ='Tariff Calculation'!AB94 -> 103.00 | AC25: ='Tariff Calculation'!AC94 -> 103.00 | AD25: ='Tariff Calculation'!AD94 -> 103.00
C26: Transmission Tariff | D26: Naira/KWh | G26: ='Tariff Calculation'!G95 -> 8.45 | H26: ='Tariff Calculation'!H95 -> 8.45 | I26: ='Tariff Calculation'!I95 -> 8.45 | J26: ='Tariff Calculation'!J95 -> 8.45 | K26: ='Tariff Calculation'!K95 -> 8.45 | L26: ='Tariff Calculation'!L95 -> 8.45 | M26: ='Tariff Calculation'!M95 -> 8.45 | N26: ='Tariff Calculation'!N95 -> 8.45 | O26: ='Tariff Calculation'!O95 -> 8.45 | P26: ='Tariff Calculation'!P95 -> 8.45 | Q26: ='Tariff Calculation'!Q95 -> 8.45 | R26: ='Tariff Calculation'!R95 -> 8.45 | S26: ='Tariff Calculation'!S95 -> 8.45 | T26: ='Tariff Calculation'!T95 -> 8.45 | U26: ='Tariff Calculation'!U95 -> 8.45 | V26: ='Tariff Calculation'!V95 -> 8.45 | W26: ='Tariff Calculation'!W95 -> 8.45 | X26: ='Tariff Calculation'!X95 -> 8.45 | Y26: ='Tariff Calculation'!Y95 -> 8.45 | Z26: ='Tariff Calculation'!Z95 -> 8.45 | AA26: ='Tariff Calculation'!AA95 -> 8.45 | AB26: ='Tariff Calculation'!AB95 -> 8.45 | AC26: ='Tariff Calculation'!AC95 -> 8.45 | AD26: ='Tariff Calculation'!AD95 -> 8.45
C27: Disco Operating Tariff | D27: Naira/KWh | G27: ='Tariff Calculation'!G96 -> 0.38 | H27: ='Tariff Calculation'!H96 -> 0.55 | I27: ='Tariff Calculation'!I96 -> 0.41 | J27: ='Tariff Calculation'!J96 -> 0.50 | K27: ='Tariff Calculation'!K96 -> 0.38 | L27: ='Tariff Calculation'!L96 -> 0.41 | M27: ='Tariff Calculation'!M96 -> 0.39 | N27: ='Tariff Calculation'!N96 -> 0.45 | O27: ='Tariff Calculation'!O96 -> 0.42 | P27: ='Tariff Calculation'!P96 -> 0.43 | Q27: ='Tariff Calculation'!Q96 -> 0.49 | R27: ='Tariff Calculation'!R96 -> 0.54 | S27: ='Tariff Calculation'!S96 -> 0.44 | T27: ='Tariff Calculation'!T96 -> 0.31 | U27: ='Tariff Calculation'!U96 -> 0.38 | V27: ='Tariff Calculation'!V96 -> 0.37 | W27: ='Tariff Calculation'!W96 -> 0.41 | X27: ='Tariff Calculation'!X96 -> 0.38 | Y27: ='Tariff Calculation'!Y96 -> 0.28 | Z27: ='Tariff Calculation'!Z96 -> 0.36 | AA27: ='Tariff Calculation'!AA96 -> 0.41 | AB27: ='Tariff Calculation'!AB96 -> 0.41 | AC27: ='Tariff Calculation'!AC96 -> 0.43 | AD27: ='Tariff Calculation'!AD96 -> 0.49
C28: Disco Maintenance Tariff | D28: Naira/KWh | G28: ='Tariff Calculation'!G97 -> 0.55 | H28: ='Tariff Calculation'!H97 -> 0.44 | I28: ='Tariff Calculation'!I97 -> 0.60 | J28: ='Tariff Calculation'!J97 -> 0.54 | K28: ='Tariff Calculation'!K97 -> 0.48 | L28: ='Tariff Calculation'!L97 -> 0.48 | M28: ='Tariff Calculation'!M97 -> 0.56 | N28: ='Tariff Calculation'!N97 -> 0.44 | O28: ='Tariff Calculation'!O97 -> 0.57 | P28: ='Tariff Calculation'!P97 -> 0.59 | Q28: ='Tariff Calculation'!Q97 -> 0.52 | R28: ='Tariff Calculation'!R97 -> 0.48 | S28: ='Tariff Calculation'!S97 -> 0.36 | T28: ='Tariff Calculation'!T97 -> 0.66 | U28: ='Tariff Calculation'!U97 -> 0.69 | V28: ='Tariff Calculation'!V97 -> 0.48 | W28: ='Tariff Calculation'!W97 -> 0.46 | X28: ='Tariff Calculation'!X97 -> 0.53 | Y28: ='Tariff Calculation'!Y97 -> 0.69 | Z28: ='Tariff Calculation'!Z97 -> 0.32 | AA28: ='Tariff Calculation'!AA97 -> 0.51 | AB28: ='Tariff Calculation'!AB97 -> 0.46 | AC28: ='Tariff Calculation'!AC97 -> 0.56 | AD28: ='Tariff Calculation'!AD97 -> 0.64
C29: Depreciation Tariff | D29: Naira/KWh | G29: ='Tariff Calculation'!G98 -> 0 | H29: ='Tariff Calculation'!H98 -> 3.92 | I29: ='Tariff Calculation'!I98 -> 4.02 | J29: ='Tariff Calculation'!J98 -> 4.08 | K29: ='Tariff Calculation'!K98 -> 4.20 | L29: ='Tariff Calculation'!L98 -> 4.29 | M29: ='Tariff Calculation'!M98 -> 3.75 | N29: ='Tariff Calculation'!N98 -> 3.81 | O29: ='Tariff Calculation'!O98 -> 3.97 | P29: ='Tariff Calculation'!P98 -> 4.06 | Q29: ='Tariff Calculation'!Q98 -> 4.10 | R29: ='Tariff Calculation'!R98 -> 3.34 | S29: ='Tariff Calculation'!S98 -> 3.37 | T29: ='Tariff Calculation'!T98 -> 3.41 | U29: ='Tariff Calculation'!U98 -> 3.42 | V29: ='Tariff Calculation'!V98 -> 3.49 | W29: ='Tariff Calculation'!W98 -> 3.54 | X29: ='Tariff Calculation'!X98 -> 3.51 | Y29: ='Tariff Calculation'!Y98 -> 3.54 | Z29: ='Tariff Calculation'!Z98 -> 3.64 | AA29: ='Tariff Calculation'!AA98 -> 3.59 | AB29: ='Tariff Calculation'!AB98 -> 1.10 | AC29: ='Tariff Calculation'!AC98 -> 1.02 | AD29: ='Tariff Calculation'!AD98 -> 0.89
C30: Return on Capital Tariff | D30: Naira/KWh | G30: ='Tariff Calculation'!G99 -> 17.63 | H30: ='Tariff Calculation'!H99 -> 17.02 | I30: ='Tariff Calculation'!I99 -> 16.41 | J30: ='Tariff Calculation'!J99 -> 15.61 | K30: ='Tariff Calculation'!K99 -> 14.93 | L30: ='Tariff Calculation'!L99 -> 14.00 | M30: ='Tariff Calculation'!M99 -> 13.07 | N30: ='Tariff Calculation'!N99 -> 12.28 | O30: ='Tariff Calculation'!O99 -> 11.83 | P30: ='Tariff Calculation'!P99 -> 11.31 | Q30: ='Tariff Calculation'!Q99 -> 10.50 | R30: ='Tariff Calculation'!R99 -> 10.01 | S30: ='Tariff Calculation'!S99 -> 9.10 | T30: ='Tariff Calculation'!T99 -> 8.57 | U30: ='Tariff Calculation'!U99 -> 7.86 | V30: ='Tariff Calculation'!V99 -> 7.24 | W30: ='Tariff Calculation'!W99 -> 6.55 | X30: ='Tariff Calculation'!X99 -> 5.85 | Y30: ='Tariff Calculation'!Y99 -> 5.03 | Z30: ='Tariff Calculation'!Z99 -> 4.39 | AA30: ='Tariff Calculation'!AA99 -> 4.02 | AB30: ='Tariff Calculation'!AB99 -> 3.97 | AC30: ='Tariff Calculation'!AC99 -> 4.06 | AD30: ='Tariff Calculation'!AD99 -> 3.95
C31: EERC Tariff | D31: Naira/KWh | G31: ='Tariff Calculation'!G100 -> 1.82 | H31: ='Tariff Calculation'!H100 -> 1.87 | I31: ='Tariff Calculation'!I100 -> 1.86 | J31: ='Tariff Calculation'!J100 -> 1.85 | K31: ='Tariff Calculation'!K100 -> 1.84 | L31: ='Tariff Calculation'!L100 -> 1.83 | M31: ='Tariff Calculation'!M100 -> 1.81 | N31: ='Tariff Calculation'!N100 -> 1.80 | O31: ='Tariff Calculation'!O100 -> 1.80 | P31: ='Tariff Calculation'!P100 -> 1.79 | Q31: ='Tariff Calculation'!Q100 -> 1.78 | R31: ='Tariff Calculation'!R100 -> 1.76 | S31: ='Tariff Calculation'!S100 -> 1.75 | T31: ='Tariff Calculation'!T100 -> 1.74 | U31: ='Tariff Calculation'!U100 -> 1.73 | V31: ='Tariff Calculation'!V100 -> 1.72 | W31: ='Tariff Calculation'!W100 -> 1.71 | X31: ='Tariff Calculation'!X100 -> 1.70 | Y31: ='Tariff Calculation'!Y100 -> 1.69 | Z31: ='Tariff Calculation'!Z100 -> 1.68 | AA31: ='Tariff Calculation'!AA100 -> 1.68 | AB31: ='Tariff Calculation'!AB100 -> 1.64 | AC31: ='Tariff Calculation'!AC100 -> 1.65 | AD31: ='Tariff Calculation'!AD100 -> 1.64
C32: Disco Loss Tariff | D32: Naira/KWh | G32: ='Tariff Calculation'!G101 -> 0 | H32: ='Tariff Calculation'!H101 -> 0 | I32: ='Tariff Calculation'!I101 -> 0 | J32: ='Tariff Calculation'!J101 -> 0 | K32: ='Tariff Calculation'!K101 -> 0 | L32: ='Tariff Calculation'!L101 -> 0 | M32: ='Tariff Calculation'!M101 -> 0 | N32: ='Tariff Calculation'!N101 -> 0 | O32: ='Tariff Calculation'!O101 -> 0 | P32: ='Tariff Calculation'!P101 -> 0 | Q32: ='Tariff Calculation'!Q101 -> 0 | R32: ='Tariff Calculation'!R101 -> 0 | S32: ='Tariff Calculation'!S101 -> 0 | T32: ='Tariff Calculation'!T101 -> 0 | U32: ='Tariff Calculation'!U101 -> 0 | V32: ='Tariff Calculation'!V101 -> 0 | W32: ='Tariff Calculation'!W101 -> 0 | X32: ='Tariff Calculation'!X101 -> 0 | Y32: ='Tariff Calculation'!Y101 -> 0 | Z32: ='Tariff Calculation'!Z101 -> 0 | AA32: ='Tariff Calculation'!AA101 -> 0 | AB32: ='Tariff Calculation'!AB101 -> 0 | AC32: ='Tariff Calculation'!AC101 -> 0 | AD32: ='Tariff Calculation'!AD101 -> 0
C34: Total | D34: Naira/KWh | G34: =SUM(G25:G33) -> 131.82 | H34: =SUM(H25:H33) -> 135.24 | I34: 134.74 | J34: 134.03 | K34: 133.29 | L34: 132.46 | M34: 131.03 | N34: 130.23 | O34: 130.04 | P34: 129.63 | Q34: 128.85 | R34: 127.58 | S34: 126.47 | T34: 126.14 | U34: 125.53 | V34: 124.75 | W34: 124.13 | X34: 123.42 | Y34: 122.69 | Z34: 121.84 | AA34: 121.65 | AB34: 119.04 | AC34: 119.17 | AD34: 119.07
